Council Name,Date,TransNo,Amount � (Excl VAT),Supplier name,Supplier Category,Expense Area,Expense Type,Expense Code
London Borough of Sutton,17/04/2023,50346686,"1,166.40",A R G Europe Limited,CONSTRUCTION INDUSTRY,HRA,Payments to Contractors,C14000
London Borough of Sutton,18/04/2023,50343953,"9,460.80",A Step Beyond Ltd,SOCIAL SERVICES - OTHER,Peoples Services,Supported Living,A56088
London Borough of Sutton,18/04/2023,50343953,929.19,A Step Beyond Ltd,SOCIAL SERVICES - OTHER,Peoples Services,Supported Living,A56088
London Borough of Sutton,18/04/2023,50343953,622.54,A Step Beyond Ltd,SOCIAL SERVICES - OTHER,Peoples Services,Supported Living,A56088
London Borough of Sutton,18/04/2023,50343953,"3,547.80",A Step Beyond Ltd,SOCIAL SERVICES - OTHER,Peoples Services,Supported Living,A56088
London Borough of Sutton,31/03/2023,20046733,535,A T Sound Hire,OFFICE SERVICES,Resources,Equipment And Materials Purchase,A40000
London Borough of Sutton,01/03/2023,50340607,"30,070.00",A Wilderness Way Ltd,CHILDREN'S SERVICES - FOSTERING & ADOPTION SERVICES,Peoples Services,Residential Care-Children,A56115
London Borough of Sutton,14/04/2023,50342194,"3,848.24",Abbey Care Centre,SOCIAL SERVICES RESIDENTIAL,Peoples Services,Nursing Care - Ext Provider,A56025
London Borough of Sutton,14/04/2023,50342194,-750.4,Abbey Care Centre,SOCIAL SERVICES RESIDENTIAL,Peoples Services,Nursing Care - 3rd party top up payment,A56023
London Borough of Sutton,14/04/2023,50342346,-750.4,Abbey Care Centre,SOCIAL SERVICES RESIDENTIAL,Peoples Services,Nursing Care - 3rd party top up payment,A56023
London Borough of Sutton,14/04/2023,50342346,"3,848.24",Abbey Care Centre,SOCIAL SERVICES RESIDENTIAL,Peoples Services,Nursing Care Short Term,A56026
London Borough of Sutton,14/04/2023,50342346,"-1,492.80",Abbey Care Centre,SOCIAL SERVICES RESIDENTIAL,Peoples Services,Nursing Care - 3rd party top up payment,A56023
London Borough of Sutton,14/04/2023,50342438,-750.4,Abbey Care Centre,SOCIAL SERVICES RESIDENTIAL,Peoples Services,Nursing Care - 3rd party top up payment,A56023
London Borough of Sutton,14/04/2023,50342438,"3,848.24",Abbey Care Centre,SOCIAL SERVICES RESIDENTIAL,Peoples Services,Nursing Care Short Term,A56026
London Borough of Sutton,14/04/2023,50342478,"4,036.76",Abbey Care Centre,SOCIAL SERVICES RESIDENTIAL,Peoples Services,Nursing Care - Ext Provider,A56025
London Borough of Sutton,14/04/2023,50342478,-836.76,Abbey Care Centre,SOCIAL SERVICES RESIDENTIAL,Peoples Services,Nursing Care - 3rd party top up payment,A56023
London Borough of Sutton,11/04/2023,50341083,"4,952.64",ABC Pre-School Beddington LLP,GRANTS & EX GRATIA PAYMENTS,Peoples Services,Payment - Nursery Funding,A51056
London Borough of Sutton,11/04/2023,50341216,912.6,ABC Pre-School Beddington LLP,GRANTS & EX GRATIA PAYMENTS,Peoples Services,Payment - Nursery Funding,A51056
London Borough of Sutton,27/03/2023,20046813,"5,926.51",Absolute Care Services Ltd,SOCIAL SERVICES DAY CARE,Peoples Services,Homecare Core Services,A56020
London Borough of Sutton,27/03/2023,20046814,"5,715.81",Absolute Care Services Ltd,SOCIAL SERVICES DAY CARE,Peoples Services,Homecare Core Services,A56020
London Borough of Sutton,27/03/2023,20046815,"6,794.87",Absolute Care Services Ltd,SOCIAL SERVICES DAY CARE,Peoples Services,Homecare Core Services,A56020
London Borough of Sutton,03/04/2023,20046816,"5,926.51",Absolute Care Services Ltd,SOCIAL SERVICES DAY CARE,Peoples Services,Homecare Core Services,A56020
London Borough of Sutton,03/04/2023,20046817,"6,794.87",Absolute Care Services Ltd,SOCIAL SERVICES DAY CARE,Peoples Services,Homecare Core Services,A56020
London Borough of Sutton,10/04/2023,20047159,"5,715.81",Absolute Care Services Ltd,SOCIAL SERVICES DAY CARE,Peoples Services,Homecare Core Services,A56020
London Borough of Sutton,10/04/2023,20047160,"6,794.87",Absolute Care Services Ltd,SOCIAL SERVICES DAY CARE,Peoples Services,Homecare Core Services,A56020
London Borough of Sutton,10/04/2023,20047161,"5,926.51",Absolute Care Services Ltd,SOCIAL SERVICES DAY CARE,Peoples Services,Homecare Core Services,A56020
London Borough of Sutton,17/04/2023,20047506,"5,715.81",Absolute Care Services Ltd,SOCIAL SERVICES DAY CARE,Peoples Services,Homecare Core Services,A56020
London Borough of Sutton,17/04/2023,20047507,"5,926.51",Absolute Care Services Ltd,SOCIAL SERVICES DAY CARE,Peoples Services,Homecare Core Services,A56020
London Borough of Sutton,17/04/2023,20047516,"6,794.87",Absolute Care Services Ltd,SOCIAL SERVICES DAY CARE,Peoples Services,Homecare Core Services,A56020
London Borough of Sutton,26/03/2023,50339195,772.61,Absolute Care Services Ltd,SOCIAL SERVICES DAY CARE,Peoples Services,Home Care Services,A56019
London Borough of Sutton,26/03/2023,50339195,45.01,Absolute Care Services Ltd,SOCIAL SERVICES DAY CARE,Peoples Services,Home Care Services,A56019
London Borough of Sutton,26/03/2023,50339200,687.86,Absolute Care Services Ltd,SOCIAL SERVICES DAY CARE,Peoples Services,Home Care Services,A56019
London Borough of Sutton,26/03/2023,50339201,16.08,Absolute Care Services Ltd,SOCIAL SERVICES DAY CARE,Peoples Services,Home Care Services,A56019
London Borough of Sutton,26/03/2023,50339201,506.52,Absolute Care Services Ltd,SOCIAL SERVICES DAY CARE,Peoples Services,Home Care Services,A56019
London Borough of Sutton,26/03/2023,50339205,620.62,Absolute Care Services Ltd,SOCIAL SERVICES DAY CARE,Peoples Services,Home Care Services,A56019
London Borough of Sutton,26/03/2023,50339205,39.4,Absolute Care Services Ltd,SOCIAL SERVICES DAY CARE,Peoples Services,Home Care Services,A56019
London Borough of Sutton,26/03/2023,50339213,522.6,Absolute Care Services Ltd,SOCIAL SERVICES DAY CARE,Peoples Services,Home Care Services,A56019
London Borough of Sutton,26/03/2023,50339251,431.07,Absolute Care Services Ltd,SOCIAL SERVICES DAY CARE,Peoples Services,Home Care Services,A56019
London Borough of Sutton,26/03/2023,50339251,99.57,Absolute Care Services Ltd,SOCIAL SERVICES DAY CARE,Peoples Services,Home Care Services,A56019
London Borough of Sutton,26/03/2023,50339266,85.91,Absolute Care Services Ltd,SOCIAL SERVICES DAY CARE,Peoples Services,Home Care Services,A56019
London Borough of Sutton,26/03/2023,50339266,541.21,Absolute Care Services Ltd,SOCIAL SERVICES DAY CARE,Peoples Services,Home Care Services,A56019
London Borough of Sutton,03/04/2023,50339269,"3,053.54",Absolute Care Services Ltd,SOCIAL SERVICES DAY CARE,Peoples Services,Home Care Services,A56019
London Borough of Sutton,03/04/2023,50339270,"8,643.00",Absolute Care Services Ltd,SOCIAL SERVICES DAY CARE,Peoples Services,Home Care Services,A56019
London Borough of Sutton,26/03/2023,50339282,409.11,Absolute Care Services Ltd,SOCIAL SERVICES DAY CARE,Peoples Services,Home Care Services,A56019
London Borough of Sutton,26/03/2023,50339282,12.99,Absolute Care Services Ltd,SOCIAL SERVICES DAY CARE,Peoples Services,Home Care Services,A56019
London Borough of Sutton,26/03/2023,50339282,100.5,Absolute Care Services Ltd,SOCIAL SERVICES DAY CARE,Peoples Services,Home Care Services,A56019
London Borough of Sutton,26/03/2023,50339295,620.62,Absolute Care Services Ltd,SOCIAL SERVICES DAY CARE,Peoples Services,Home Care Services,A56019
London Borough of Sutton,26/03/2023,50339299,896.56,Absolute Care Services Ltd,SOCIAL SERVICES DAY CARE,Peoples Services,Home Care Services,A56019
London Borough of Sutton,26/03/2023,50339299,118.2,Absolute Care Services Ltd,SOCIAL SERVICES DAY CARE,Peoples Services,Home Care Services,A56019
London Borough of Sutton,05/04/2023,50339569,"1,813.02",Absolute Care Services Ltd,SOCIAL SERVICES DAY CARE,Peoples Services,Home Care Services,A56019
London Borough of Sutton,05/04/2023,50340875,399.5,Absolute Care Services Ltd,SOCIAL SERVICES DAY CARE,Peoples Services,Home Care Services,A56019
London Borough of Sutton,05/04/2023,50340875,995.44,Absolute Care Services Ltd,SOCIAL SERVICES DAY CARE,Peoples Services,Home Care Services,A56019
London Borough of Sutton,02/04/2023,50340898,409.11,Absolute Care Services Ltd,SOCIAL SERVICES DAY CARE,Peoples Services,Home Care Services,A56019
London Borough of Sutton,02/04/2023,50340898,12.99,Absolute Care Services Ltd,SOCIAL SERVICES DAY CARE,Peoples Services,Home Care Services,A56019
London Borough of Sutton,02/04/2023,50340898,100.5,Absolute Care Services Ltd,SOCIAL SERVICES DAY CARE,Peoples Services,Home Care Services,A56019
London Borough of Sutton,02/04/2023,50340905,431.07,Absolute Care Services Ltd,SOCIAL SERVICES DAY CARE,Peoples Services,Home Care Services,A56019
London Borough of Sutton,02/04/2023,50340905,99.57,Absolute Care Services Ltd,SOCIAL SERVICES DAY CARE,Peoples Services,Home Care Services,A56019
London Borough of Sutton,02/04/2023,50340945,522.6,Absolute Care Services Ltd,SOCIAL SERVICES DAY CARE,Peoples Services,Home Care Services,A56019
London Borough of Sutton,02/04/2023,50340977,620.62,Absolute Care Services Ltd,SOCIAL SERVICES DAY CARE,Peoples Services,Home Care Services,A56019
London Borough of Sutton,02/04/2023,50341006,615.7,Absolute Care Services Ltd,SOCIAL SERVICES DAY CARE,Peoples Services,Home Care Services,A56019
London Borough of Sutton,02/04/2023,50341006,39.4,Absolute Care Services Ltd,SOCIAL SERVICES DAY CARE,Peoples Services,Home Care Services,A56019
London Borough of Sutton,02/04/2023,50341010,16.08,Absolute Care Services Ltd,SOCIAL SERVICES DAY CARE,Peoples Services,Home Care Services,A56019
London Borough of Sutton,02/04/2023,50341010,506.52,Absolute Care Services Ltd,SOCIAL SERVICES DAY CARE,Peoples Services,Home Care Services,A56019
London Borough of Sutton,02/04/2023,50341023,896.56,Absolute Care Services Ltd,SOCIAL SERVICES DAY CARE,Peoples Services,Home Care Services,A56019
London Borough of Sutton,02/04/2023,50341023,118.2,Absolute Care Services Ltd,SOCIAL SERVICES DAY CARE,Peoples Services,Home Care Services,A56019
London Borough of Sutton,02/04/2023,50341030,772.61,Absolute Care Services Ltd,SOCIAL SERVICES DAY CARE,Peoples Services,Home Care Services,A56019
London Borough of Sutton,02/04/2023,50341030,45.01,Absolute Care Services Ltd,SOCIAL SERVICES DAY CARE,Peoples Services,Home Care Services,A56019
London Borough of Sutton,02/04/2023,50341038,689.5,Absolute Care Services Ltd,SOCIAL SERVICES DAY CARE,Peoples Services,Home Care Services,A56019
London Borough of Sutton,02/04/2023,50341553,160.8,Absolute Care Services Ltd,SOCIAL SERVICES DAY CARE,Peoples Services,Home Care Services,A56019
London Borough of Sutton,02/04/2023,50341553,586.92,Absolute Care Services Ltd,SOCIAL SERVICES DAY CARE,Peoples Services,Home Care Services,A56019
London Borough of Sutton,09/04/2023,50343078,772.61,Absolute Care Services Ltd,SOCIAL SERVICES DAY CARE,Peoples Services,Home Care Services,A56019
London Borough of Sutton,09/04/2023,50343078,45.01,Absolute Care Services Ltd,SOCIAL SERVICES DAY CARE,Peoples Services,Home Care Services,A56019
London Borough of Sutton,09/04/2023,50343125,620.62,Absolute Care Services Ltd,SOCIAL SERVICES DAY CARE,Peoples Services,Home Care Services,A56019
London Borough of Sutton,09/04/2023,50343143,504.83,Absolute Care Services Ltd,SOCIAL SERVICES DAY CARE,Peoples Services,Home Care Services,A56019
London Borough of Sutton,09/04/2023,50343143,32.05,Absolute Care Services Ltd,SOCIAL SERVICES DAY CARE,Peoples Services,Home Care Services,A56019
London Borough of Sutton,09/04/2023,50343178,896.56,Absolute Care Services Ltd,SOCIAL SERVICES DAY CARE,Peoples Services,Home Care Services,A56019
London Borough of Sutton,09/04/2023,50343178,118.2,Absolute Care Services Ltd,SOCIAL SERVICES DAY CARE,Peoples Services,Home Care Services,A56019
London Borough of Sutton,09/04/2023,50343194,444.13,Absolute Care Services Ltd,SOCIAL SERVICES DAY CARE,Peoples Services,Home Care Services,A56019
London Borough of Sutton,09/04/2023,50343194,102.59,Absolute Care Services Ltd,SOCIAL SERVICES DAY CARE,Peoples Services,Home Care Services,A56019
London Borough of Sutton,09/04/2023,50343230,16.08,Absolute Care Services Ltd,SOCIAL SERVICES DAY CARE,Peoples Services,Home Care Services,A56019
London Borough of Sutton,09/04/2023,50343230,506.52,Absolute Care Services Ltd,SOCIAL SERVICES DAY CARE,Peoples Services,Home Care Services,A56019
London Borough of Sutton,09/04/2023,50343251,689.5,Absolute Care Services Ltd,SOCIAL SERVICES DAY CARE,Peoples Services,Home Care Services,A56019
London Borough of Sutton,19/03/2023,50343302,719.12,Absolute Care Services Ltd,SOCIAL SERVICES DAY CARE,Peoples Services,Home Care Services,A56019
London Borough of Sutton,19/03/2023,50343302,39.4,Absolute Care Services Ltd,SOCIAL SERVICES DAY CARE,Peoples Services,Home Care Services,A56019
London Borough of Sutton,09/04/2023,50343322,522.6,Absolute Care Services Ltd,SOCIAL SERVICES DAY CARE,Peoples Services,Home Care Services,A56019
London Borough of Sutton,09/04/2023,50344047,160.8,Absolute Care Services Ltd,SOCIAL SERVICES DAY CARE,Peoples Services,Home Care Services,A56019
London Borough of Sutton,09/04/2023,50344047,594.96,Absolute Care Services Ltd,SOCIAL SERVICES DAY CARE,Peoples Services,Home Care Services,A56019
London Borough of Sutton,19/04/2023,50345281,787.35,Absolute Care Services Ltd,SOCIAL SERVICES DAY CARE,Peoples Services,Home Care Services,A56019
London Borough of Sutton,16/04/2023,50345871,522.6,Absolute Care Services Ltd,SOCIAL SERVICES DAY CARE,Peoples Services,Home Care Services,A56019
London Borough of Sutton,16/04/2023,50345900,444.13,Absolute Care Services Ltd,SOCIAL SERVICES DAY CARE,Peoples Services,Home Care Services,A56019
London Borough of Sutton,16/04/2023,50345900,102.59,Absolute Care Services Ltd,SOCIAL SERVICES DAY CARE,Peoples Services,Home Care Services,A56019
London Borough of Sutton,16/04/2023,50346108,689.5,Absolute Care Services Ltd,SOCIAL SERVICES DAY CARE,Peoples Services,Home Care Services,A56019
London Borough of Sutton,16/04/2023,50346109,16.08,Absolute Care Services Ltd,SOCIAL SERVICES DAY CARE,Peoples Services,Home Care Services,A56019
London Borough of Sutton,16/04/2023,50346109,506.52,Absolute Care Services Ltd,SOCIAL SERVICES DAY CARE,Peoples Services,Home Care Services,A56019
London Borough of Sutton,16/04/2023,50346338,620.62,Absolute Care Services Ltd,SOCIAL SERVICES DAY CARE,Peoples Services,Home Care Services,A56019
London Borough of Sutton,16/04/2023,50346367,896.56,Absolute Care Services Ltd,SOCIAL SERVICES DAY CARE,Peoples Services,Home Care Services,A56019
London Borough of Sutton,16/04/2023,50346367,118.2,Absolute Care Services Ltd,SOCIAL SERVICES DAY CARE,Peoples Services,Home Care Services,A56019
London Borough of Sutton,16/04/2023,50346392,772.61,Absolute Care Services Ltd,SOCIAL SERVICES DAY CARE,Peoples Services,Home Care Services,A56019
London Borough of Sutton,16/04/2023,50346392,45.01,Absolute Care Services Ltd,SOCIAL SERVICES DAY CARE,Peoples Services,Home Care Services,A56019
London Borough of Sutton,23/04/2023,50348005,168.55,Absolute Care Services Ltd,SOCIAL SERVICES DAY CARE,Peoples Services,Home Care Services,A56019
London Borough of Sutton,23/04/2023,50348005,530.93,Absolute Care Services Ltd,SOCIAL SERVICES DAY CARE,Peoples Services,Home Care Services,A56019
London Borough of Sutton,23/04/2023,50348024,16.08,Absolute Care Services Ltd,SOCIAL SERVICES DAY CARE,Peoples Services,Home Care Services,A56019
London Borough of Sutton,23/04/2023,50348024,506.52,Absolute Care Services Ltd,SOCIAL SERVICES DAY CARE,Peoples Services,Home Care Services,A56019
London Borough of Sutton,23/04/2023,50348083,581.22,Absolute Care Services Ltd,SOCIAL SERVICES DAY CARE,Peoples Services,Home Care Services,A56019
London Borough of Sutton,23/04/2023,50348102,883.48,Absolute Care Services Ltd,SOCIAL SERVICES DAY CARE,Peoples Services,Home Care Services,A56019
London Borough of Sutton,23/04/2023,50348102,116.5,Absolute Care Services Ltd,SOCIAL SERVICES DAY CARE,Peoples Services,Home Care Services,A56019
London Borough of Sutton,23/04/2023,50348114,684.19,Absolute Care Services Ltd,SOCIAL SERVICES DAY CARE,Peoples Services,Home Care Services,A56019
London Borough of Sutton,23/04/2023,50348114,39.86,Absolute Care Services Ltd,SOCIAL SERVICES DAY CARE,Peoples Services,Home Care Services,A56019
London Borough of Sutton,23/04/2023,50348124,674.73,Absolute Care Services Ltd,SOCIAL SERVICES DAY CARE,Peoples Services,Home Care Services,A56019
London Borough of Sutton,23/04/2023,50348139,522.6,Absolute Care Services Ltd,SOCIAL SERVICES DAY CARE,Peoples Services,Home Care Services,A56019
London Borough of Sutton,05/04/2023,20047030,"191,457.65",Access UK Limited,TAXI AND COACH HIRE,Peoples Services,Childrens Social Care Transport,A32009
London Borough of Sutton,12/04/2023,20047325,"60,386.93",Access UK Limited,TAXI AND COACH HIRE,Peoples Services,Childrens Social Care Transport,A32009
London Borough of Sutton,19/04/2023,20047751,"6,356.56",Access UK Limited,TAXI AND COACH HIRE,Peoples Services,Childrens Social Care Transport,A32009
London Borough of Sutton,26/04/2023,20048228,"194,674.18",Access UK Limited,TAXI AND COACH HIRE,Peoples Services,Childrens Social Care Transport,A32009
London Borough of Sutton,31/01/2023,20047400,950,Access UK Limited,IT EQUIPMENT MAINTENANCE,Resources,IT Software Maintenance,A45045
London Borough of Sutton,31/03/2023,50338939,"5,410.61",Accomplish Group Ltd,SOCIAL SERVICES RESIDENTIAL,Peoples Services,Supported Living,A56088
London Borough of Sutton,31/03/2023,50338951,"4,671.40",Accomplish Group Ltd,SOCIAL SERVICES RESIDENTIAL,Peoples Services,Supported Living,A56088
London Borough of Sutton,31/03/2023,50338969,"3,080.00",Accomplish Group Ltd,SOCIAL SERVICES RESIDENTIAL,Peoples Services,Supported Living,A56088
London Borough of Sutton,10/03/2023,20046573,"4,734.94",Accurate Data Services Ltd,OFFICE SERVICES,Resources,Fees,A44040
London Borough of Sutton,14/04/2023,50342038,"4,682.44",Achieve Together Limited,SOCIAL SERVICES RESIDENTIAL,Peoples Services,Residential Care - Ext Provider,A56114
London Borough of Sutton,14/04/2023,50342038,-511.8,Achieve Together Limited,SOCIAL SERVICES RESIDENTIAL,Peoples Services,Residential Care - Client Cont ( Net Paymt ),A56113
London Borough of Sutton,14/04/2023,50342049,"6,845.04",Achieve Together Limited,SOCIAL SERVICES RESIDENTIAL,Peoples Services,Residential Care - Ext Provider,A56114
London Borough of Sutton,14/04/2023,50342049,-438.8,Achieve Together Limited,SOCIAL SERVICES RESIDENTIAL,Peoples Services,Residential Care - Client Cont ( Net Paymt ),A56113
London Borough of Sutton,14/04/2023,50342075,"8,103.64",Achieve Together Limited,SOCIAL SERVICES RESIDENTIAL,Peoples Services,Residential Care - Ext Provider,A56114
London Borough of Sutton,14/04/2023,50342075,-402.8,Achieve Together Limited,SOCIAL SERVICES RESIDENTIAL,Peoples Services,Residential Care - Client Cont ( Net Paymt ),A56113
London Borough of Sutton,14/04/2023,50342164,"5,100.00",Achieve Together Limited,SOCIAL SERVICES RESIDENTIAL,Peoples Services,Residential Care - Ext Provider,A56114
London Borough of Sutton,14/04/2023,50342198,"4,375.48",Achieve Together Limited,SOCIAL SERVICES RESIDENTIAL,Peoples Services,Residential Care - Ext Provider,A56114
London Borough of Sutton,14/04/2023,50342198,-471.8,Achieve Together Limited,SOCIAL SERVICES RESIDENTIAL,Peoples Services,Residential Care - Client Cont ( Net Paymt ),A56113
London Borough of Sutton,14/04/2023,50342198,390,Achieve Together Limited,SOCIAL SERVICES RESIDENTIAL,Peoples Services,One to One Care,A56108
London Borough of Sutton,14/04/2023,50342273,"7,303.88",Achieve Together Limited,SOCIAL SERVICES RESIDENTIAL,Peoples Services,Residential Care - Ext Provider,A56114
London Borough of Sutton,14/04/2023,50342315,"5,810.56",Achieve Together Limited,SOCIAL SERVICES RESIDENTIAL,Peoples Services,Residential Care - Ext Provider,A56114
London Borough of Sutton,14/04/2023,50342092,"4,653.76",ACHIEVE TOGETHER LTD,SOCIAL SERVICES RESIDENTIAL,Peoples Services,Residential Care - Ext Provider,A56114
London Borough of Sutton,14/04/2023,50342131,"5,620.60",ACHIEVE TOGETHER LTD,SOCIAL SERVICES RESIDENTIAL,Peoples Services,Residential Care - Ext Provider,A56114
London Borough of Sutton,14/04/2023,50342131,-438.8,ACHIEVE TOGETHER LTD,SOCIAL SERVICES RESIDENTIAL,Peoples Services,Residential Care - Client Cont ( Net Paymt ),A56113
London Borough of Sutton,14/04/2023,50342141,"11,047.88",ACHIEVE TOGETHER LTD,SOCIAL SERVICES RESIDENTIAL,Peoples Services,Residential Care - Ext Provider,A56114
London Borough of Sutton,18/04/2023,50343869,"2,311.20",ACHIEVE TOGETHER LTD,SOCIAL SERVICES RESIDENTIAL,Peoples Services,Supported Living,A56088
London Borough of Sutton,18/04/2023,50343869,620.83,ACHIEVE TOGETHER LTD,SOCIAL SERVICES RESIDENTIAL,Peoples Services,Supported Living,A56088
London Borough of Sutton,18/04/2023,50343869,599.44,ACHIEVE TOGETHER LTD,SOCIAL SERVICES RESIDENTIAL,Peoples Services,Supported Living,A56088
London Borough of Sutton,18/04/2023,50343879,"1,027.20",ACHIEVE TOGETHER LTD,SOCIAL SERVICES RESIDENTIAL,Peoples Services,Supported Living,A56088
London Borough of Sutton,18/04/2023,50343879,859.46,ACHIEVE TOGETHER LTD,SOCIAL SERVICES RESIDENTIAL,Peoples Services,Supported Living,A56088
London Borough of Sutton,18/04/2023,50343879,"1,027.20",ACHIEVE TOGETHER LTD,SOCIAL SERVICES RESIDENTIAL,Peoples Services,Supported Living,A56088
London Borough of Sutton,18/04/2023,50343938,"2,568.00",ACHIEVE TOGETHER LTD,SOCIAL SERVICES RESIDENTIAL,Peoples Services,Supported Living,A56088
London Borough of Sutton,18/04/2023,50343941,"2,845.33",ACHIEVE TOGETHER LTD,SOCIAL SERVICES RESIDENTIAL,Peoples Services,Supported Living,A56088
London Borough of Sutton,18/04/2023,50343941,"3,081.60",ACHIEVE TOGETHER LTD,SOCIAL SERVICES RESIDENTIAL,Peoples Services,Supported Living,A56088
London Borough of Sutton,14/04/2023,50342125,"3,012.36",Acorn Lodge,SOCIAL SERVICES RESIDENTIAL,Peoples Services,Residential Care - Ext Provider,A56114
London Borough of Sutton,14/04/2023,50342054,"3,232.48",Acorn Residential Home,SOCIAL SERVICES RESIDENTIAL,Peoples Services,Residential Care - Ext Provider,A56114
London Borough of Sutton,14/04/2023,50342197,"6,441.84",Active Prospects,SOCIAL SERVICES DAY CARE,Peoples Services,Residential Care - Ext Provider,A56114
London Borough of Sutton,14/04/2023,50342349,-438.8,Active Prospects,SOCIAL SERVICES DAY CARE,Peoples Services,Residential Care - Client Cont ( Net Paymt ),A56113
London Borough of Sutton,14/04/2023,50342349,"8,918.80",Active Prospects,SOCIAL SERVICES DAY CARE,Peoples Services,Residential Care - Ext Provider,A56114
London Borough of Sutton,31/03/2023,50338948,546.88,Adelfi Homecare Ltd,SOCIAL SERVICES RESIDENTIAL,Peoples Services,Home Care Services,A56019
London Borough of Sutton,14/04/2023,50342139,"1,458.00",Admiral Healthcare Ltd.,SOCIAL SERVICES RESIDENTIAL,Peoples Services,Residential Care - Ext Provider,A56114
London Borough of Sutton,27/03/2023,50340587,"3,715.35",Affinity Fostering Services Ltd,CHILDREN'S SERVICES - FOSTERING & ADOPTION SERVICES,Peoples Services,Foster Parents Support,A44110
London Borough of Sutton,27/03/2023,50340589,"3,527.49",Affinity Fostering Services Ltd,CHILDREN'S SERVICES - FOSTERING & ADOPTION SERVICES,Peoples Services,Foster Parents Support,A44110
London Borough of Sutton,27/03/2023,50340590,"3,494.01",Affinity Fostering Services Ltd,CHILDREN'S SERVICES - FOSTERING & ADOPTION SERVICES,Peoples Services,Foster Parents Support,A44110
London Borough of Sutton,27/03/2023,50340647,"3,317.31",Affinity Fostering Services Ltd,CHILDREN'S SERVICES - FOSTERING & ADOPTION SERVICES,Peoples Services,Foster Parents Support,A44110
London Borough of Sutton,18/04/2023,50343883,"1,958.91",Agincare Enable Limited,SOCIAL SERVICES RESIDENTIAL,Peoples Services,Supported Living,A56088
London Borough of Sutton,18/04/2023,50343883,441,Agincare Enable Limited,SOCIAL SERVICES RESIDENTIAL,Peoples Services,Supported Living,A56088
London Borough of Sutton,18/04/2023,50343883,"1,958.91",Agincare Enable Limited,SOCIAL SERVICES RESIDENTIAL,Peoples Services,One to One Care,A56108
London Borough of Sutton,05/04/2023,20046955,"2,307.69",REDACTED - PERSONAL DATA,SUNDRY SUPPLIER - HOUSING,Environment Housing and Neighbourhoods,Rent Deposit Scheme,B32179
London Borough of Sutton,05/04/2023,20046955,"2,000.00",REDACTED - PERSONAL DATA,SUNDRY SUPPLIER - HOUSING,Environment Housing and Neighbourhoods,Rent Deposit Scheme,B32179
London Borough of Sutton,14/04/2023,50342056,"7,793.40",Leighton House Ltd,SOCIAL SERVICES RESIDENTIAL,Peoples Services,Residential Care - Ext Provider,A56114
London Borough of Sutton,14/04/2023,50342099,"8,716.00",Aitch Care Homes,SOCIAL SERVICES RESIDENTIAL,Peoples Services,Residential Care - Ext Provider,A56114
London Borough of Sutton,30/03/2023,20046701,583.55,Albany Housing YP Ltd,CARE LEAVERS,Peoples Services,Approved Lodgings,A61000
London Borough of Sutton,21/12/2022,20047309,"1,200.00",Alderton Associates Ltd,TEMP STAFF & CONSULTANCY,HRA,Payments to Contractors,C14000
London Borough of Sutton,25/04/2023,20048123,830,REDACTED - PERSONAL DATA,SUNDRY SUPPLIER - ENV SERVICES,Development Growth and Regeneration,External Fees and Consultants,C20000
London Borough of Sutton,30/03/2023,50335848,"1,600.00",All About Homes Ltd,CARE LEAVERS,Peoples Services,Education Allowance,A60008
London Borough of Sutton,11/04/2023,50340115,"168,131.48",All Saints Benhilton C Of E,SCHOOL FUNDS,Peoples Services,Payments to Schools,A51013
London Borough of Sutton,07/04/2023,50340237,"31,300.10",All Saints Benhilton C Of E,SCHOOL FUNDS,Peoples Services,Top-up Funding,A51016
London Borough of Sutton,11/04/2023,50340292,"13,174.20",All Saints Benhilton C Of E,SCHOOL FUNDS,Peoples Services,Place Funding,A56110
London Borough of Sutton,07/04/2023,50340238,"36,628.65",All Saints Carshalton Primary School,SCHOOL FUNDS,Peoples Services,Top-up Funding,A51016
London Borough of Sutton,11/04/2023,50340293,"12,414.15",All Saints Carshalton Primary School,SCHOOL FUNDS,Peoples Services,Place Funding,A56110
London Borough of Sutton,14/04/2023,50342036,"4,621.64",Allied Care (Mhs) Ltd,SOCIAL SERVICES - OTHER,Peoples Services,Residential Care - Ext Provider,A56114
London Borough of Sutton,24/04/2023,20048046,670,Alljos Services Ltd,PREMISES - CLEANING & LAUNDRY,Environment Housing and Neighbourhoods,Grants Given For Capital Purposes,C20004
London Borough of Sutton,01/04/2023,20046715,"1,675.05",Allstar Business Solutions,FUEL AND VEHICLE SUPPLIES,Environment Housing and Neighbourhoods,Vehicles -  Fuel,A30015
London Borough of Sutton,14/04/2023,50342191,"5,397.60",Allswell Care Services Ltd,SOCIAL SERVICES RESIDENTIAL,Peoples Services,Residential Care - Ext Provider,A56114
London Borough of Sutton,14/04/2023,50342223,"6,609.52",Allswell Care Services Ltd,SOCIAL SERVICES RESIDENTIAL,Peoples Services,Residential Care - Ext Provider,A56114
London Borough of Sutton,14/04/2023,50342330,"5,397.60",Allswell Care Services Ltd,SOCIAL SERVICES RESIDENTIAL,Peoples Services,Residential Care - Ext Provider,A56114
London Borough of Sutton,09/01/2023,50345238,-619.09,Alpenbest Limited,SOCIAL SERVICES DAY CARE,Peoples Services,Home Care Services,A56019
London Borough of Sutton,25/04/2023,50347763,852.64,Alpenbest Limited,SOCIAL SERVICES DAY CARE,Peoples Services,Home Care Services,A56019
London Borough of Sutton,26/04/2023,50347764,867.58,Alpenbest Limited,SOCIAL SERVICES DAY CARE,Peoples Services,Home Care Services,A56019
London Borough of Sutton,25/04/2023,50347765,953.28,Alpenbest Limited,SOCIAL SERVICES DAY CARE,Peoples Services,Home Care Services,A56019
London Borough of Sutton,26/04/2023,50347766,966.24,Alpenbest Limited,SOCIAL SERVICES DAY CARE,Peoples Services,Home Care Services,A56019
London Borough of Sutton,26/04/2023,50347768,"1,309.24",Alpenbest Limited,SOCIAL SERVICES DAY CARE,Peoples Services,Home Care Services,A56019
London Borough of Sutton,25/04/2023,50347769,852.64,Alpenbest Limited,SOCIAL SERVICES DAY CARE,Peoples Services,Home Care Services,A56019
London Borough of Sutton,26/04/2023,50347770,880.53,Alpenbest Limited,SOCIAL SERVICES DAY CARE,Peoples Services,Home Care Services,A56019
London Borough of Sutton,25/04/2023,50347773,"3,183.52",Alpenbest Limited,SOCIAL SERVICES DAY CARE,Peoples Services,Home Care Services,A56019
London Borough of Sutton,26/04/2023,50347774,"3,239.32",Alpenbest Limited,SOCIAL SERVICES DAY CARE,Peoples Services,Home Care Services,A56019
London Borough of Sutton,25/04/2023,50347775,"1,273.01",Alpenbest Limited,SOCIAL SERVICES DAY CARE,Peoples Services,Home Care Services,A56019
London Borough of Sutton,26/04/2023,50347776,"1,069.83",Alpenbest Limited,SOCIAL SERVICES DAY CARE,Peoples Services,Home Care Services,A56019
London Borough of Sutton,26/04/2023,50347782,867.58,Alpenbest Limited,SOCIAL SERVICES DAY CARE,Peoples Services,Home Care Services,A56019
London Borough of Sutton,25/04/2023,50347783,"1,591.76",Alpenbest Limited,SOCIAL SERVICES DAY CARE,Peoples Services,Home Care Services,A56019
London Borough of Sutton,25/04/2023,50347784,852.64,Alpenbest Limited,SOCIAL SERVICES DAY CARE,Peoples Services,Home Care Services,A56019
London Borough of Sutton,26/04/2023,50347785,867.58,Alpenbest Limited,SOCIAL SERVICES DAY CARE,Peoples Services,Home Care Services,A56019
London Borough of Sutton,25/04/2023,50347786,"3,183.52",Alpenbest Limited,SOCIAL SERVICES DAY CARE,Peoples Services,Home Care Services,A56019
London Borough of Sutton,26/04/2023,50347787,"3,252.27",Alpenbest Limited,SOCIAL SERVICES DAY CARE,Peoples Services,Home Care Services,A56019
London Borough of Sutton,25/04/2023,50347788,"1,783.88",Alpenbest Limited,SOCIAL SERVICES DAY CARE,Peoples Services,Home Care Services,A56019
London Borough of Sutton,25/04/2023,50347791,634.76,Alpenbest Limited,SOCIAL SERVICES DAY CARE,Peoples Services,Home Care Services,A56019
London Borough of Sutton,25/04/2023,50347792,884.14,Alpenbest Limited,SOCIAL SERVICES DAY CARE,Peoples Services,Home Care Services,A56019
London Borough of Sutton,26/04/2023,50347793,"1,007.28",Alpenbest Limited,SOCIAL SERVICES DAY CARE,Peoples Services,Home Care Services,A56019
London Borough of Sutton,25/04/2023,50347794,"4,742.64",Alpenbest Limited,SOCIAL SERVICES DAY CARE,Peoples Services,Home Care Services,A56019
London Borough of Sutton,26/04/2023,50347795,"4,845.30",Alpenbest Limited,SOCIAL SERVICES DAY CARE,Peoples Services,Home Care Services,A56019
London Borough of Sutton,25/04/2023,50347801,622.4,Alpenbest Limited,SOCIAL SERVICES DAY CARE,Peoples Services,Home Care Services,A56019
London Borough of Sutton,26/04/2023,50347802,576.81,Alpenbest Limited,SOCIAL SERVICES DAY CARE,Peoples Services,Home Care Services,A56019
London Borough of Sutton,25/04/2023,50347803,"3,183.52",Alpenbest Limited,SOCIAL SERVICES DAY CARE,Peoples Services,Home Care Services,A56019
London Borough of Sutton,26/04/2023,50347804,"3,239.32",Alpenbest Limited,SOCIAL SERVICES DAY CARE,Peoples Services,Home Care Services,A56019
London Borough of Sutton,25/04/2023,50347807,"1,591.76",Alpenbest Limited,SOCIAL SERVICES DAY CARE,Peoples Services,Home Care Services,A56019
London Borough of Sutton,25/04/2023,50347808,"2,866.06",Alpenbest Limited,SOCIAL SERVICES DAY CARE,Peoples Services,Home Care Services,A56019
London Borough of Sutton,25/04/2023,50347808,790.92,Alpenbest Limited,SOCIAL SERVICES DAY CARE,Peoples Services,Home Care Services,A56019
London Borough of Sutton,26/04/2023,50347809,"3,060.78",Alpenbest Limited,SOCIAL SERVICES DAY CARE,Peoples Services,Home Care Services,A56019
London Borough of Sutton,26/04/2023,50347809,719.72,Alpenbest Limited,SOCIAL SERVICES DAY CARE,Peoples Services,Home Care Services,A56019
London Borough of Sutton,25/04/2023,50347810,"1,108.68",Alpenbest Limited,SOCIAL SERVICES DAY CARE,Peoples Services,Home Care Services,A56019
London Borough of Sutton,25/04/2023,50347822,"1,113.34",Alpenbest Limited,SOCIAL SERVICES DAY CARE,Peoples Services,Home Care Services,A56019
London Borough of Sutton,26/04/2023,50347823,932.33,Alpenbest Limited,SOCIAL SERVICES DAY CARE,Peoples Services,Home Care Services,A56019
London Borough of Sutton,25/04/2023,50347824,"1,222.20",Alpenbest Limited,SOCIAL SERVICES DAY CARE,Peoples Services,Home Care Services,A56019
London Borough of Sutton,26/04/2023,50347825,"1,634.56",Alpenbest Limited,SOCIAL SERVICES DAY CARE,Peoples Services,Home Care Services,A56019
London Borough of Sutton,25/04/2023,50347826,"1,648.76",Alpenbest Limited,SOCIAL SERVICES DAY CARE,Peoples Services,Home Care Services,A56019
London Borough of Sutton,26/04/2023,50347827,"1,076.18",Alpenbest Limited,SOCIAL SERVICES DAY CARE,Peoples Services,Home Care Services,A56019
London Borough of Sutton,25/04/2023,50347839,"1,373.66",Alpenbest Limited,SOCIAL SERVICES DAY CARE,Peoples Services,Home Care Services,A56019
London Borough of Sutton,26/04/2023,50347840,687.34,Alpenbest Limited,SOCIAL SERVICES DAY CARE,Peoples Services,Home Care Services,A56019
London Borough of Sutton,25/04/2023,50347842,"1,591.76",Alpenbest Limited,SOCIAL SERVICES DAY CARE,Peoples Services,Home Care Services,A56019
London Borough of Sutton,11/04/2023,50341084,723.6,REDACTED - PERSONAL DATA,GRANTS & EX GRATIA PAYMENTS,Peoples Services,Payment - Nursery Funding,A51056
London Borough of Sutton,11/04/2023,50341151,"1,009.80",REDACTED - PERSONAL DATA,GRANTS & EX GRATIA PAYMENTS,Peoples Services,Payment - Nursery Funding,A51056
London Borough of Sutton,11/04/2023,50341161,673.2,REDACTED - PERSONAL DATA,GRANTS & EX GRATIA PAYMENTS,Peoples Services,Payment - Nursery Funding,A51056
London Borough of Sutton,18/02/2022,20044641,"22,754.40",Ambient Support Limited,SOCIAL SERVICES RESIDENTIAL,Peoples Services,Provider Contract Payments,A44290
London Borough of Sutton,17/03/2023,50339605,"20,151.65",AMBITIOUS ABOUT AUTISM,CHILDREN'S SERVICES - SEN SERVICES,Peoples Services,Independent School Fees,A56002
London Borough of Sutton,17/03/2023,50339606,"20,151.65",AMBITIOUS ABOUT AUTISM,CHILDREN'S SERVICES - SEN SERVICES,Peoples Services,Independent School Fees,A56002
London Borough of Sutton,18/04/2023,20047615,"1,050.00",REDACTED - PERSONAL DATA,SUNDRY SUPPLIER - HOUSING,Environment Housing and Neighbourhoods,Rent Deposit Scheme,B32179
London Borough of Sutton,18/04/2023,20047615,"1,211.00",REDACTED - PERSONAL DATA,SUNDRY SUPPLIER - HOUSING,Environment Housing and Neighbourhoods,Rent Deposit Scheme,B32179
London Borough of Sutton,05/04/2023,50339708,"1,430.00",REDACTED - PERSONAL DATA,SUNDRY SUPPLIER - EDUCATION,Peoples Services,Miscellaneous Expenses,A49000
London Borough of Sutton,14/04/2023,50342079,"2,697.76",Anchor Trust  ,SOCIAL SERVICES RESIDENTIAL,Peoples Services,Residential Care - Ext Provider,A56114
London Borough of Sutton,11/04/2023,50341139,"1,262.25",REDACTED - PERSONAL DATA,GRANTS & EX GRATIA PAYMENTS,Peoples Services,Payment - Nursery Funding,A51056
London Borough of Sutton,31/03/2023,50339492,"1,680.00",REDACTED - PERSONAL DATA,CHILDREN'S SERVICES - SEN SERVICES,Peoples Services,Independent School Fees,A56002
London Borough of Sutton,02/04/2023,50340621,"3,476.43",Ansacare Fostering Agency Ltd,CHILDREN'S SERVICES - FOSTERING & ADOPTION SERVICES,Peoples Services,Foster Parents Support,A44110
London Borough of Sutton,02/04/2023,50340635,"3,476.43",Ansacare Fostering Agency Ltd,CHILDREN'S SERVICES - FOSTERING & ADOPTION SERVICES,Peoples Services,Foster Parents Support,A44110
London Borough of Sutton,28/03/2023,20048249,"15,000.00",AnyDATA Solutions Ltd,BUSINESS & COMPUTER SYSTEMS,Resources,IT Software Purchase,A45040
London Borough of Sutton,31/03/2023,20046983,"7,943.73",Apetito Ltd,FOOD & DRINK,Health and Wellbeing,Catering Contract - Frozen Meals,A41001
London Borough of Sutton,03/01/2023,20046692,"6,538.55",Arnold & Self,PREMISES - REMOVALS,Environment Housing and Neighbourhoods,Bed & Breakfast,A56000
London Borough of Sutton,03/03/2023,20046697,"6,088.88",Arnold & Self,PREMISES - REMOVALS,Environment Housing and Neighbourhoods,Bed & Breakfast,A56000
London Borough of Sutton,07/02/2023,20046705,"6,869.06",Arnold & Self,PREMISES - REMOVALS,Environment Housing and Neighbourhoods,Bed & Breakfast,A56000
London Borough of Sutton,31/03/2023,50339464,"1,065.84",Ashlong House Ltd,SOCIAL SERVICES RESIDENTIAL,Peoples Services,Supported Living,A56088
London Borough of Sutton,29/03/2023,50343554,"1,312.36",Ashlong House Ltd,SOCIAL SERVICES RESIDENTIAL,Peoples Services,Supported Living,A56088
London Borough of Sutton,19/03/2023,50343556,"1,775.56",Ashlong House Ltd,SOCIAL SERVICES RESIDENTIAL,Peoples Services,Supported Living,A56088
London Borough of Sutton,19/03/2023,50343556,139.44,Ashlong House Ltd,SOCIAL SERVICES RESIDENTIAL,Peoples Services,Supported Living,A56088
London Borough of Sutton,19/03/2023,50343557,"1,312.36",Ashlong House Ltd,SOCIAL SERVICES RESIDENTIAL,Peoples Services,Supported Living,A56088
London Borough of Sutton,14/04/2023,50342168,"8,188.37",Ashton Care Homes Ltd.,SOCIAL SERVICES RESIDENTIAL,Peoples Services,Nursing Care - Ext Provider,A56025
London Borough of Sutton,14/04/2023,50342168,"-1,793.06",Ashton Care Homes Ltd.,SOCIAL SERVICES RESIDENTIAL,Peoples Services,Nursing Care - 3rd party top up payment,A56023
London Borough of Sutton,14/04/2023,50342086,"-1,990.00",Ashurst Lodge Healthcare Ltd,CHILDREN'S SERVICES - RESIDENTIAL,Peoples Services,Nursing Care - 3rd party top up payment,A56023
London Borough of Sutton,14/04/2023,50342086,"3,980.00",Ashurst Lodge Healthcare Ltd,CHILDREN'S SERVICES - RESIDENTIAL,Peoples Services,Residential Care - Ext Provider,A56114
London Borough of Sutton,14/04/2023,50342128,"4,144.68",Aspen Place,SOCIAL SERVICES DAY CARE,Peoples Services,Nursing Care - Ext Provider,A56025
London Borough of Sutton,14/04/2023,50342142,"5,699.00",Aspens Charities,SOCIAL SERVICES RESIDENTIAL,Peoples Services,Residential Care - Ext Provider,A56114
London Borough of Sutton,30/03/2023,50337415,"2,480.00",Aspirations Care Ltd,SOCIAL SERVICES DAY CARE,Peoples Services,Home Care Services,A56019
London Borough of Sutton,30/03/2023,50337415,"7,356.30",Aspirations Care Ltd,SOCIAL SERVICES DAY CARE,Peoples Services,Home Care Services,A56019
London Borough of Sutton,31/03/2023,20046753,820,ASSOCIATON OF ACCOUNTING TECHNICIANS,SUBSCRIPTIONS & PUBLICATIONS,Health and Wellbeing,Examination Fees,A44200
London Borough of Sutton,30/03/2023,20046698,630,Atalian Servest Limited,PREMISES - CLEANING & LAUNDRY,Resources,Pest Control,A20024
London Borough of Sutton,31/03/2023,20046993,"28,965.96",Atalian Servest Limited,PREMISES - CLEANING & LAUNDRY,Resources,Security / Surveillance Equipment Maintenance,A20009
London Borough of Sutton,24/04/2023,20048104,"2,000.00",Atelier Arzu Limited,SUNDRY SUPPLIER - EDUCATION,Health and Wellbeing,Equipment And Materials Purchase,A40000
London Borough of Sutton,11/04/2023,50341086,964.8,Aunty Connies Childcare,GRANTS & EX GRATIA PAYMENTS,Peoples Services,Payment - Nursery Funding,A51056
London Borough of Sutton,14/04/2023,50342055,"6,024.56",Autism & Aspergers Care Services,SOCIAL SERVICES RESIDENTIAL,Peoples Services,Residential Care - Ext Provider,A56114
London Borough of Sutton,06/03/2023,50340593,"49,334.28",Avance Ltd ,CHILDREN'S SERVICES - FOSTERING & ADOPTION SERVICES,Peoples Services,Residential Care-Children,A56115
London Borough of Sutton,07/04/2023,50340239,"73,097.91",Avenue Primary Acadamy,GRANTS & EX GRATIA PAYMENTS,Peoples Services,Top-up Funding,A51016
London Borough of Sutton,07/04/2023,50340239,"235,398.56",Avenue Primary Acadamy,GRANTS & EX GRATIA PAYMENTS,Peoples Services,Top-up Funding,A51016
London Borough of Sutton,11/04/2023,50340294,"13,759.20",Avenue Primary Acadamy,GRANTS & EX GRATIA PAYMENTS,Peoples Services,Place Funding,A56110
London Borough of Sutton,01/04/2023,50347108,"79,166.67",Avenue Primary Acadamy,GRANTS & EX GRATIA PAYMENTS,Peoples Services,Place extra funding,A56124
London Borough of Sutton,18/04/2023,50343888,"13,165.71",Ayai Care Limited,SOCIAL SERVICES DAY CARE,Peoples Services,Supported Living,A56088
London Borough of Sutton,18/04/2023,50343958,"13,680.00",Ayai Care Limited,SOCIAL SERVICES DAY CARE,Peoples Services,Supported Living,A56088
London Borough of Sutton,31/03/2023,50345550,"20,072.50",Ayai Care Limited,SOCIAL SERVICES DAY CARE,Peoples Services,Approved Lodgings,A61000
London Borough of Sutton,31/03/2023,50345553,"14,588.16",Ayai Care Limited,SOCIAL SERVICES DAY CARE,Peoples Services,Approved Lodgings,A61000
London Borough of Sutton,31/03/2023,50345558,"50,862.14",Ayai Care Limited,SOCIAL SERVICES DAY CARE,Peoples Services,Residential Care-Children,A56115
London Borough of Sutton,31/03/2023,50345559,"31,143.93",Ayai Care Limited,SOCIAL SERVICES DAY CARE,Peoples Services,Residential Care-Children,A56115
London Borough of Sutton,31/03/2023,50345560,"24,251.96",Ayai Care Limited,SOCIAL SERVICES DAY CARE,Peoples Services,Residential Care-Children,A56115
London Borough of Sutton,27/03/2023,20046926,"1,860.00",Baily Garner LLP,LEGAL & PROFESSIONAL SERVICES,HRA,Payments to Contractors,C14000
London Borough of Sutton,07/04/2023,50340240,"38,775.20",Bandon Hill Primary School (Academy),GRANTS & EX GRATIA PAYMENTS,Peoples Services,Top-up Funding,A51016
London Borough of Sutton,07/04/2023,50340287,"54,129.70",Bandon Hill Primary School (Academy),GRANTS & EX GRATIA PAYMENTS,Peoples Services,Top-up Funding,A51016
London Borough of Sutton,07/04/2023,50340288,"335,653.47",Bandon Hill Primary School (Academy),GRANTS & EX GRATIA PAYMENTS,Peoples Services,Top-up Funding,A51016
London Borough of Sutton,11/04/2023,50340295,"14,817.60",Bandon Hill Primary School (Academy),GRANTS & EX GRATIA PAYMENTS,Peoples Services,Place Funding,A56110
London Borough of Sutton,04/04/2023,20047012,686,Banner Group Limited,BOOKS PUBLICATIONS STATIONERY,Resources,Stationery,A43015
London Borough of Sutton,28/02/2023,50340591,"1,434.00",Banya,SOCIAL SERVICES RESIDENTIAL,Peoples Services,Foster Parents Support,A44110
London Borough of Sutton,31/03/2023,50340592,"3,704.50",Banya,SOCIAL SERVICES RESIDENTIAL,Peoples Services,Foster Parents Support,A44110
London Borough of Sutton,14/04/2023,50342105,"3,880.00",Barchester Healthcare Homes Ltd,SOCIAL SERVICES RESIDENTIAL,Peoples Services,Nursing Care - Ext Provider,A56025
London Borough of Sutton,11/04/2023,20047213,"32,625.97",Barnardo's,CHILDREN'S SERVICES - RESIDENTIAL,Peoples Services,Play Groups,A56111
London Borough of Sutton,05/04/2023,50339691,526.5,REDACTED - PERSONAL DATA,CHILDREN'S SERVICES - SEN SERVICES,Peoples Services,Miscellaneous Expenses,A49000
London Borough of Sutton,11/04/2023,50340109,"108,196.24",Beddington Infants School,GRANTS & EX GRATIA PAYMENTS,Peoples Services,Payments to Schools,A51013
London Borough of Sutton,07/04/2023,50340242,"17,462.75",Beddington Infants School,GRANTS & EX GRATIA PAYMENTS,Peoples Services,Top-up Funding,A51016
London Borough of Sutton,11/04/2023,50340297,"13,759.20",Beddington Infants School,GRANTS & EX GRATIA PAYMENTS,Peoples Services,Place Funding,A56110
London Borough of Sutton,07/04/2023,50340243,"27,886.60",Beddington Park Primary (Academy),GRANTS & EX GRATIA PAYMENTS,Peoples Services,Top-up Funding,A51016
London Borough of Sutton,11/04/2023,50340298,"11,907.00",Beddington Park Primary (Academy),GRANTS & EX GRATIA PAYMENTS,Peoples Services,Place Funding,A56110
London Borough of Sutton,18/04/2023,50343909,"3,664.29",Beechcroft Care Limited,SOCIAL SERVICES RESIDENTIAL,Peoples Services,Supported Living,A56088
London Borough of Sutton,18/04/2023,50343909,"1,200.00",Beechcroft Care Limited,SOCIAL SERVICES RESIDENTIAL,Peoples Services,One to One Care,A56108
London Borough of Sutton,18/04/2023,50343909,"2,745.00",Beechcroft Care Limited,SOCIAL SERVICES RESIDENTIAL,Peoples Services,Supported Living,A56088
London Borough of Sutton,30/03/2023,20046691,526.53,Beeches Tree Care,AGRICULTURAL & ESTATE SERVICES,Environment Housing and Neighbourhoods,Tree Works,A56042
London Borough of Sutton,31/03/2023,20046739,633.32,Beeches Tree Care,AGRICULTURAL & ESTATE SERVICES,Environment Housing and Neighbourhoods,Tree Works,A56042
London Borough of Sutton,04/04/2023,20046938,"3,680.65",Beeches Tree Care,AGRICULTURAL & ESTATE SERVICES,Environment Housing and Neighbourhoods,Maintenance of trees,A28003
London Borough of Sutton,04/04/2023,20046941,421.8,Beeches Tree Care,AGRICULTURAL & ESTATE SERVICES,Environment Housing and Neighbourhoods,Tree Works,A56042
London Borough of Sutton,04/04/2023,20046942,"1,109.43",Beeches Tree Care,AGRICULTURAL & ESTATE SERVICES,Environment Housing and Neighbourhoods,Highway Trees - Maintenance,A28005
London Borough of Sutton,04/04/2023,20046943,"1,109.43",Beeches Tree Care,AGRICULTURAL & ESTATE SERVICES,Environment Housing and Neighbourhoods,Highway Trees - Maintenance,A28005
London Borough of Sutton,04/04/2023,20047106,"10,467.35",Beeches Tree Care,AGRICULTURAL & ESTATE SERVICES,Environment Housing and Neighbourhoods,Highway Trees - Maintenance,A28005
London Borough of Sutton,11/04/2023,20047207,850,Beeches Tree Care,AGRICULTURAL & ESTATE SERVICES,Environment Housing and Neighbourhoods,Purchases and Repairs Fixtures & Fittings,A25005
London Borough of Sutton,18/04/2023,20047662,"14,373.73",Beeches Tree Care,AGRICULTURAL & ESTATE SERVICES,Environment Housing and Neighbourhoods,Highway Trees - Maintenance,A28005
London Borough of Sutton,21/04/2023,20047915,"15,000.00",Beeches Tree Care,AGRICULTURAL & ESTATE SERVICES,Environment Housing and Neighbourhoods,Payments to Contractors,C14000
London Borough of Sutton,11/04/2023,50341088,"4,274.82",Belmont Village Playgroup,GRANTS & EX GRATIA PAYMENTS,Peoples Services,Payment - Nursery Funding,A51056
London Borough of Sutton,11/04/2023,50341218,851.76,Belmont Village Playgroup,GRANTS & EX GRATIA PAYMENTS,Peoples Services,Payment - Nursery Funding,A51056
London Borough of Sutton,14/04/2023,50342278,-867.56,Bespoke Care Support Ltd,SOCIAL SERVICES - OTHER,Peoples Services,Nursing Care - 3rd party top up payment,A56023
London Borough of Sutton,14/04/2023,50342424,"-3,890.68",Bespoke Care Support Ltd,SOCIAL SERVICES - OTHER,Peoples Services,Nursing Care - 3rd party top up payment,A56023
London Borough of Sutton,14/04/2023,50342529,"-2,000.00",Bespoke Care Support Ltd,SOCIAL SERVICES - OTHER,Peoples Services,Nursing Care - 3rd party top up payment,A56023
London Borough of Sutton,18/04/2023,50343908,"8,337.17",Bespoke Care Support Ltd,SOCIAL SERVICES - OTHER,Peoples Services,Supported Living,A56088
London Borough of Sutton,18/04/2023,50343942,"4,285.71",Bespoke Care Support Ltd,SOCIAL SERVICES - OTHER,Peoples Services,Supported Living,A56088
London Borough of Sutton,18/04/2023,50343943,"3,857.14",Bespoke Care Support Ltd,SOCIAL SERVICES - OTHER,Peoples Services,Supported Living,A56088
London Borough of Sutton,26/03/2023,50337749,981.94,Best at Home Domiciliary Care Services Ltd,SOCIAL SERVICES DAY CARE,Peoples Services,Home Care Services,A56019
London Borough of Sutton,26/03/2023,50337757,827.97,Best at Home Domiciliary Care Services Ltd,SOCIAL SERVICES DAY CARE,Peoples Services,Home Care Services,A56019
London Borough of Sutton,26/03/2023,50337757,150,Best at Home Domiciliary Care Services Ltd,SOCIAL SERVICES DAY CARE,Peoples Services,Home Care Services,A56019
London Borough of Sutton,26/03/2023,50337766,"3,156.00",Best at Home Domiciliary Care Services Ltd,SOCIAL SERVICES DAY CARE,Peoples Services,Home Care Services,A56019
London Borough of Sutton,26/03/2023,50337775,827.97,Best at Home Domiciliary Care Services Ltd,SOCIAL SERVICES DAY CARE,Peoples Services,Home Care Services,A56019
London Borough of Sutton,26/03/2023,50337784,"3,156.00",Best at Home Domiciliary Care Services Ltd,SOCIAL SERVICES DAY CARE,Peoples Services,Home Care Services,A56019
London Borough of Sutton,26/03/2023,50337792,901.97,Best at Home Domiciliary Care Services Ltd,SOCIAL SERVICES DAY CARE,Peoples Services,Home Care Services,A56019
London Borough of Sutton,26/03/2023,50337794,"3,156.00",Best at Home Domiciliary Care Services Ltd,SOCIAL SERVICES DAY CARE,Peoples Services,Home Care Services,A56019
London Borough of Sutton,02/04/2023,50340707,981.94,Best at Home Domiciliary Care Services Ltd,SOCIAL SERVICES DAY CARE,Peoples Services,Home Care Services,A56019
London Borough of Sutton,02/04/2023,50340734,542.5,Best at Home Domiciliary Care Services Ltd,SOCIAL SERVICES DAY CARE,Peoples Services,Home Care Services,A56019
London Borough of Sutton,02/04/2023,50340784,827.97,Best at Home Domiciliary Care Services Ltd,SOCIAL SERVICES DAY CARE,Peoples Services,Home Care Services,A56019
London Borough of Sutton,02/04/2023,50340784,150,Best at Home Domiciliary Care Services Ltd,SOCIAL SERVICES DAY CARE,Peoples Services,Home Care Services,A56019
London Borough of Sutton,02/04/2023,50340793,"3,156.00",Best at Home Domiciliary Care Services Ltd,SOCIAL SERVICES DAY CARE,Peoples Services,Home Care Services,A56019
London Borough of Sutton,02/04/2023,50340800,827.97,Best at Home Domiciliary Care Services Ltd,SOCIAL SERVICES DAY CARE,Peoples Services,Home Care Services,A56019
London Borough of Sutton,02/04/2023,50340803,"3,156.00",Best at Home Domiciliary Care Services Ltd,SOCIAL SERVICES DAY CARE,Peoples Services,Home Care Services,A56019
London Borough of Sutton,02/04/2023,50340804,"3,156.00",Best at Home Domiciliary Care Services Ltd,SOCIAL SERVICES DAY CARE,Peoples Services,Home Care Services,A56019
London Borough of Sutton,02/04/2023,50340824,901.97,Best at Home Domiciliary Care Services Ltd,SOCIAL SERVICES DAY CARE,Peoples Services,Home Care Services,A56019
London Borough of Sutton,09/04/2023,50342572,867.98,Best at Home Domiciliary Care Services Ltd,SOCIAL SERVICES DAY CARE,Peoples Services,Home Care Services,A56019
London Borough of Sutton,09/04/2023,50342572,157.5,Best at Home Domiciliary Care Services Ltd,SOCIAL SERVICES DAY CARE,Peoples Services,Home Care Services,A56019
London Borough of Sutton,09/04/2023,50342581,536,Best at Home Domiciliary Care Services Ltd,SOCIAL SERVICES DAY CARE,Peoples Services,Home Care Services,A56019
London Borough of Sutton,05/02/2023,50342597,501.98,Best at Home Domiciliary Care Services Ltd,SOCIAL SERVICES DAY CARE,Peoples Services,Home Care Services,A56019
London Borough of Sutton,09/04/2023,50342601,"3,336.00",Best at Home Domiciliary Care Services Ltd,SOCIAL SERVICES DAY CARE,Peoples Services,Home Care Services,A56019
London Borough of Sutton,09/04/2023,50342606,867.98,Best at Home Domiciliary Care Services Ltd,SOCIAL SERVICES DAY CARE,Peoples Services,Home Care Services,A56019
London Borough of Sutton,09/04/2023,50342610,941.98,Best at Home Domiciliary Care Services Ltd,SOCIAL SERVICES DAY CARE,Peoples Services,Home Care Services,A56019
London Borough of Sutton,09/04/2023,50342618,"3,336.00",Best at Home Domiciliary Care Services Ltd,SOCIAL SERVICES DAY CARE,Peoples Services,Home Care Services,A56019
London Borough of Sutton,09/04/2023,50342623,"3,336.00",Best at Home Domiciliary Care Services Ltd,SOCIAL SERVICES DAY CARE,Peoples Services,Home Care Services,A56019
London Borough of Sutton,16/04/2023,50345634,867.98,Best at Home Domiciliary Care Services Ltd,SOCIAL SERVICES DAY CARE,Peoples Services,Home Care Services,A56019
London Borough of Sutton,16/04/2023,50345634,157.5,Best at Home Domiciliary Care Services Ltd,SOCIAL SERVICES DAY CARE,Peoples Services,Home Care Services,A56019
London Borough of Sutton,16/04/2023,50345642,"3,336.00",Best at Home Domiciliary Care Services Ltd,SOCIAL SERVICES DAY CARE,Peoples Services,Home Care Services,A56019
London Borough of Sutton,16/04/2023,50345669,867.98,Best at Home Domiciliary Care Services Ltd,SOCIAL SERVICES DAY CARE,Peoples Services,Home Care Services,A56019
London Borough of Sutton,16/04/2023,50345673,"3,336.00",Best at Home Domiciliary Care Services Ltd,SOCIAL SERVICES DAY CARE,Peoples Services,Home Care Services,A56019
London Borough of Sutton,16/04/2023,50345678,941.98,Best at Home Domiciliary Care Services Ltd,SOCIAL SERVICES DAY CARE,Peoples Services,Home Care Services,A56019
London Borough of Sutton,16/04/2023,50345691,"3,336.00",Best at Home Domiciliary Care Services Ltd,SOCIAL SERVICES DAY CARE,Peoples Services,Home Care Services,A56019
London Borough of Sutton,16/04/2023,50345804,514,Best at Home Domiciliary Care Services Ltd,SOCIAL SERVICES DAY CARE,Peoples Services,Home Care Services,A56019
London Borough of Sutton,31/03/2023,20047211,"10,661.00",Bestcourt UK Ltd,ACCOMMODATION BED & BREAKFAST,Environment Housing and Neighbourhoods,Bed & Breakfast,A56000
London Borough of Sutton,18/04/2023,50343884,"4,500.00",BETTER LIFE SUPPORTED LIVING LIMITED,SOCIAL SERVICES RESIDENTIAL,Peoples Services,One to One Care,A56108
London Borough of Sutton,23/03/2023,20046836,"6,715.00",Bevan Brittan LLP,LEGAL & PROFESSIONAL SERVICES,Development Growth and Regeneration,External Fees and Consultants,C20000
London Borough of Sutton,31/01/2023,20047877,"13,461.00",Bevan Brittan LLP,LEGAL & PROFESSIONAL SERVICES,Development Growth and Regeneration,External Legal Fees,C20008
London Borough of Sutton,11/04/2023,50341203,"6,681.51",Bizzy Bees Day Nursery,GRANTS & EX GRATIA PAYMENTS,Peoples Services,Payment - Nursery Funding,A51056
London Borough of Sutton,01/04/2023,50339629,"14,450.00",Blossom House Lower School,GRANTS & EX GRATIA PAYMENTS,Peoples Services,Independent School Fees,A56002
London Borough of Sutton,01/04/2023,50339630,"16,750.00",Blossom House Lower School,GRANTS & EX GRATIA PAYMENTS,Peoples Services,Independent School Fees,A56002
London Borough of Sutton,01/04/2023,50339631,"14,850.00",Blossom House Lower School,GRANTS & EX GRATIA PAYMENTS,Peoples Services,Independent School Fees,A56002
London Borough of Sutton,01/04/2023,50339632,"15,250.00",Blossom House Lower School,GRANTS & EX GRATIA PAYMENTS,Peoples Services,Independent School Fees,A56002
London Borough of Sutton,01/04/2023,50339633,"14,450.00",Blossom House Lower School,GRANTS & EX GRATIA PAYMENTS,Peoples Services,Independent School Fees,A56002
London Borough of Sutton,01/04/2023,50339634,"23,583.33",Blossom House Lower School,GRANTS & EX GRATIA PAYMENTS,Peoples Services,Independent School Fees,A56002
London Borough of Sutton,01/04/2023,50339635,"15,250.00",Blossom House Lower School,GRANTS & EX GRATIA PAYMENTS,Peoples Services,Independent School Fees,A56002
London Borough of Sutton,01/04/2023,50339636,"12,750.00",Blossom House Lower School,GRANTS & EX GRATIA PAYMENTS,Peoples Services,Independent School Fees,A56002
London Borough of Sutton,01/04/2023,50339637,"14,850.00",Blossom House Lower School,GRANTS & EX GRATIA PAYMENTS,Peoples Services,Independent School Fees,A56002
London Borough of Sutton,01/04/2023,50339638,"13,150.00",Blossom House Lower School,GRANTS & EX GRATIA PAYMENTS,Peoples Services,Independent School Fees,A56002
London Borough of Sutton,01/04/2023,50339639,500,Blossom House Lower School,GRANTS & EX GRATIA PAYMENTS,Peoples Services,Independent School Fees,A56002
London Borough of Sutton,01/04/2023,50339640,"9,416.66",Blossom House Lower School,GRANTS & EX GRATIA PAYMENTS,Peoples Services,Independent School Fees,A56002
London Borough of Sutton,01/04/2023,50339641,"15,250.00",Blossom House Lower School,GRANTS & EX GRATIA PAYMENTS,Peoples Services,Independent School Fees,A56002
London Borough of Sutton,01/04/2023,50339642,"16,750.00",Blossom House Lower School,GRANTS & EX GRATIA PAYMENTS,Peoples Services,Independent School Fees,A56002
London Borough of Sutton,01/04/2023,50339643,"15,950.00",Blossom House Lower School,GRANTS & EX GRATIA PAYMENTS,Peoples Services,Independent School Fees,A56002
London Borough of Sutton,04/04/2023,50347094,"7,950.00",Blossom House Lower School,GRANTS & EX GRATIA PAYMENTS,Peoples Services,Independent School Fees,A56002
London Borough of Sutton,31/03/2023,20047525,"2,479.24",BOC Limited,BUILDING MNTCE - SERVICES,Resources,Equipment And Materials Purchase,A40000
London Borough of Sutton,31/03/2023,20047311,"4,479.23",Bottomline Technologies Ltd,OFFICE SERVICES,Resources,IT Software Maintenance,A45045
London Borough of Sutton,14/04/2023,50342117,"2,400.00",Brama Care Ltd,SOCIAL SERVICES-HOME CARE,Peoples Services,Nursing Care - Ext Provider,A56025
London Borough of Sutton,14/04/2023,50342176,"4,736.76",Bridge House Care Centre,SOCIAL SERVICES RESIDENTIAL,Peoples Services,Nursing Care - Ext Provider,A56025
London Borough of Sutton,14/04/2023,50342176,-836.76,Bridge House Care Centre,SOCIAL SERVICES RESIDENTIAL,Peoples Services,Nursing Care - 3rd party top up payment,A56023
London Borough of Sutton,14/04/2023,50342239,"3,736.00",Bridge House Care Centre,SOCIAL SERVICES RESIDENTIAL,Peoples Services,Nursing Care - Ext Provider,A56025
London Borough of Sutton,14/04/2023,50342239,-750.4,Bridge House Care Centre,SOCIAL SERVICES RESIDENTIAL,Peoples Services,Nursing Care - 3rd party top up payment,A56023
London Borough of Sutton,14/04/2023,50342249,-750.4,Bridge House Care Centre,SOCIAL SERVICES RESIDENTIAL,Peoples Services,Nursing Care - 3rd party top up payment,A56023
London Borough of Sutton,14/04/2023,50342250,"3,848.24",Bridge House Care Centre,SOCIAL SERVICES RESIDENTIAL,Peoples Services,Nursing Care - Ext Provider,A56025
London Borough of Sutton,14/04/2023,50342250,-750.4,Bridge House Care Centre,SOCIAL SERVICES RESIDENTIAL,Peoples Services,Nursing Care - 3rd party top up payment,A56023
London Borough of Sutton,14/04/2023,50342258,-968.5,Bridge House Care Centre,SOCIAL SERVICES RESIDENTIAL,Peoples Services,Nursing Care - Ext Provider,A56025
London Borough of Sutton,14/04/2023,50342258,328.73,Bridge House Care Centre,SOCIAL SERVICES RESIDENTIAL,Peoples Services,Nursing Care - 3rd party top up payment,A56023
London Borough of Sutton,14/04/2023,50342272,"3,734.88",Bridge House Care Centre,SOCIAL SERVICES RESIDENTIAL,Peoples Services,Nursing Care - Ext Provider,A56025
London Borough of Sutton,14/04/2023,50342302,-750.4,Bridge House Care Centre,SOCIAL SERVICES RESIDENTIAL,Peoples Services,Nursing Care - 3rd party top up payment,A56023
London Borough of Sutton,14/04/2023,50342302,"3,848.24",Bridge House Care Centre,SOCIAL SERVICES RESIDENTIAL,Peoples Services,Nursing Care - Ext Provider,A56025
London Borough of Sutton,14/04/2023,50342356,"3,720.16",Bridge House Care Centre,SOCIAL SERVICES RESIDENTIAL,Peoples Services,Nursing Care - Ext Provider,A56025
London Borough of Sutton,14/04/2023,50342356,-735.68,Bridge House Care Centre,SOCIAL SERVICES RESIDENTIAL,Peoples Services,Nursing Care - 3rd party top up payment,A56023
London Borough of Sutton,14/04/2023,50342369,"3,848.24",Bridge House Care Centre,SOCIAL SERVICES RESIDENTIAL,Peoples Services,Nursing Care - Ext Provider,A56025
London Borough of Sutton,14/04/2023,50342369,-750.4,Bridge House Care Centre,SOCIAL SERVICES RESIDENTIAL,Peoples Services,Nursing Care - 3rd party top up payment,A56023
London Borough of Sutton,14/04/2023,50342381,-836.76,Bridge House Care Centre,SOCIAL SERVICES RESIDENTIAL,Peoples Services,Nursing Care - 3rd party top up payment,A56023
London Borough of Sutton,14/04/2023,50342381,"3,900.00",Bridge House Care Centre,SOCIAL SERVICES RESIDENTIAL,Peoples Services,Respite Care,A56116
London Borough of Sutton,14/04/2023,50342385,"3,734.88",Bridge House Care Centre,SOCIAL SERVICES RESIDENTIAL,Peoples Services,Nursing Care - Ext Provider,A56025
London Borough of Sutton,14/04/2023,50342385,-750.4,Bridge House Care Centre,SOCIAL SERVICES RESIDENTIAL,Peoples Services,Nursing Care - 3rd party top up payment,A56023
London Borough of Sutton,14/04/2023,50342386,"3,665.20",Bridge House Care Centre,SOCIAL SERVICES RESIDENTIAL,Peoples Services,Nursing Care - Ext Provider,A56025
London Borough of Sutton,14/04/2023,50342386,-632.64,Bridge House Care Centre,SOCIAL SERVICES RESIDENTIAL,Peoples Services,Nursing Care - 3rd party top up payment,A56023
London Borough of Sutton,14/04/2023,50342449,"3,734.88",Bridge House Care Centre,SOCIAL SERVICES RESIDENTIAL,Peoples Services,Nursing Care Short Term,A56026
London Borough of Sutton,14/04/2023,50342449,-750.4,Bridge House Care Centre,SOCIAL SERVICES RESIDENTIAL,Peoples Services,Nursing Care - 3rd party top up payment,A56023
London Borough of Sutton,14/04/2023,50342450,"3,579.44",Bridge House Care Centre,SOCIAL SERVICES RESIDENTIAL,Peoples Services,Nursing Care - Ext Provider,A56025
London Borough of Sutton,14/04/2023,50342450,-632.64,Bridge House Care Centre,SOCIAL SERVICES RESIDENTIAL,Peoples Services,Nursing Care - 3rd party top up payment,A56023
London Borough of Sutton,14/04/2023,50342500,"3,821.24",Bridge House Care Centre,SOCIAL SERVICES RESIDENTIAL,Peoples Services,Nursing Care - Ext Provider,A56025
London Borough of Sutton,14/04/2023,50342500,-836.76,Bridge House Care Centre,SOCIAL SERVICES RESIDENTIAL,Peoples Services,Nursing Care - 3rd party top up payment,A56023
London Borough of Sutton,14/04/2023,50342502,"4,978.76",Bridge House Care Centre,SOCIAL SERVICES RESIDENTIAL,Peoples Services,Nursing Care - Ext Provider,A56025
London Borough of Sutton,14/04/2023,50342502,-836.76,Bridge House Care Centre,SOCIAL SERVICES RESIDENTIAL,Peoples Services,Nursing Care - 3rd party top up payment,A56023
London Borough of Sutton,14/04/2023,50342534,"-4,503.60",Bridge House Care Centre,SOCIAL SERVICES RESIDENTIAL,Peoples Services,Nursing Care Short Term,A56026
London Borough of Sutton,14/04/2023,50342534,"1,519.12",Bridge House Care Centre,SOCIAL SERVICES RESIDENTIAL,Peoples Services,Nursing Care - 3rd party top up payment,A56023
London Borough of Sutton,14/04/2023,50342556,-836.76,Bridge House Care Centre,SOCIAL SERVICES RESIDENTIAL,Peoples Services,Nursing Care - 3rd party top up payment,A56023
London Borough of Sutton,14/04/2023,50342556,"3,821.24",Bridge House Care Centre,SOCIAL SERVICES RESIDENTIAL,Peoples Services,Nursing Care Short Term,A56026
London Borough of Sutton,31/03/2023,20047209,"3,900.00",Bridgestock Housing Services,CHILDREN'S SERVICES - RESIDENTIAL,Peoples Services,Approved Lodgings,A61000
London Borough of Sutton,31/03/2023,20047209,187.5,Bridgestock Housing Services,CHILDREN'S SERVICES - RESIDENTIAL,Peoples Services,Living Allowance,A56016
London Borough of Sutton,10/02/2023,20047210,"4,028.22",Bridgestock Housing Services,CHILDREN'S SERVICES - RESIDENTIAL,Peoples Services,Approved Lodgings,A61000
London Borough of Sutton,10/02/2023,20047210,187.5,Bridgestock Housing Services,CHILDREN'S SERVICES - RESIDENTIAL,Peoples Services,Living Allowance,A56016
London Borough of Sutton,14/04/2023,20047479,"-3,797.50",Bridgestock Housing Services,CHILDREN'S SERVICES - RESIDENTIAL,Peoples Services,Living Allowance,A56016
London Borough of Sutton,11/04/2023,50341180,"6,058.80",REDACTED - PERSONAL DATA,TEMP STAFF & CONSULTANCY,Peoples Services,Payment - Nursery Funding,A51056
London Borough of Sutton,07/03/2023,20046872,"1,323.30",British Gas,UTILITIES,Peoples Services,Electricity,A21000
London Borough of Sutton,08/03/2023,20046879,"2,377.88",British Gas,UTILITIES,Resources,Gas,A21003
London Borough of Sutton,10/03/2023,20047469,"1,181.82",British Gas,UTILITIES,HRA,Electricity,A21000
London Borough of Sutton,10/03/2023,20047470,"1,063.39",British Gas,UTILITIES,HRA,Electricity,A21000
London Borough of Sutton,04/04/2023,20047531,"1,962.23",British Gas,UTILITIES,Resources,Electricity,A21000
London Borough of Sutton,13/04/2023,20048043,"1,101.02",British Gas,UTILITIES,Resources,Electricity,A21000
London Borough of Sutton,30/03/2023,20048069,577.08,British Gas,UTILITIES,Resources,Electricity,A21000
London Borough of Sutton,14/04/2023,50342074,-772.64,British Home & Hospital For Incurables,SOCIAL SERVICES RESIDENTIAL,Peoples Services,Nursing Care - Client Cont ( Net paymt ),A56024
London Borough of Sutton,14/04/2023,50342074,"2,591.80",British Home & Hospital For Incurables,SOCIAL SERVICES RESIDENTIAL,Peoples Services,Nursing Care - Ext Provider,A56025
London Borough of Sutton,21/03/2023,20046774,452.9,Browne Jacobson LLP,FINANCIAL / INSURANCE INSTNS,Resources,Legal Services,A44025
London Borough of Sutton,01/11/2022,20046951,"16,885.97",Browne Jacobson LLP,FINANCIAL / INSURANCE INSTNS,Resources,Legal Services,A44025
London Borough of Sutton,13/04/2023,50343834,"1,833.29",Brunel SEN Multi Academy Trust,CHILDREN'S SERVICES - SEN SERVICES,Peoples Services,Top-up Funding,A51016
London Borough of Sutton,02/04/2023,20046969,"30,865.00",BuildVantage Limited,ACCOMMODATION BED & BREAKFAST,Environment Housing and Neighbourhoods,Bed & Breakfast,A56000
London Borough of Sutton,11/04/2023,50341098,"12,783.60",Bumpsa Daisies Nurserys,GRANTS & EX GRATIA PAYMENTS,Peoples Services,Payment - Nursery Funding,A51056
London Borough of Sutton,11/04/2023,50341223,"4,563.00",Bumpsa Daisies Nurserys,GRANTS & EX GRATIA PAYMENTS,Peoples Services,Payment - Nursery Funding,A51056
London Borough of Sutton,14/04/2023,50342192,-836.76,Bupa Care Services,SOCIAL SERVICES RESIDENTIAL,Peoples Services,Nursing Care - 3rd party top up payment,A56023
London Borough of Sutton,14/04/2023,50342192,"3,821.24",Bupa Care Services,SOCIAL SERVICES RESIDENTIAL,Peoples Services,Nursing Care - Ext Provider,A56025
London Borough of Sutton,14/04/2023,50342193,-836.76,Bupa Care Services,SOCIAL SERVICES RESIDENTIAL,Peoples Services,Nursing Care - 3rd party top up payment,A56023
London Borough of Sutton,14/04/2023,50342193,"3,821.24",Bupa Care Services,SOCIAL SERVICES RESIDENTIAL,Peoples Services,Nursing Care Short Term,A56026
London Borough of Sutton,14/04/2023,50342224,-836.76,Bupa Care Services,SOCIAL SERVICES RESIDENTIAL,Peoples Services,Nursing Care - 3rd party top up payment,A56023
London Borough of Sutton,14/04/2023,50342224,"7,084.60",Bupa Care Services,SOCIAL SERVICES RESIDENTIAL,Peoples Services,Nursing Care Short Term,A56026
London Borough of Sutton,14/04/2023,50342408,"-1,436.76",Bupa Care Services,SOCIAL SERVICES RESIDENTIAL,Peoples Services,Nursing Care - 3rd party top up payment,A56023
London Borough of Sutton,11/04/2023,50341101,"15,533.28",Busy Bees Day Nurseries Ltd,GRANTS & EX GRATIA PAYMENTS,Peoples Services,Payment - Nursery Funding,A51056
London Borough of Sutton,11/04/2023,50341226,608.4,Busy Bees Day Nurseries Ltd,GRANTS & EX GRATIA PAYMENTS,Peoples Services,Payment - Nursery Funding,A51056
London Borough of Sutton,11/04/2023,50341100,"13,024.80",Busy Bees Day Nurseries Ltd,GRANTS & EX GRATIA PAYMENTS,Peoples Services,Payment - Nursery Funding,A51056
London Borough of Sutton,14/04/2023,50342148,"8,118.48",Butterfly's Care Homes Ltd,SOCIAL SERVICES RESIDENTIAL,Peoples Services,Residential Care - Ext Provider,A56114
London Borough of Sutton,24/03/2023,50339609,"4,071.43",Cambian Childcare Ltd,CHILDREN'S SERVICES - FOSTERING & ADOPTION SERVICES,Peoples Services,Independent School Fees,A56002
London Borough of Sutton,25/04/2023,50347162,"4,207.14",Cambian Childcare Ltd,CHILDREN'S SERVICES - FOSTERING & ADOPTION SERVICES,Peoples Services,Independent School Fees,A56002
London Borough of Sutton,04/04/2023,50338401,"1,075.20",Camp Beaumont Day Care Limited,SOCIAL SERVICES DAY CARE,Resources,Other Supplies & Services,A44291
London Borough of Sutton,24/03/2023,50339608,"7,050.67",Canbury School LTD,GRANTS & EX GRATIA PAYMENTS,Peoples Services,Independent School Fees,A56002
London Borough of Sutton,14/04/2023,50342149,-965.84,Canterbury Oast Trust,SOCIAL SERVICES RESIDENTIAL,Peoples Services,Residential Care - Client Cont ( Net Paymt ),A56113
London Borough of Sutton,14/04/2023,50342149,204.72,Canterbury Oast Trust,SOCIAL SERVICES RESIDENTIAL,Peoples Services,One to One Care,A56108
London Borough of Sutton,14/04/2023,50342149,"4,060.72",Canterbury Oast Trust,SOCIAL SERVICES RESIDENTIAL,Peoples Services,Residential Care - Ext Provider,A56114
London Borough of Sutton,05/04/2023,50340643,"37,642.68",Canterbury Support Ltd,CHILDREN'S SERVICE - OTHER,Peoples Services,Residential Care-Children,A56115
London Borough of Sutton,03/04/2023,20046831,"5,357.10",Care Advocates Ltd,MANAGEMENT & TRAINING SERVICES,Peoples Services,Approved Lodgings,A61000
London Borough of Sutton,30/03/2023,50338379,"1,800.71",Care Advocates Ltd,MANAGEMENT & TRAINING SERVICES,Peoples Services,Supported Living,A56088
London Borough of Sutton,30/03/2023,50338379,"2,465.82",Care Advocates Ltd,MANAGEMENT & TRAINING SERVICES,Peoples Services,Supported Living,A56088
London Borough of Sutton,30/03/2023,50338379,"2,573.31",Care Advocates Ltd,MANAGEMENT & TRAINING SERVICES,Peoples Services,Supported Living,A56088
London Borough of Sutton,30/03/2023,50338382,"-3,635.06",Care Advocates Ltd,MANAGEMENT & TRAINING SERVICES,Peoples Services,Supported Living,A56088
London Borough of Sutton,30/03/2023,50338382,"6,547.20",Care Advocates Ltd,MANAGEMENT & TRAINING SERVICES,Peoples Services,Supported Living,A56088
London Borough of Sutton,30/03/2023,50338382,"2,573.31",Care Advocates Ltd,MANAGEMENT & TRAINING SERVICES,Peoples Services,Supported Living,A56088
London Borough of Sutton,30/03/2023,50338387,"3,909.72",Care Advocates Ltd,MANAGEMENT & TRAINING SERVICES,Peoples Services,Supported Living,A56088
London Borough of Sutton,30/03/2023,50338387,"2,976.00",Care Advocates Ltd,MANAGEMENT & TRAINING SERVICES,Peoples Services,Supported Living,A56088
London Borough of Sutton,30/03/2023,50338387,"2,573.31",Care Advocates Ltd,MANAGEMENT & TRAINING SERVICES,Peoples Services,Supported Living,A56088
London Borough of Sutton,30/03/2023,50338388,"2,662.85",Care Advocates Ltd,MANAGEMENT & TRAINING SERVICES,Peoples Services,Supported Living,A56088
London Borough of Sutton,30/03/2023,50338388,"1,554.34",Care Advocates Ltd,MANAGEMENT & TRAINING SERVICES,Peoples Services,Supported Living,A56088
London Borough of Sutton,30/03/2023,50338388,"1,242.53",Care Advocates Ltd,MANAGEMENT & TRAINING SERVICES,Peoples Services,Supported Living,A56088
London Borough of Sutton,14/04/2023,50342126,"-1,700.00",Care Assist Ltd.,SOCIAL SERVICES RESIDENTIAL,Peoples Services,Nursing Care - 3rd party top up payment,A56023
London Borough of Sutton,14/04/2023,50342126,"3,400.00",Care Assist Ltd.,SOCIAL SERVICES RESIDENTIAL,Peoples Services,Residential Care - Ext Provider,A56114
London Borough of Sutton,14/04/2023,50342102,"3,320.32",Care Concern Group ,SOCIAL SERVICES RESIDENTIAL,Peoples Services,Residential Care - Ext Provider,A56114
London Borough of Sutton,18/04/2023,50343891,"2,003.57",Care Connexions UK Limited,SOCIAL SERVICES RESIDENTIAL,Peoples Services,One to One Care,A56108
London Borough of Sutton,14/04/2023,50342035,"3,768.36",Care Direct Uk Ltd ,SOCIAL SERVICES RESIDENTIAL,Peoples Services,Residential Care - Ext Provider,A56114
London Borough of Sutton,26/02/2023,50337466,962.61,Care More Ltd,SOCIAL SERVICES RESIDENTIAL,Peoples Services,Home Care Services,A56019
London Borough of Sutton,26/02/2023,50337467,787.54,Care More Ltd,SOCIAL SERVICES RESIDENTIAL,Peoples Services,Home Care Services,A56019
London Borough of Sutton,19/03/2023,50337468,787.54,Care More Ltd,SOCIAL SERVICES RESIDENTIAL,Peoples Services,Home Care Services,A56019
London Borough of Sutton,26/03/2023,50337469,787.54,Care More Ltd,SOCIAL SERVICES RESIDENTIAL,Peoples Services,Home Care Services,A56019
London Borough of Sutton,26/02/2023,50337470,728,Care More Ltd,SOCIAL SERVICES RESIDENTIAL,Peoples Services,Home Care Services,A56019
London Borough of Sutton,19/03/2023,50337471,728,Care More Ltd,SOCIAL SERVICES RESIDENTIAL,Peoples Services,Home Care Services,A56019
London Borough of Sutton,26/03/2023,50337472,728,Care More Ltd,SOCIAL SERVICES RESIDENTIAL,Peoples Services,Home Care Services,A56019
London Borough of Sutton,19/03/2023,50337497,917.07,Care More Ltd,SOCIAL SERVICES RESIDENTIAL,Peoples Services,Home Care Services,A56019
London Borough of Sutton,26/03/2023,50337498,917.07,Care More Ltd,SOCIAL SERVICES RESIDENTIAL,Peoples Services,Home Care Services,A56019
London Borough of Sutton,26/02/2023,50337508,773.54,Care More Ltd,SOCIAL SERVICES RESIDENTIAL,Peoples Services,Home Care Services,A56019
London Borough of Sutton,19/03/2023,50337509,773.54,Care More Ltd,SOCIAL SERVICES RESIDENTIAL,Peoples Services,Home Care Services,A56019
London Borough of Sutton,26/03/2023,50337510,773.54,Care More Ltd,SOCIAL SERVICES RESIDENTIAL,Peoples Services,Home Care Services,A56019
London Borough of Sutton,26/02/2023,50337526,773.54,Care More Ltd,SOCIAL SERVICES RESIDENTIAL,Peoples Services,Home Care Services,A56019
London Borough of Sutton,19/03/2023,50337527,773.54,Care More Ltd,SOCIAL SERVICES RESIDENTIAL,Peoples Services,Home Care Services,A56019
London Borough of Sutton,26/03/2023,50337528,773.54,Care More Ltd,SOCIAL SERVICES RESIDENTIAL,Peoples Services,Home Care Services,A56019
London Borough of Sutton,26/02/2023,50337541,20,Care More Ltd,SOCIAL SERVICES RESIDENTIAL,Peoples Services,Home Care Services,A56019
London Borough of Sutton,26/02/2023,50337541,917.07,Care More Ltd,SOCIAL SERVICES RESIDENTIAL,Peoples Services,Home Care Services,A56019
London Borough of Sutton,19/03/2023,50337542,20,Care More Ltd,SOCIAL SERVICES RESIDENTIAL,Peoples Services,Home Care Services,A56019
London Borough of Sutton,19/03/2023,50337542,917.07,Care More Ltd,SOCIAL SERVICES RESIDENTIAL,Peoples Services,Home Care Services,A56019
London Borough of Sutton,26/03/2023,50337543,19.93,Care More Ltd,SOCIAL SERVICES RESIDENTIAL,Peoples Services,Home Care Services,A56019
London Borough of Sutton,26/03/2023,50337543,917.14,Care More Ltd,SOCIAL SERVICES RESIDENTIAL,Peoples Services,Home Care Services,A56019
London Borough of Sutton,26/02/2023,50337589,591.54,Care More Ltd,SOCIAL SERVICES RESIDENTIAL,Peoples Services,Home Care Services,A56019
London Borough of Sutton,19/03/2023,50337590,591.54,Care More Ltd,SOCIAL SERVICES RESIDENTIAL,Peoples Services,Home Care Services,A56019
London Borough of Sutton,26/03/2023,50337591,591.54,Care More Ltd,SOCIAL SERVICES RESIDENTIAL,Peoples Services,Home Care Services,A56019
London Borough of Sutton,26/02/2023,50337592,773.54,Care More Ltd,SOCIAL SERVICES RESIDENTIAL,Peoples Services,Home Care Services,A56019
London Borough of Sutton,26/02/2023,50337626,893.54,Care More Ltd,SOCIAL SERVICES RESIDENTIAL,Peoples Services,Home Care Services,A56019
London Borough of Sutton,19/03/2023,50337627,893.54,Care More Ltd,SOCIAL SERVICES RESIDENTIAL,Peoples Services,Home Care Services,A56019
London Borough of Sutton,26/03/2023,50337628,893.54,Care More Ltd,SOCIAL SERVICES RESIDENTIAL,Peoples Services,Home Care Services,A56019
London Borough of Sutton,19/03/2023,50337638,364.02,Care More Ltd,SOCIAL SERVICES RESIDENTIAL,Peoples Services,Home Care Services,A56019
London Borough of Sutton,19/03/2023,50337638,204.75,Care More Ltd,SOCIAL SERVICES RESIDENTIAL,Peoples Services,Home Care Services,A56019
London Borough of Sutton,26/03/2023,50337639,364.02,Care More Ltd,SOCIAL SERVICES RESIDENTIAL,Peoples Services,Home Care Services,A56019
London Borough of Sutton,26/03/2023,50337639,204.75,Care More Ltd,SOCIAL SERVICES RESIDENTIAL,Peoples Services,Home Care Services,A56019
London Borough of Sutton,19/03/2023,50337648,687.58,Care More Ltd,SOCIAL SERVICES RESIDENTIAL,Peoples Services,Home Care Services,A56019
London Borough of Sutton,26/03/2023,50337649,962.61,Care More Ltd,SOCIAL SERVICES RESIDENTIAL,Peoples Services,Home Care Services,A56019
London Borough of Sutton,26/02/2023,50337650,826,Care More Ltd,SOCIAL SERVICES RESIDENTIAL,Peoples Services,Home Care Services,A56019
London Borough of Sutton,26/02/2023,50337667,773.54,Care More Ltd,SOCIAL SERVICES RESIDENTIAL,Peoples Services,Home Care Services,A56019
London Borough of Sutton,26/02/2023,50337667,45.5,Care More Ltd,SOCIAL SERVICES RESIDENTIAL,Peoples Services,Home Care Services,A56019
London Borough of Sutton,19/03/2023,50337668,773.54,Care More Ltd,SOCIAL SERVICES RESIDENTIAL,Peoples Services,Home Care Services,A56019
London Borough of Sutton,19/03/2023,50337668,45.5,Care More Ltd,SOCIAL SERVICES RESIDENTIAL,Peoples Services,Home Care Services,A56019
London Borough of Sutton,26/03/2023,50337669,773.54,Care More Ltd,SOCIAL SERVICES RESIDENTIAL,Peoples Services,Home Care Services,A56019
London Borough of Sutton,26/03/2023,50337669,45.5,Care More Ltd,SOCIAL SERVICES RESIDENTIAL,Peoples Services,Home Care Services,A56019
London Borough of Sutton,30/03/2023,50339054,773.54,Care More Ltd,SOCIAL SERVICES RESIDENTIAL,Peoples Services,Home Care Services,A56019
London Borough of Sutton,30/03/2023,50339073,546.07,Care More Ltd,SOCIAL SERVICES RESIDENTIAL,Peoples Services,Home Care Services,A56019
London Borough of Sutton,30/03/2023,50339082,773.54,Care More Ltd,SOCIAL SERVICES RESIDENTIAL,Peoples Services,Home Care Services,A56019
London Borough of Sutton,30/03/2023,50339109,893.54,Care More Ltd,SOCIAL SERVICES RESIDENTIAL,Peoples Services,Home Care Services,A56019
London Borough of Sutton,30/03/2023,50339155,773.54,Care More Ltd,SOCIAL SERVICES RESIDENTIAL,Peoples Services,Home Care Services,A56019
London Borough of Sutton,30/03/2023,50339156,787.54,Care More Ltd,SOCIAL SERVICES RESIDENTIAL,Peoples Services,Home Care Services,A56019
London Borough of Sutton,30/03/2023,50339160,728,Care More Ltd,SOCIAL SERVICES RESIDENTIAL,Peoples Services,Home Care Services,A56019
London Borough of Sutton,30/03/2023,50339161,33,Care More Ltd,SOCIAL SERVICES RESIDENTIAL,Peoples Services,Home Care Services,A56019
London Borough of Sutton,30/03/2023,50339161,904.07,Care More Ltd,SOCIAL SERVICES RESIDENTIAL,Peoples Services,Home Care Services,A56019
London Borough of Sutton,30/03/2023,50339163,773.54,Care More Ltd,SOCIAL SERVICES RESIDENTIAL,Peoples Services,Home Care Services,A56019
London Borough of Sutton,30/03/2023,50339163,45.5,Care More Ltd,SOCIAL SERVICES RESIDENTIAL,Peoples Services,Home Care Services,A56019
London Borough of Sutton,30/03/2023,50339167,826,Care More Ltd,SOCIAL SERVICES RESIDENTIAL,Peoples Services,Home Care Services,A56019
London Borough of Sutton,02/04/2023,50340678,893.54,Care More Ltd,SOCIAL SERVICES RESIDENTIAL,Peoples Services,Home Care Services,A56019
London Borough of Sutton,02/04/2023,50340690,20,Care More Ltd,SOCIAL SERVICES RESIDENTIAL,Peoples Services,Home Care Services,A56019
London Borough of Sutton,02/04/2023,50340690,917.07,Care More Ltd,SOCIAL SERVICES RESIDENTIAL,Peoples Services,Home Care Services,A56019
London Borough of Sutton,02/04/2023,50340714,364.02,Care More Ltd,SOCIAL SERVICES RESIDENTIAL,Peoples Services,Home Care Services,A56019
London Borough of Sutton,02/04/2023,50340714,204.75,Care More Ltd,SOCIAL SERVICES RESIDENTIAL,Peoples Services,Home Care Services,A56019
London Borough of Sutton,02/04/2023,50340715,917.07,Care More Ltd,SOCIAL SERVICES RESIDENTIAL,Peoples Services,Home Care Services,A56019
London Borough of Sutton,02/04/2023,50340719,962.61,Care More Ltd,SOCIAL SERVICES RESIDENTIAL,Peoples Services,Home Care Services,A56019
London Borough of Sutton,02/04/2023,50340727,773.54,Care More Ltd,SOCIAL SERVICES RESIDENTIAL,Peoples Services,Home Care Services,A56019
London Borough of Sutton,02/04/2023,50340729,787.54,Care More Ltd,SOCIAL SERVICES RESIDENTIAL,Peoples Services,Home Care Services,A56019
London Borough of Sutton,02/04/2023,50340730,728,Care More Ltd,SOCIAL SERVICES RESIDENTIAL,Peoples Services,Home Care Services,A56019
London Borough of Sutton,02/04/2023,50340737,773.54,Care More Ltd,SOCIAL SERVICES RESIDENTIAL,Peoples Services,Home Care Services,A56019
London Borough of Sutton,02/04/2023,50340737,45.5,Care More Ltd,SOCIAL SERVICES RESIDENTIAL,Peoples Services,Home Care Services,A56019
London Borough of Sutton,02/04/2023,50340850,591.54,Care More Ltd,SOCIAL SERVICES RESIDENTIAL,Peoples Services,Home Care Services,A56019
London Borough of Sutton,19/03/2023,50341666,819.07,Care More Ltd,SOCIAL SERVICES RESIDENTIAL,Peoples Services,Home Care Services,A56019
London Borough of Sutton,26/03/2023,50341667,819.07,Care More Ltd,SOCIAL SERVICES RESIDENTIAL,Peoples Services,Home Care Services,A56019
London Borough of Sutton,02/04/2023,50341669,823.54,Care More Ltd,SOCIAL SERVICES RESIDENTIAL,Peoples Services,Home Care Services,A56019
London Borough of Sutton,16/04/2023,50347748,20,Care More Ltd,SOCIAL SERVICES RESIDENTIAL,Peoples Services,Home Care Services,A56019
London Borough of Sutton,16/04/2023,50347748,917.07,Care More Ltd,SOCIAL SERVICES RESIDENTIAL,Peoples Services,Home Care Services,A56019
London Borough of Sutton,09/04/2023,50347749,773.54,Care More Ltd,SOCIAL SERVICES RESIDENTIAL,Peoples Services,Home Care Services,A56019
London Borough of Sutton,09/04/2023,50347749,45.5,Care More Ltd,SOCIAL SERVICES RESIDENTIAL,Peoples Services,Home Care Services,A56019
London Borough of Sutton,16/04/2023,50347750,773.54,Care More Ltd,SOCIAL SERVICES RESIDENTIAL,Peoples Services,Home Care Services,A56019
London Borough of Sutton,16/04/2023,50347750,45.5,Care More Ltd,SOCIAL SERVICES RESIDENTIAL,Peoples Services,Home Care Services,A56019
London Borough of Sutton,09/04/2023,50347754,33,Care More Ltd,SOCIAL SERVICES RESIDENTIAL,Peoples Services,Home Care Services,A56019
London Borough of Sutton,09/04/2023,50347754,917.07,Care More Ltd,SOCIAL SERVICES RESIDENTIAL,Peoples Services,Home Care Services,A56019
London Borough of Sutton,09/04/2023,50347755,962.61,Care More Ltd,SOCIAL SERVICES RESIDENTIAL,Peoples Services,Home Care Services,A56019
London Borough of Sutton,09/04/2023,50347845,773.54,Care More Ltd,SOCIAL SERVICES RESIDENTIAL,Peoples Services,Home Care Services,A56019
London Borough of Sutton,09/04/2023,50347920,637.07,Care More Ltd,SOCIAL SERVICES RESIDENTIAL,Peoples Services,Home Care Services,A56019
London Borough of Sutton,16/04/2023,50347921,637.07,Care More Ltd,SOCIAL SERVICES RESIDENTIAL,Peoples Services,Home Care Services,A56019
London Borough of Sutton,09/04/2023,50347922,637.05,Care More Ltd,SOCIAL SERVICES RESIDENTIAL,Peoples Services,Home Care Services,A56019
London Borough of Sutton,16/04/2023,50347923,819.07,Care More Ltd,SOCIAL SERVICES RESIDENTIAL,Peoples Services,Home Care Services,A56019
London Borough of Sutton,09/04/2023,50347943,893.54,Care More Ltd,SOCIAL SERVICES RESIDENTIAL,Peoples Services,Home Care Services,A56019
London Borough of Sutton,16/04/2023,50347944,893.54,Care More Ltd,SOCIAL SERVICES RESIDENTIAL,Peoples Services,Home Care Services,A56019
London Borough of Sutton,09/04/2023,50347955,364.02,Care More Ltd,SOCIAL SERVICES RESIDENTIAL,Peoples Services,Home Care Services,A56019
London Borough of Sutton,09/04/2023,50347955,204.75,Care More Ltd,SOCIAL SERVICES RESIDENTIAL,Peoples Services,Home Care Services,A56019
London Borough of Sutton,16/04/2023,50347956,364.02,Care More Ltd,SOCIAL SERVICES RESIDENTIAL,Peoples Services,Home Care Services,A56019
London Borough of Sutton,16/04/2023,50347956,204.75,Care More Ltd,SOCIAL SERVICES RESIDENTIAL,Peoples Services,Home Care Services,A56019
London Borough of Sutton,09/04/2023,50347957,773.54,Care More Ltd,SOCIAL SERVICES RESIDENTIAL,Peoples Services,Home Care Services,A56019
London Borough of Sutton,16/04/2023,50347958,773.54,Care More Ltd,SOCIAL SERVICES RESIDENTIAL,Peoples Services,Home Care Services,A56019
London Borough of Sutton,09/04/2023,50347959,787.54,Care More Ltd,SOCIAL SERVICES RESIDENTIAL,Peoples Services,Home Care Services,A56019
London Borough of Sutton,16/04/2023,50347960,787.54,Care More Ltd,SOCIAL SERVICES RESIDENTIAL,Peoples Services,Home Care Services,A56019
London Borough of Sutton,09/04/2023,50347961,728,Care More Ltd,SOCIAL SERVICES RESIDENTIAL,Peoples Services,Home Care Services,A56019
London Borough of Sutton,16/04/2023,50347962,728,Care More Ltd,SOCIAL SERVICES RESIDENTIAL,Peoples Services,Home Care Services,A56019
London Borough of Sutton,09/04/2023,50347963,917.07,Care More Ltd,SOCIAL SERVICES RESIDENTIAL,Peoples Services,Home Care Services,A56019
London Borough of Sutton,16/04/2023,50347964,917.07,Care More Ltd,SOCIAL SERVICES RESIDENTIAL,Peoples Services,Home Care Services,A56019
London Borough of Sutton,16/04/2023,50347970,962.61,Care More Ltd,SOCIAL SERVICES RESIDENTIAL,Peoples Services,Home Care Services,A56019
London Borough of Sutton,14/04/2023,50342115,-438.8,Care UK Homecare Ltd,SOCIAL SERVICES RESIDENTIAL,Peoples Services,Residential Care - Client Cont ( Net Paymt ),A56113
London Borough of Sutton,14/04/2023,50342115,"4,772.96",Care UK Homecare Ltd,SOCIAL SERVICES RESIDENTIAL,Peoples Services,Residential Care - Ext Provider,A56114
London Borough of Sutton,14/04/2023,50342127,"4,400.00",Care UK Homecare Ltd,SOCIAL SERVICES RESIDENTIAL,Peoples Services,Residential Care - Ext Provider,A56114
London Borough of Sutton,14/04/2023,50342244,-997.99,Care UK Homecare Ltd,SOCIAL SERVICES RESIDENTIAL,Peoples Services,Nursing Care - Ext Provider,A56025
London Borough of Sutton,14/04/2023,50342244,328.73,Care UK Homecare Ltd,SOCIAL SERVICES RESIDENTIAL,Peoples Services,Nursing Care - 3rd party top up payment,A56023
London Borough of Sutton,14/04/2023,50342447,-662.24,Care UK Homecare Ltd,SOCIAL SERVICES RESIDENTIAL,Peoples Services,Nursing Care - 3rd party top up payment,A56023
London Borough of Sutton,14/04/2023,50342447,"3,696.24",Care UK Homecare Ltd,SOCIAL SERVICES RESIDENTIAL,Peoples Services,Nursing Care - Ext Provider,A56025
London Borough of Sutton,14/04/2023,50342544,"18,891.43",Care UK Homecare Ltd,SOCIAL SERVICES RESIDENTIAL,Peoples Services,Nursing Care Short Term,A56026
London Borough of Sutton,14/04/2023,50342544,"-3,466.58",Care UK Homecare Ltd,SOCIAL SERVICES RESIDENTIAL,Peoples Services,Nursing Care - 3rd party top up payment,A56023
London Borough of Sutton,14/04/2023,50342545,"3,257.14",Care UK Homecare Ltd,SOCIAL SERVICES RESIDENTIAL,Peoples Services,Nursing Care Short Term,A56026
London Borough of Sutton,14/04/2023,50342545,-597.69,Care UK Homecare Ltd,SOCIAL SERVICES RESIDENTIAL,Peoples Services,Nursing Care - 3rd party top up payment,A56023
London Borough of Sutton,14/04/2023,50342552,"4,560.00",Care UK Homecare Ltd,SOCIAL SERVICES RESIDENTIAL,Peoples Services,Nursing Care - Ext Provider,A56025
London Borough of Sutton,14/04/2023,50342552,-836.76,Care UK Homecare Ltd,SOCIAL SERVICES RESIDENTIAL,Peoples Services,Nursing Care - 3rd party top up payment,A56023
London Borough of Sutton,28/03/2023,50345604,"5,931.52",Care Unlimited Domcare Ltd,SOCIAL SERVICES DAY CARE,Peoples Services,Supported Living,A56088
London Borough of Sutton,08/04/2023,50343981,"3,992.80",Care4Care Services Ltd,SOCIAL SERVICES DAY CARE,Peoples Services,Home Care Services,A56019
London Borough of Sutton,08/04/2023,50343989,"1,026.70",Care4Care Services Ltd,SOCIAL SERVICES DAY CARE,Peoples Services,Home Care Services,A56019
London Borough of Sutton,08/04/2023,50343990,899,Care4Care Services Ltd,SOCIAL SERVICES DAY CARE,Peoples Services,Home Care Services,A56019
London Borough of Sutton,08/04/2023,50344019,"3,992.80",Care4Care Services Ltd,SOCIAL SERVICES DAY CARE,Peoples Services,Home Care Services,A56019
London Borough of Sutton,08/04/2023,50344020,996.6,Care4Care Services Ltd,SOCIAL SERVICES DAY CARE,Peoples Services,Home Care Services,A56019
London Borough of Sutton,08/04/2023,50344022,"1,387.25",Care4Care Services Ltd,SOCIAL SERVICES DAY CARE,Peoples Services,Home Care Services,A56019
London Borough of Sutton,08/04/2023,50344024,899,Care4Care Services Ltd,SOCIAL SERVICES DAY CARE,Peoples Services,Home Care Services,A56019
London Borough of Sutton,19/04/2023,50345565,"3,038.40",Care4Care Services Ltd,SOCIAL SERVICES DAY CARE,Peoples Services,Home Care Services,A56019
London Borough of Sutton,14/04/2023,50342080,"6,600.00",CAREBASE (CLARE) LTD,SOCIAL SERVICES RESIDENTIAL,Peoples Services,Nursing Care - Ext Provider,A56025
London Borough of Sutton,30/11/2022,20038537,"31,791.96",Careium UK Limited,ACCOMMODATION - OTHER,Peoples Services,Other Agencies - Third Party,A57000
London Borough of Sutton,03/04/2023,20046898,580,Caremark (Sutton),SOCIAL SERVICES DAY CARE,Peoples Services,Home Care Services,A56019
London Borough of Sutton,20/03/2023,20047482,"30,284.50",Caremark (Sutton),SOCIAL SERVICES DAY CARE,Peoples Services,Provider Contract Payments,A44290
London Borough of Sutton,19/03/2023,50338166,803.37,Caremark (Sutton),SOCIAL SERVICES DAY CARE,Peoples Services,Home Care Services,A56019
London Borough of Sutton,19/03/2023,50338166,32.25,Caremark (Sutton),SOCIAL SERVICES DAY CARE,Peoples Services,Home Care Services,A56019
London Borough of Sutton,19/03/2023,50338182,500.41,Caremark (Sutton),SOCIAL SERVICES DAY CARE,Peoples Services,Home Care Services,A56019
London Borough of Sutton,19/03/2023,50338196,580.36,Caremark (Sutton),SOCIAL SERVICES DAY CARE,Peoples Services,Home Care Services,A56019
London Borough of Sutton,19/03/2023,50338216,"1,053.30",Caremark (Sutton),SOCIAL SERVICES DAY CARE,Peoples Services,Home Care Services,A56019
London Borough of Sutton,19/03/2023,50338240,938.37,Caremark (Sutton),SOCIAL SERVICES DAY CARE,Peoples Services,Home Care Services,A56019
London Borough of Sutton,26/03/2023,50343372,540.75,Caremark (Sutton),SOCIAL SERVICES DAY CARE,Peoples Services,Home Care Services,A56019
London Borough of Sutton,26/03/2023,50343376,803.37,Caremark (Sutton),SOCIAL SERVICES DAY CARE,Peoples Services,Home Care Services,A56019
London Borough of Sutton,26/03/2023,50343376,32.25,Caremark (Sutton),SOCIAL SERVICES DAY CARE,Peoples Services,Home Care Services,A56019
London Borough of Sutton,02/04/2023,50343383,500.41,Caremark (Sutton),SOCIAL SERVICES DAY CARE,Peoples Services,Home Care Services,A56019
London Borough of Sutton,26/03/2023,50343384,500.41,Caremark (Sutton),SOCIAL SERVICES DAY CARE,Peoples Services,Home Care Services,A56019
London Borough of Sutton,02/04/2023,50343406,562.25,Caremark (Sutton),SOCIAL SERVICES DAY CARE,Peoples Services,Home Care Services,A56019
London Borough of Sutton,02/04/2023,50343408,803.37,Caremark (Sutton),SOCIAL SERVICES DAY CARE,Peoples Services,Home Care Services,A56019
London Borough of Sutton,02/04/2023,50343408,32.25,Caremark (Sutton),SOCIAL SERVICES DAY CARE,Peoples Services,Home Care Services,A56019
London Borough of Sutton,26/03/2023,50343439,580.36,Caremark (Sutton),SOCIAL SERVICES DAY CARE,Peoples Services,Home Care Services,A56019
London Borough of Sutton,02/04/2023,50343440,580.36,Caremark (Sutton),SOCIAL SERVICES DAY CARE,Peoples Services,Home Care Services,A56019
London Borough of Sutton,26/03/2023,50343445,"1,053.30",Caremark (Sutton),SOCIAL SERVICES DAY CARE,Peoples Services,Home Care Services,A56019
London Borough of Sutton,02/04/2023,50343446,"1,053.30",Caremark (Sutton),SOCIAL SERVICES DAY CARE,Peoples Services,Home Care Services,A56019
London Borough of Sutton,26/03/2023,50343471,938.37,Caremark (Sutton),SOCIAL SERVICES DAY CARE,Peoples Services,Home Care Services,A56019
London Borough of Sutton,02/04/2023,50343472,938.37,Caremark (Sutton),SOCIAL SERVICES DAY CARE,Peoples Services,Home Care Services,A56019
London Borough of Sutton,02/04/2023,50343498,"1,875.50",Caremark (Sutton),SOCIAL SERVICES DAY CARE,Peoples Services,Home Care Services,A56019
London Borough of Sutton,19/03/2023,50343499,"2,787.41",Caremark (Sutton),SOCIAL SERVICES DAY CARE,Peoples Services,Home Care Services,A56019
London Borough of Sutton,19/03/2023,50343510,"1,658.95",Caremark (Sutton),SOCIAL SERVICES DAY CARE,Peoples Services,Home Care Services,A56019
London Borough of Sutton,17/04/2023,50343858,750,Caremark (Sutton),SOCIAL SERVICES DAY CARE,Peoples Services,Miscellaneous Expenses,A49000
London Borough of Sutton,26/03/2023,50344039,"2,231.08",Caremark (Sutton),SOCIAL SERVICES DAY CARE,Peoples Services,Home Care Services,A56019
London Borough of Sutton,02/04/2023,50344041,"1,658.95",Caremark (Sutton),SOCIAL SERVICES DAY CARE,Peoples Services,Home Care Services,A56019
London Borough of Sutton,26/03/2023,50344042,"1,658.95",Caremark (Sutton),SOCIAL SERVICES DAY CARE,Peoples Services,Home Care Services,A56019
London Borough of Sutton,03/02/2023,50344043,"1,897.00",Caremark (Sutton),SOCIAL SERVICES DAY CARE,Peoples Services,Home Care Services,A56019
London Borough of Sutton,03/02/2023,50344071,"1,053.30",Caremark (Sutton),SOCIAL SERVICES DAY CARE,Peoples Services,Home Care Services,A56019
London Borough of Sutton,03/02/2023,50344072,"1,106.68",Caremark (Sutton),SOCIAL SERVICES DAY CARE,Peoples Services,Home Care Services,A56019
London Borough of Sutton,03/02/2023,50344075,902.67,Caremark (Sutton),SOCIAL SERVICES DAY CARE,Peoples Services,Home Care Services,A56019
London Borough of Sutton,03/02/2023,50344075,215,Caremark (Sutton),SOCIAL SERVICES DAY CARE,Peoples Services,Home Care Services,A56019
London Borough of Sutton,16/04/2023,50348126,948.77,Caremark (Sutton),SOCIAL SERVICES DAY CARE,Peoples Services,Home Care Services,A56019
London Borough of Sutton,14/04/2023,50342200,"5,879.88",Caretech Community Services Ltd,SOCIAL SERVICES RESIDENTIAL,Peoples Services,Residential Care - Ext Provider,A56114
London Borough of Sutton,14/04/2023,50342200,-710,Caretech Community Services Ltd,SOCIAL SERVICES RESIDENTIAL,Peoples Services,Residential Care - Client Cont ( Net Paymt ),A56113
London Borough of Sutton,14/04/2023,50342440,"6,030.96",Caretech Community Services Ltd,SOCIAL SERVICES RESIDENTIAL,Peoples Services,Residential Care - Ext Provider,A56114
London Borough of Sutton,14/04/2023,50342440,-627.8,Caretech Community Services Ltd,SOCIAL SERVICES RESIDENTIAL,Peoples Services,Residential Care - Client Cont ( Net Paymt ),A56113
London Borough of Sutton,14/04/2023,50342548,"5,621.56",Caretech Community Services Ltd,SOCIAL SERVICES RESIDENTIAL,Peoples Services,Residential Care - Ext Provider,A56114
London Borough of Sutton,18/04/2023,50343835,"7,800.00",CareTrade Charitable Trust,CHILDREN'S SERVICES - SEN SERVICES,Peoples Services,Independent School Fees,A56002
London Borough of Sutton,11/04/2023,50340154,"11,286.00",Carew Academy,CHILDREN'S SERVICES - RESIDENTIAL,Peoples Services,Payment - pension supplementary grant,A51057
London Borough of Sutton,11/04/2023,50340155,"4,076.70",Carew Academy,CHILDREN'S SERVICES - RESIDENTIAL,Peoples Services,Payment - Teachers Pay Grant,A51026
London Borough of Sutton,11/04/2023,50340161,"11,296.86",Carew Academy,CHILDREN'S SERVICES - RESIDENTIAL,Peoples Services,Payment - Teachers Pension Grant,A51027
London Borough of Sutton,31/03/2023,20046791,"3,095.57",Caridon Young Living Ltd,CHILDREN'S SERVICES - RESIDENTIAL,Peoples Services,Approved Lodgings,A61000
London Borough of Sutton,31/03/2023,20046792,"3,985.71",Caridon Young Living Ltd,CHILDREN'S SERVICES - RESIDENTIAL,Peoples Services,Approved Lodgings,A61000
London Borough of Sutton,31/03/2023,20046793,"4,539.29",Caridon Young Living Ltd,CHILDREN'S SERVICES - RESIDENTIAL,Peoples Services,Approved Lodgings,A61000
London Borough of Sutton,31/03/2023,50340623,"20,482.15",Caridon Young Living Ltd,CHILDREN'S SERVICES - RESIDENTIAL,Peoples Services,Approved Lodgings,A61000
London Borough of Sutton,31/03/2023,50340623,276.78,Caridon Young Living Ltd,CHILDREN'S SERVICES - RESIDENTIAL,Peoples Services,Approved Lodgings,A61000
London Borough of Sutton,18/04/2023,50343906,"2,078.57",Care Support Partners Ltd,SOCIAL SERVICES RESIDENTIAL,Peoples Services,Supported Living,A56088
London Borough of Sutton,18/04/2023,50343906,767.14,Care Support Partners Ltd,SOCIAL SERVICES RESIDENTIAL,Peoples Services,Supported Living,A56088
London Borough of Sutton,18/04/2023,50343906,613.71,Care Support Partners Ltd,SOCIAL SERVICES RESIDENTIAL,Peoples Services,Supported Living,A56088
London Borough of Sutton,14/04/2023,50342185,"5,684.08",Carlene House,SOCIAL SERVICES RESIDENTIAL,Peoples Services,Residential Care - Ext Provider,A56114
London Borough of Sutton,14/04/2023,50342292,"5,684.08",Carlene House,SOCIAL SERVICES RESIDENTIAL,Peoples Services,Residential Care - Ext Provider,A56114
London Borough of Sutton,14/04/2023,50342319,"5,684.08",Carlene House,SOCIAL SERVICES RESIDENTIAL,Peoples Services,Residential Care - Ext Provider,A56114
London Borough of Sutton,14/04/2023,50342320,"5,684.08",Carlene House,SOCIAL SERVICES RESIDENTIAL,Peoples Services,Residential Care - Ext Provider,A56114
London Borough of Sutton,14/04/2023,50342321,"5,684.08",Carlene House,SOCIAL SERVICES RESIDENTIAL,Peoples Services,Residential Care - Ext Provider,A56114
London Borough of Sutton,14/04/2023,50342341,"5,684.08",Carlene House,SOCIAL SERVICES RESIDENTIAL,Peoples Services,Residential Care - Ext Provider,A56114
London Borough of Sutton,14/04/2023,50342406,"5,684.08",Carlene House,SOCIAL SERVICES RESIDENTIAL,Peoples Services,Residential Care - Ext Provider,A56114
London Borough of Sutton,09/04/2023,50343991,"1,409.80",Carlene House,SOCIAL SERVICES RESIDENTIAL,Peoples Services,Home Care Services,A56019
London Borough of Sutton,09/04/2023,50344004,"1,335.60",Carlene House,SOCIAL SERVICES RESIDENTIAL,Peoples Services,Home Care Services,A56019
London Borough of Sutton,09/04/2023,50344005,"1,187.20",Carlene House,SOCIAL SERVICES RESIDENTIAL,Peoples Services,Home Care Services,A56019
London Borough of Sutton,09/04/2023,50344006,"1,409.80",Carlene House,SOCIAL SERVICES RESIDENTIAL,Peoples Services,Home Care Services,A56019
London Borough of Sutton,09/04/2023,50344025,964.6,Carlene House,SOCIAL SERVICES RESIDENTIAL,Peoples Services,Home Care Services,A56019
London Borough of Sutton,09/04/2023,50344026,"3,524.52",Carlene House,SOCIAL SERVICES RESIDENTIAL,Peoples Services,Home Care Services,A56019
London Borough of Sutton,09/04/2023,50344077,712.08,Carlene House,SOCIAL SERVICES RESIDENTIAL,Peoples Services,Supported Living,A56088
London Borough of Sutton,09/04/2023,50344077,"1,898.64",Carlene House,SOCIAL SERVICES RESIDENTIAL,Peoples Services,Supported Living,A56088
London Borough of Sutton,09/04/2023,50344077,"1,312.88",Carlene House,SOCIAL SERVICES RESIDENTIAL,Peoples Services,Supported Living,A56088
London Borough of Sutton,11/04/2023,50341152,504.9,REDACTED - PERSONAL DATA,GRANTS & EX GRATIA PAYMENTS,Peoples Services,Payment - Nursery Funding,A51056
London Borough of Sutton,11/04/2023,50341149,"1,262.25",REDACTED - PERSONAL DATA,GRANTS & EX GRATIA PAYMENTS,Peoples Services,Payment - Nursery Funding,A51056
London Borough of Sutton,11/04/2023,50341096,"1,767.15",REDACTED - PERSONAL DATA,GRANTS & EX GRATIA PAYMENTS,Peoples Services,Payment - Nursery Funding,A51056
London Borough of Sutton,07/04/2023,50340245,"50,223.56",Carshalton Boys Sports College (Academy),GRANTS & EX GRATIA PAYMENTS,Peoples Services,Top-up Funding,A51016
London Borough of Sutton,11/04/2023,50342029,"27,784.86",Catch 22 Charity Limited,CHILDREN'S SERVICES - RESIDENTIAL,Peoples Services,Residential Care-Children,A56115
London Borough of Sutton,11/04/2023,50342030,"27,784.86",Catch 22 Charity Limited,CHILDREN'S SERVICES - RESIDENTIAL,Peoples Services,Residential Care-Children,A56115
London Borough of Sutton,11/04/2023,50342034,"27,784.86",Catch 22 Charity Limited,CHILDREN'S SERVICES - RESIDENTIAL,Peoples Services,Residential Care-Children,A56115
London Borough of Sutton,11/04/2023,50341150,522.6,REDACTED - PERSONAL DATA,GRANTS & EX GRATIA PAYMENTS,Peoples Services,Payment - Nursery Funding,A51056
London Borough of Sutton,22/03/2023,20046102,600.71,Central & North West London Nhs Foundation Trust,SOCIAL SERVICES - OTHER,Health and Wellbeing,Provider Contract Payments,A44290
London Borough of Sutton,31/03/2023,20048280,"31,950.89",Charles Taylor Services Ltd,FINANCIAL / INSURANCE INSTNS,Resources,General Insurance (Excl Premises & Transport),A44260
London Borough of Sutton,31/03/2023,20048281,"29,116.30",Charles Taylor Services Ltd,FINANCIAL / INSURANCE INSTNS,Resources,General Insurance (Excl Premises & Transport),A44260
London Borough of Sutton,05/04/2023,50339718,596.95,REDACTED - PERSONAL DATA,CHILDREN'S SERVICES - SEN SERVICES,Peoples Services,Miscellaneous Expenses,A49000
London Borough of Sutton,11/04/2023,50341105,"7,767.05",Cheam Baptist Church Pre-School,GRANTS & EX GRATIA PAYMENTS,Peoples Services,Payment - Nursery Funding,A51056
London Borough of Sutton,11/04/2023,50341228,567.84,Cheam Baptist Church Pre-School,GRANTS & EX GRATIA PAYMENTS,Peoples Services,Payment - Nursery Funding,A51056
London Borough of Sutton,07/04/2023,50340247,"28,139.43",Cheam Common Infants School -ACADEMY,GRANTS & EX GRATIA PAYMENTS,Peoples Services,Top-up Funding,A51016
London Borough of Sutton,11/04/2023,50340300,"24,343.20",Cheam Common Infants School -ACADEMY,GRANTS & EX GRATIA PAYMENTS,Peoples Services,Place Funding,A56110
London Borough of Sutton,07/04/2023,50340248,"23,686.05",Cheam Common Junior Academy,GRANTS & EX GRATIA PAYMENTS,Peoples Services,Top-up Funding,A51016
London Borough of Sutton,07/04/2023,50340250,"104,397.28",Cheam High School (Academy),GRANTS & EX GRATIA PAYMENTS,Peoples Services,Top-up Funding,A51016
London Borough of Sutton,07/04/2023,50340250,"17,845.00",Cheam High School (Academy),GRANTS & EX GRATIA PAYMENTS,Peoples Services,Top-up Funding,A51016
London Borough of Sutton,07/04/2023,50340267,"74,769.11",Cheam High School (Academy),GRANTS & EX GRATIA PAYMENTS,Peoples Services,Top-up Funding,A51016
London Borough of Sutton,07/04/2023,50340267,"328,641.42",Cheam High School (Academy),GRANTS & EX GRATIA PAYMENTS,Peoples Services,Top-up Funding,A51016
London Borough of Sutton,07/04/2023,50340251,"65,931.80",Cheam Park Farm Primary School ,GRANTS & EX GRATIA PAYMENTS,Peoples Services,Top-up Funding,A51016
London Borough of Sutton,11/04/2023,50340302,"13,174.20",Cheam Park Farm Primary School ,GRANTS & EX GRATIA PAYMENTS,Peoples Services,Place Funding,A56110
London Borough of Sutton,14/04/2023,50342179,"4,150.40",Chegworth Nursing Home Bayswift Ltd,SOCIAL SERVICES RESIDENTIAL,Peoples Services,Nursing Care - Ext Provider,A56025
London Borough of Sutton,14/04/2023,50342184,"3,753.20",Chegworth Nursing Home Bayswift Ltd,SOCIAL SERVICES RESIDENTIAL,Peoples Services,Nursing Care - Ext Provider,A56025
London Borough of Sutton,14/04/2023,50342184,-735.68,Chegworth Nursing Home Bayswift Ltd,SOCIAL SERVICES RESIDENTIAL,Peoples Services,Nursing Care - 3rd party top up payment,A56023
London Borough of Sutton,14/04/2023,50342203,-662.24,Chegworth Nursing Home Bayswift Ltd,SOCIAL SERVICES RESIDENTIAL,Peoples Services,Nursing Care - 3rd party top up payment,A56023
London Borough of Sutton,14/04/2023,50342203,"4,955.56",Chegworth Nursing Home Bayswift Ltd,SOCIAL SERVICES RESIDENTIAL,Peoples Services,Nursing Care Short Term,A56026
London Borough of Sutton,14/04/2023,50342230,"3,734.88",Chegworth Nursing Home Bayswift Ltd,SOCIAL SERVICES RESIDENTIAL,Peoples Services,Nursing Care Short Term,A56026
London Borough of Sutton,14/04/2023,50342230,-750.4,Chegworth Nursing Home Bayswift Ltd,SOCIAL SERVICES RESIDENTIAL,Peoples Services,Nursing Care - 3rd party top up payment,A56023
London Borough of Sutton,14/04/2023,50342231,"3,037.07",Chegworth Nursing Home Bayswift Ltd,SOCIAL SERVICES RESIDENTIAL,Peoples Services,Nursing Care Short Term,A56026
London Borough of Sutton,14/04/2023,50342231,-651.61,Chegworth Nursing Home Bayswift Ltd,SOCIAL SERVICES RESIDENTIAL,Peoples Services,Nursing Care - 3rd party top up payment,A56023
London Borough of Sutton,14/04/2023,50342232,"3,821.24",Chegworth Nursing Home Bayswift Ltd,SOCIAL SERVICES RESIDENTIAL,Peoples Services,Nursing Care Short Term,A56026
London Borough of Sutton,14/04/2023,50342232,-836.76,Chegworth Nursing Home Bayswift Ltd,SOCIAL SERVICES RESIDENTIAL,Peoples Services,Nursing Care - 3rd party top up payment,A56023
London Borough of Sutton,14/04/2023,50342333,"3,193.43",Chegworth Nursing Home Bayswift Ltd,SOCIAL SERVICES RESIDENTIAL,Peoples Services,Nursing Care Short Term,A56026
London Borough of Sutton,14/04/2023,50342333,-567.8,Chegworth Nursing Home Bayswift Ltd,SOCIAL SERVICES RESIDENTIAL,Peoples Services,Nursing Care - 3rd party top up payment,A56023
London Borough of Sutton,14/04/2023,50342357,-632.64,Chegworth Nursing Home Bayswift Ltd,SOCIAL SERVICES RESIDENTIAL,Peoples Services,Nursing Care - 3rd party top up payment,A56023
London Borough of Sutton,14/04/2023,50342357,"3,919.08",Chegworth Nursing Home Bayswift Ltd,SOCIAL SERVICES RESIDENTIAL,Peoples Services,Nursing Care - Ext Provider,A56025
London Borough of Sutton,14/04/2023,50342358,"4,149.92",Chegworth Nursing Home Bayswift Ltd,SOCIAL SERVICES RESIDENTIAL,Peoples Services,Nursing Care - Ext Provider,A56025
London Borough of Sutton,14/04/2023,50342358,-750.4,Chegworth Nursing Home Bayswift Ltd,SOCIAL SERVICES RESIDENTIAL,Peoples Services,Nursing Care - 3rd party top up payment,A56023
London Borough of Sutton,14/04/2023,50342396,"2,905.28",Chegworth Nursing Home Bayswift Ltd,SOCIAL SERVICES RESIDENTIAL,Peoples Services,Nursing Care Short Term,A56026
London Borough of Sutton,14/04/2023,50342401,"3,665.20",Chegworth Nursing Home Bayswift Ltd,SOCIAL SERVICES RESIDENTIAL,Peoples Services,Nursing Care - Ext Provider,A56025
London Borough of Sutton,14/04/2023,50342401,-632.64,Chegworth Nursing Home Bayswift Ltd,SOCIAL SERVICES RESIDENTIAL,Peoples Services,Nursing Care - 3rd party top up payment,A56023
London Borough of Sutton,14/04/2023,50342430,"3,848.24",Chegworth Nursing Home Bayswift Ltd,SOCIAL SERVICES RESIDENTIAL,Peoples Services,Nursing Care - Ext Provider,A56025
London Borough of Sutton,14/04/2023,50342430,-750.4,Chegworth Nursing Home Bayswift Ltd,SOCIAL SERVICES RESIDENTIAL,Peoples Services,Nursing Care - 3rd party top up payment,A56023
London Borough of Sutton,14/04/2023,50342444,-836.76,Chegworth Nursing Home Bayswift Ltd,SOCIAL SERVICES RESIDENTIAL,Peoples Services,Nursing Care - 3rd party top up payment,A56023
London Borough of Sutton,14/04/2023,50342444,"3,821.24",Chegworth Nursing Home Bayswift Ltd,SOCIAL SERVICES RESIDENTIAL,Peoples Services,Nursing Care Short Term,A56026
London Borough of Sutton,14/04/2023,50342451,"3,665.20",Chegworth Nursing Home Bayswift Ltd,SOCIAL SERVICES RESIDENTIAL,Peoples Services,Nursing Care - Ext Provider,A56025
London Borough of Sutton,14/04/2023,50342451,-632.64,Chegworth Nursing Home Bayswift Ltd,SOCIAL SERVICES RESIDENTIAL,Peoples Services,Nursing Care - 3rd party top up payment,A56023
London Borough of Sutton,14/04/2023,50342452,"3,900.00",Chegworth Nursing Home Bayswift Ltd,SOCIAL SERVICES RESIDENTIAL,Peoples Services,Nursing Care - Ext Provider,A56025
London Borough of Sutton,14/04/2023,50342452,-836.76,Chegworth Nursing Home Bayswift Ltd,SOCIAL SERVICES RESIDENTIAL,Peoples Services,Nursing Care - 3rd party top up payment,A56023
London Borough of Sutton,14/04/2023,50342480,"3,821.24",Chegworth Nursing Home Bayswift Ltd,SOCIAL SERVICES RESIDENTIAL,Peoples Services,Nursing Care Short Term,A56026
London Borough of Sutton,14/04/2023,50342480,-836.76,Chegworth Nursing Home Bayswift Ltd,SOCIAL SERVICES RESIDENTIAL,Peoples Services,Nursing Care - 3rd party top up payment,A56023
London Borough of Sutton,14/04/2023,50342512,"3,734.88",Chegworth Nursing Home Bayswift Ltd,SOCIAL SERVICES RESIDENTIAL,Peoples Services,Nursing Care Short Term,A56026
London Borough of Sutton,14/04/2023,50342512,-750.4,Chegworth Nursing Home Bayswift Ltd,SOCIAL SERVICES RESIDENTIAL,Peoples Services,Nursing Care - 3rd party top up payment,A56023
London Borough of Sutton,14/04/2023,50342536,"3,900.00",Chegworth Nursing Home Bayswift Ltd,SOCIAL SERVICES RESIDENTIAL,Peoples Services,Nursing Care - Ext Provider,A56025
London Borough of Sutton,14/04/2023,50342536,-836.76,Chegworth Nursing Home Bayswift Ltd,SOCIAL SERVICES RESIDENTIAL,Peoples Services,Nursing Care - 3rd party top up payment,A56023
London Borough of Sutton,14/04/2023,50342558,-735.68,Chegworth Nursing Home Bayswift Ltd,SOCIAL SERVICES RESIDENTIAL,Peoples Services,Nursing Care - 3rd party top up payment,A56023
London Borough of Sutton,14/04/2023,50342558,"3,720.16",Chegworth Nursing Home Bayswift Ltd,SOCIAL SERVICES RESIDENTIAL,Peoples Services,Nursing Care - Ext Provider,A56025
London Borough of Sutton,14/04/2023,50342225,"3,486.32",Cherry Lodge,SOCIAL SERVICES RESIDENTIAL,Peoples Services,Residential Care - Ext Provider,A56114
London Borough of Sutton,14/04/2023,50342539,"2,895.32",Cherry Lodge,SOCIAL SERVICES RESIDENTIAL,Peoples Services,Residential Care - Ext Provider,A56114
London Borough of Sutton,14/04/2023,50342539,-460.04,Cherry Lodge,SOCIAL SERVICES RESIDENTIAL,Peoples Services,Residential Care - Client Cont ( Net Paymt ),A56113
London Borough of Sutton,14/04/2023,50342160,-735.68,CHHG Ltd,SOCIAL SERVICES RESIDENTIAL,Peoples Services,Nursing Care - 3rd party top up payment,A56023
London Borough of Sutton,14/04/2023,50342160,"3,927.68",CHHG Ltd,SOCIAL SERVICES RESIDENTIAL,Peoples Services,Nursing Care - Ext Provider,A56025
London Borough of Sutton,10/04/2023,50347098,"6,576.60",Children's Trust,CHILDREN'S SERVICES - DAY CARE,Peoples Services,Independent School Fees,A56002
London Borough of Sutton,10/04/2023,50347100,"6,678.00",Children's Trust,CHILDREN'S SERVICES - DAY CARE,Peoples Services,Independent School Fees,A56002
London Borough of Sutton,10/04/2023,50347101,"6,648.00",Children's Trust,CHILDREN'S SERVICES - DAY CARE,Peoples Services,Independent School Fees,A56002
London Borough of Sutton,11/04/2023,50341280,"4,039.20",Chiltern Day Nursery,GRANTS & EX GRATIA PAYMENTS,Peoples Services,Payment - Nursery Funding,A51056
London Borough of Sutton,14/04/2023,50342395,"7,809.32",Choice Care Group (Surrey) Ltd,SOCIAL SERVICES RESIDENTIAL,Peoples Services,Residential Care - Ext Provider,A56114
London Borough of Sutton,14/04/2023,50342443,"13,295.88",Choice Care Group (Surrey) Ltd,SOCIAL SERVICES RESIDENTIAL,Peoples Services,Residential Care - Ext Provider,A56114
London Borough of Sutton,14/04/2023,50342472,"7,512.24",Choice Care Group (Surrey) Ltd,SOCIAL SERVICES RESIDENTIAL,Peoples Services,Residential Care - Ext Provider,A56114
London Borough of Sutton,14/04/2023,50342511,"8,682.92",Choice Care Group (Surrey) Ltd,SOCIAL SERVICES RESIDENTIAL,Peoples Services,Residential Care - Ext Provider,A56114
London Borough of Sutton,30/03/2023,20046618,"1,602.36",Choice Support,GRANTS & EX GRATIA PAYMENTS,Peoples Services,Provider Contract Payments,A44290
London Borough of Sutton,27/03/2023,20046619,"1,818.00",Choice Support,GRANTS & EX GRATIA PAYMENTS,Peoples Services,Provider Contract Payments,A44290
London Borough of Sutton,27/03/2023,20046620,"2,055.00",Choice Support,GRANTS & EX GRATIA PAYMENTS,Peoples Services,Provider Contract Payments,A44290
London Borough of Sutton,27/03/2023,20046621,"1,736.36",Choice Support,GRANTS & EX GRATIA PAYMENTS,Peoples Services,Provider Contract Payments,A44290
London Borough of Sutton,30/03/2023,20046623,"1,602.36",Choice Support,GRANTS & EX GRATIA PAYMENTS,Peoples Services,Provider Contract Payments,A44290
London Borough of Sutton,30/03/2023,20046624,"1,602.36",Choice Support,GRANTS & EX GRATIA PAYMENTS,Peoples Services,Provider Contract Payments,A44290
London Borough of Sutton,30/03/2023,50338370,"6,350.25",Choice Support,GRANTS & EX GRATIA PAYMENTS,Peoples Services,Supported Living,A56088
London Borough of Sutton,30/03/2023,50338370,244.51,Choice Support,GRANTS & EX GRATIA PAYMENTS,Peoples Services,Supported Living,A56088
London Borough of Sutton,30/03/2023,50338370,633.82,Choice Support,GRANTS & EX GRATIA PAYMENTS,Peoples Services,Supported Living,A56088
London Borough of Sutton,30/03/2023,50338371,"2,812.81",Choice Support,GRANTS & EX GRATIA PAYMENTS,Peoples Services,Supported Living,A56088
London Borough of Sutton,30/03/2023,50338371,"1,642.41",Choice Support,GRANTS & EX GRATIA PAYMENTS,Peoples Services,Supported Living,A56088
London Borough of Sutton,30/03/2023,50338371,244.51,Choice Support,GRANTS & EX GRATIA PAYMENTS,Peoples Services,Supported Living,A56088
London Borough of Sutton,30/03/2023,50338371,633.82,Choice Support,GRANTS & EX GRATIA PAYMENTS,Peoples Services,Supported Living,A56088
London Borough of Sutton,30/03/2023,50338373,"3,578.95",Choice Support,GRANTS & EX GRATIA PAYMENTS,Peoples Services,Supported Living,A56088
London Borough of Sutton,30/03/2023,50338373,"3,156.32",Choice Support,GRANTS & EX GRATIA PAYMENTS,Peoples Services,Supported Living,A56088
London Borough of Sutton,30/03/2023,50338373,244.51,Choice Support,GRANTS & EX GRATIA PAYMENTS,Peoples Services,Supported Living,A56088
London Borough of Sutton,30/03/2023,50338373,633.82,Choice Support,GRANTS & EX GRATIA PAYMENTS,Peoples Services,Supported Living,A56088
London Borough of Sutton,30/03/2023,50338377,"2,335.23",Choice Support,GRANTS & EX GRATIA PAYMENTS,Peoples Services,Supported Living,A56088
London Borough of Sutton,30/03/2023,50338377,"1,529.44",Choice Support,GRANTS & EX GRATIA PAYMENTS,Peoples Services,Supported Living,A56088
London Borough of Sutton,30/03/2023,50338377,244.51,Choice Support,GRANTS & EX GRATIA PAYMENTS,Peoples Services,Supported Living,A56088
London Borough of Sutton,30/03/2023,50338377,633.82,Choice Support,GRANTS & EX GRATIA PAYMENTS,Peoples Services,Supported Living,A56088
London Borough of Sutton,30/03/2023,50338378,"1,694.95",Choice Support,GRANTS & EX GRATIA PAYMENTS,Peoples Services,Supported Living,A56088
London Borough of Sutton,30/03/2023,50338378,"1,793.38",Choice Support,GRANTS & EX GRATIA PAYMENTS,Peoples Services,Supported Living,A56088
London Borough of Sutton,30/03/2023,50338378,244.51,Choice Support,GRANTS & EX GRATIA PAYMENTS,Peoples Services,Supported Living,A56088
London Borough of Sutton,30/03/2023,50338378,633.82,Choice Support,GRANTS & EX GRATIA PAYMENTS,Peoples Services,Supported Living,A56088
London Borough of Sutton,30/03/2023,50338381,"5,843.99",Choice Support,GRANTS & EX GRATIA PAYMENTS,Peoples Services,Supported Living,A56088
London Borough of Sutton,30/03/2023,50338381,887.35,Choice Support,GRANTS & EX GRATIA PAYMENTS,Peoples Services,Supported Living,A56088
London Borough of Sutton,30/03/2023,50338383,"5,866.31",Choice Support,GRANTS & EX GRATIA PAYMENTS,Peoples Services,Supported Living,A56088
London Borough of Sutton,30/03/2023,50338383,887.35,Choice Support,GRANTS & EX GRATIA PAYMENTS,Peoples Services,Supported Living,A56088
London Borough of Sutton,30/03/2023,50338384,887.35,Choice Support,GRANTS & EX GRATIA PAYMENTS,Peoples Services,Supported Living,A56088
London Borough of Sutton,30/03/2023,50338384,"5,015.36",Choice Support,GRANTS & EX GRATIA PAYMENTS,Peoples Services,Supported Living,A56088
London Borough of Sutton,30/03/2023,50338385,"6,920.93",Choice Support,GRANTS & EX GRATIA PAYMENTS,Peoples Services,Supported Living,A56088
London Borough of Sutton,30/03/2023,50338385,887.35,Choice Support,GRANTS & EX GRATIA PAYMENTS,Peoples Services,Supported Living,A56088
London Borough of Sutton,14/04/2023,50342107,"5,716.12",Choice Support,GRANTS & EX GRATIA PAYMENTS,Peoples Services,Residential Care - Ext Provider,A56114
London Borough of Sutton,18/04/2023,50343868,"4,297.89",Choice Support,GRANTS & EX GRATIA PAYMENTS,Peoples Services,Supported Living,A56088
London Borough of Sutton,18/04/2023,50343870,478.24,Choice Support,GRANTS & EX GRATIA PAYMENTS,Peoples Services,Supported Living,A56088
London Borough of Sutton,18/04/2023,50343870,"1,761.43",Choice Support,GRANTS & EX GRATIA PAYMENTS,Peoples Services,Supported Living,A56088
London Borough of Sutton,18/04/2023,50343870,"2,395.54",Choice Support,GRANTS & EX GRATIA PAYMENTS,Peoples Services,Supported Living,A56088
London Borough of Sutton,18/04/2023,50343870,118.37,Choice Support,GRANTS & EX GRATIA PAYMENTS,Peoples Services,Supported Living,A56088
London Borough of Sutton,18/04/2023,50343871,478.24,Choice Support,GRANTS & EX GRATIA PAYMENTS,Peoples Services,Supported Living,A56088
London Borough of Sutton,18/04/2023,50343871,"2,360.31",Choice Support,GRANTS & EX GRATIA PAYMENTS,Peoples Services,Supported Living,A56088
London Borough of Sutton,18/04/2023,50343871,"1,659.26",Choice Support,GRANTS & EX GRATIA PAYMENTS,Peoples Services,Supported Living,A56088
London Borough of Sutton,18/04/2023,50343871,651.04,Choice Support,GRANTS & EX GRATIA PAYMENTS,Peoples Services,Supported Living,A56088
London Borough of Sutton,18/04/2023,50343873,"6,041.83",Choice Support,GRANTS & EX GRATIA PAYMENTS,Peoples Services,Supported Living,A56088
London Borough of Sutton,18/04/2023,50343873,"14,097.60",Choice Support,GRANTS & EX GRATIA PAYMENTS,Peoples Services,Supported Living,A56088
London Borough of Sutton,18/04/2023,50343873,"1,519.23",Choice Support,GRANTS & EX GRATIA PAYMENTS,Peoples Services,Supported Living,A56088
London Borough of Sutton,18/04/2023,50343874,"1,091.40",Choice Support,GRANTS & EX GRATIA PAYMENTS,Peoples Services,Supported Living,A56088
London Borough of Sutton,18/04/2023,50343874,"1,180.24",Choice Support,GRANTS & EX GRATIA PAYMENTS,Peoples Services,Supported Living,A56088
London Borough of Sutton,18/04/2023,50343874,"3,147.26",Choice Support,GRANTS & EX GRATIA PAYMENTS,Peoples Services,Supported Living,A56088
London Borough of Sutton,18/04/2023,50343875,873.13,Choice Support,GRANTS & EX GRATIA PAYMENTS,Peoples Services,Supported Living,A56088
London Borough of Sutton,18/04/2023,50343875,840.47,Choice Support,GRANTS & EX GRATIA PAYMENTS,Peoples Services,Supported Living,A56088
London Borough of Sutton,18/04/2023,50343875,"3,218.79",Choice Support,GRANTS & EX GRATIA PAYMENTS,Peoples Services,Supported Living,A56088
London Borough of Sutton,18/04/2023,50343881,478.24,Choice Support,GRANTS & EX GRATIA PAYMENTS,Peoples Services,Supported Living,A56088
London Borough of Sutton,18/04/2023,50343881,"2,078.49",Choice Support,GRANTS & EX GRATIA PAYMENTS,Peoples Services,Supported Living,A56088
London Borough of Sutton,18/04/2023,50343881,"1,606.41",Choice Support,GRANTS & EX GRATIA PAYMENTS,Peoples Services,Supported Living,A56088
London Borough of Sutton,18/04/2023,50343881,651.04,Choice Support,GRANTS & EX GRATIA PAYMENTS,Peoples Services,Supported Living,A56088
London Borough of Sutton,18/04/2023,50343887,"1,091.40",Choice Support,GRANTS & EX GRATIA PAYMENTS,Peoples Services,Supported Living,A56088
London Borough of Sutton,18/04/2023,50343887,"1,180.24",Choice Support,GRANTS & EX GRATIA PAYMENTS,Peoples Services,Supported Living,A56088
London Borough of Sutton,18/04/2023,50343887,"2,718.09",Choice Support,GRANTS & EX GRATIA PAYMENTS,Peoples Services,Supported Living,A56088
London Borough of Sutton,18/04/2023,50343892,486.69,Choice Support,GRANTS & EX GRATIA PAYMENTS,Peoples Services,Supported Living,A56088
London Borough of Sutton,18/04/2023,50343892,"2,325.09",Choice Support,GRANTS & EX GRATIA PAYMENTS,Peoples Services,Supported Living,A56088
London Borough of Sutton,18/04/2023,50343892,"1,633.20",Choice Support,GRANTS & EX GRATIA PAYMENTS,Peoples Services,Supported Living,A56088
London Borough of Sutton,18/04/2023,50343892,651.04,Choice Support,GRANTS & EX GRATIA PAYMENTS,Peoples Services,Supported Living,A56088
London Borough of Sutton,18/04/2023,50343893,478.24,Choice Support,GRANTS & EX GRATIA PAYMENTS,Peoples Services,Supported Living,A56088
London Borough of Sutton,18/04/2023,50343893,"2,184.17",Choice Support,GRANTS & EX GRATIA PAYMENTS,Peoples Services,Supported Living,A56088
London Borough of Sutton,18/04/2023,50343893,"1,409.14",Choice Support,GRANTS & EX GRATIA PAYMENTS,Peoples Services,Supported Living,A56088
London Borough of Sutton,18/04/2023,50343893,118.37,Choice Support,GRANTS & EX GRATIA PAYMENTS,Peoples Services,Supported Living,A56088
London Borough of Sutton,18/04/2023,50343895,"5,364.64",Choice Support,GRANTS & EX GRATIA PAYMENTS,Peoples Services,Supported Living,A56088
London Borough of Sutton,18/04/2023,50343895,873.13,Choice Support,GRANTS & EX GRATIA PAYMENTS,Peoples Services,Supported Living,A56088
London Borough of Sutton,18/04/2023,50343897,"6,041.83",Choice Support,GRANTS & EX GRATIA PAYMENTS,Peoples Services,Supported Living,A56088
London Borough of Sutton,18/04/2023,50343897,895.09,Choice Support,GRANTS & EX GRATIA PAYMENTS,Peoples Services,Supported Living,A56088
London Borough of Sutton,18/04/2023,50343897,"1,519.23",Choice Support,GRANTS & EX GRATIA PAYMENTS,Peoples Services,Supported Living,A56088
London Borough of Sutton,18/04/2023,50343899,"1,091.40",Choice Support,GRANTS & EX GRATIA PAYMENTS,Peoples Services,Supported Living,A56088
London Borough of Sutton,18/04/2023,50343899,"1,180.24",Choice Support,GRANTS & EX GRATIA PAYMENTS,Peoples Services,Supported Living,A56088
London Borough of Sutton,18/04/2023,50343899,"3,111.51",Choice Support,GRANTS & EX GRATIA PAYMENTS,Peoples Services,Supported Living,A56088
London Borough of Sutton,18/04/2023,50343902,873.13,Choice Support,GRANTS & EX GRATIA PAYMENTS,Peoples Services,Supported Living,A56088
London Borough of Sutton,18/04/2023,50343902,840.47,Choice Support,GRANTS & EX GRATIA PAYMENTS,Peoples Services,Supported Living,A56088
London Borough of Sutton,18/04/2023,50343902,"3,719.49",Choice Support,GRANTS & EX GRATIA PAYMENTS,Peoples Services,Supported Living,A56088
London Borough of Sutton,18/04/2023,50343917,"1,091.40",Choice Support,GRANTS & EX GRATIA PAYMENTS,Peoples Services,Supported Living,A56088
London Borough of Sutton,18/04/2023,50343917,"1,180.24",Choice Support,GRANTS & EX GRATIA PAYMENTS,Peoples Services,Supported Living,A56088
London Borough of Sutton,18/04/2023,50343917,"5,328.90",Choice Support,GRANTS & EX GRATIA PAYMENTS,Peoples Services,Supported Living,A56088
London Borough of Sutton,18/04/2023,50343918,"1,091.40",Choice Support,GRANTS & EX GRATIA PAYMENTS,Peoples Services,Supported Living,A56088
London Borough of Sutton,18/04/2023,50343918,"1,180.24",Choice Support,GRANTS & EX GRATIA PAYMENTS,Peoples Services,Supported Living,A56088
London Borough of Sutton,18/04/2023,50343918,"3,111.51",Choice Support,GRANTS & EX GRATIA PAYMENTS,Peoples Services,Supported Living,A56088
London Borough of Sutton,18/04/2023,50343920,873.13,Choice Support,GRANTS & EX GRATIA PAYMENTS,Peoples Services,Supported Living,A56088
London Borough of Sutton,18/04/2023,50343920,"4,148.66",Choice Support,GRANTS & EX GRATIA PAYMENTS,Peoples Services,Supported Living,A56088
London Borough of Sutton,18/04/2023,50343923,"1,091.40",Choice Support,GRANTS & EX GRATIA PAYMENTS,Peoples Services,Supported Living,A56088
London Borough of Sutton,18/04/2023,50343923,"1,180.24",Choice Support,GRANTS & EX GRATIA PAYMENTS,Peoples Services,Supported Living,A56088
London Borough of Sutton,18/04/2023,50343923,"3,218.79",Choice Support,GRANTS & EX GRATIA PAYMENTS,Peoples Services,Supported Living,A56088
London Borough of Sutton,18/04/2023,50343928,"6,041.83",Choice Support,GRANTS & EX GRATIA PAYMENTS,Peoples Services,Supported Living,A56088
London Borough of Sutton,18/04/2023,50343928,"1,566.40",Choice Support,GRANTS & EX GRATIA PAYMENTS,Peoples Services,Supported Living,A56088
London Borough of Sutton,18/04/2023,50343928,"1,519.23",Choice Support,GRANTS & EX GRATIA PAYMENTS,Peoples Services,Supported Living,A56088
London Borough of Sutton,18/04/2023,50343934,873.13,Choice Support,GRANTS & EX GRATIA PAYMENTS,Peoples Services,Supported Living,A56088
London Borough of Sutton,18/04/2023,50343934,840.47,Choice Support,GRANTS & EX GRATIA PAYMENTS,Peoples Services,Supported Living,A56088
London Borough of Sutton,18/04/2023,50343934,"4,148.66",Choice Support,GRANTS & EX GRATIA PAYMENTS,Peoples Services,Supported Living,A56088
London Borough of Sutton,18/04/2023,50343936,873.13,Choice Support,GRANTS & EX GRATIA PAYMENTS,Peoples Services,Supported Living,A56088
London Borough of Sutton,18/04/2023,50343936,840.47,Choice Support,GRANTS & EX GRATIA PAYMENTS,Peoples Services,Supported Living,A56088
London Borough of Sutton,18/04/2023,50343936,"2,467.76",Choice Support,GRANTS & EX GRATIA PAYMENTS,Peoples Services,Supported Living,A56088
London Borough of Sutton,18/04/2023,50343937,478.24,Choice Support,GRANTS & EX GRATIA PAYMENTS,Peoples Services,Supported Living,A56088
London Borough of Sutton,18/04/2023,50343937,"2,295.51",Choice Support,GRANTS & EX GRATIA PAYMENTS,Peoples Services,Supported Living,A56088
London Borough of Sutton,18/04/2023,50343937,"1,624.03",Choice Support,GRANTS & EX GRATIA PAYMENTS,Peoples Services,Supported Living,A56088
London Borough of Sutton,18/04/2023,50343937,651.04,Choice Support,GRANTS & EX GRATIA PAYMENTS,Peoples Services,Supported Living,A56088
London Borough of Sutton,18/04/2023,50343939,478.24,Choice Support,GRANTS & EX GRATIA PAYMENTS,Peoples Services,Supported Living,A56088
London Borough of Sutton,18/04/2023,50343939,"3,708.17",Choice Support,GRANTS & EX GRATIA PAYMENTS,Peoples Services,Supported Living,A56088
London Borough of Sutton,18/04/2023,50343939,"1,402.11",Choice Support,GRANTS & EX GRATIA PAYMENTS,Peoples Services,Supported Living,A56088
London Borough of Sutton,18/04/2023,50343939,651.04,Choice Support,GRANTS & EX GRATIA PAYMENTS,Peoples Services,Supported Living,A56088
London Borough of Sutton,18/04/2023,50343946,"3,452.40",Choice Support,GRANTS & EX GRATIA PAYMENTS,Peoples Services,Supported Living,A56088
London Borough of Sutton,18/04/2023,50343948,873.13,Choice Support,GRANTS & EX GRATIA PAYMENTS,Peoples Services,Supported Living,A56088
London Borough of Sutton,18/04/2023,50343948,840.47,Choice Support,GRANTS & EX GRATIA PAYMENTS,Peoples Services,Supported Living,A56088
London Borough of Sutton,18/04/2023,50343948,"3,469.16",Choice Support,GRANTS & EX GRATIA PAYMENTS,Peoples Services,Supported Living,A56088
London Borough of Sutton,18/04/2023,50343949,"1,091.40",Choice Support,GRANTS & EX GRATIA PAYMENTS,Peoples Services,Supported Living,A56088
London Borough of Sutton,18/04/2023,50343949,"1,180.24",Choice Support,GRANTS & EX GRATIA PAYMENTS,Peoples Services,Supported Living,A56088
London Borough of Sutton,18/04/2023,50343949,"3,290.31",Choice Support,GRANTS & EX GRATIA PAYMENTS,Peoples Services,Supported Living,A56088
London Borough of Sutton,18/04/2023,50343951,478.24,Choice Support,GRANTS & EX GRATIA PAYMENTS,Peoples Services,Supported Living,A56088
London Borough of Sutton,18/04/2023,50343951,"3,875.14",Choice Support,GRANTS & EX GRATIA PAYMENTS,Peoples Services,Supported Living,A56088
London Borough of Sutton,18/04/2023,50343951,118.37,Choice Support,GRANTS & EX GRATIA PAYMENTS,Peoples Services,Supported Living,A56088
London Borough of Sutton,18/04/2023,50343960,"1,091.40",Choice Support,GRANTS & EX GRATIA PAYMENTS,Peoples Services,Supported Living,A56088
London Borough of Sutton,18/04/2023,50343960,"1,180.24",Choice Support,GRANTS & EX GRATIA PAYMENTS,Peoples Services,Supported Living,A56088
London Borough of Sutton,18/04/2023,50343960,"5,221.59",Choice Support,GRANTS & EX GRATIA PAYMENTS,Peoples Services,Supported Living,A56088
London Borough of Sutton,11/04/2023,50341107,"14,472.00",Christchurch Fledgelings Pre-School,GRANTS & EX GRATIA PAYMENTS,Peoples Services,Payment - Nursery Funding,A51056
London Borough of Sutton,11/04/2023,50341229,"1,216.80",Christchurch Fledgelings Pre-School,GRANTS & EX GRATIA PAYMENTS,Peoples Services,Payment - Nursery Funding,A51056
London Borough of Sutton,08/03/2023,20047775,"1,096.98",Christopher Millar,GRANTS & EX GRATIA PAYMENTS,Environment Housing and Neighbourhoods,Temporary Protection - Homeless Persons,A62028
London Borough of Sutton,18/04/2023,20047661,"2,700.00",CIPFA Business Limited,CONFERENCES,Health and Wellbeing,Consultancy Services,A56007
London Borough of Sutton,07/04/2023,50340241,"63,611.70",Cirrus Primary Academy Trust t/a Barrow Hedges Primary School Academy,GRANTS & EX GRATIA PAYMENTS,Peoples Services,Top-up Funding,A51016
London Borough of Sutton,11/04/2023,50340296,"14,440.95",Cirrus Primary Academy Trust t/a Barrow Hedges Primary School Academy,GRANTS & EX GRATIA PAYMENTS,Peoples Services,Place Funding,A56110
London Borough of Sutton,23/03/2023,20046082,"3,483.72",City of London Corporation,CENTRAL & LOCAL GOVERNMENT,Health and Wellbeing,Provider Contract Payments,A44290
London Borough of Sutton,23/03/2023,20046083,"4,372.45",City of London Corporation,CENTRAL & LOCAL GOVERNMENT,Health and Wellbeing,Provider Contract Payments,A44290
London Borough of Sutton,16/02/2023,20046122,-652.73,City Sprint UK (Excel) Ltd,DELIVERY AND COURIER SERVICES,Health and Wellbeing,Hire of Transport - Non Staff,A32000
London Borough of Sutton,22/03/2023,20046123,-659.35,City Sprint UK (Excel) Ltd,DELIVERY AND COURIER SERVICES,Health and Wellbeing,Hire of Transport - Non Staff,A32000
London Borough of Sutton,31/03/2023,20046999,588.98,City Sprint UK (Excel) Ltd,DELIVERY AND COURIER SERVICES,Resources,Printing,A43010
London Borough of Sutton,31/03/2023,20047148,"3,244.44",City Sprint UK (Excel) Ltd,DELIVERY AND COURIER SERVICES,Health and Wellbeing,Hire of Transport - Non Staff,A32000
London Borough of Sutton,01/04/2023,20046850,"18,940.00",Hytyme ltd,ACCOMMODATION BED & BREAKFAST,Environment Housing and Neighbourhoods,Bed & Breakfast,A56000
London Borough of Sutton,04/04/2023,20047070,"4,260.00",CJA Property Consulting Limited,OFFICE SERVICES,Resources,Professional Fees,A44066
London Borough of Sutton,14/04/2023,50342256,"4,525.36",Claremont Care Svs Ltd,SOCIAL SERVICES RESIDENTIAL,Peoples Services,Nursing Care - Ext Provider,A56025
London Borough of Sutton,14/04/2023,50342256,-750.4,Claremont Care Svs Ltd,SOCIAL SERVICES RESIDENTIAL,Peoples Services,Nursing Care - 3rd party top up payment,A56023
London Borough of Sutton,14/04/2023,50342300,"6,236.76",Claremont Care Svs Ltd,SOCIAL SERVICES RESIDENTIAL,Peoples Services,Nursing Care Short Term,A56026
London Borough of Sutton,14/04/2023,50342300,-836.76,Claremont Care Svs Ltd,SOCIAL SERVICES RESIDENTIAL,Peoples Services,Nursing Care - 3rd party top up payment,A56023
London Borough of Sutton,14/04/2023,50342303,"6,236.76",Claremont Care Svs Ltd,SOCIAL SERVICES RESIDENTIAL,Peoples Services,Nursing Care - Ext Provider,A56025
London Borough of Sutton,14/04/2023,50342303,-836.76,Claremont Care Svs Ltd,SOCIAL SERVICES RESIDENTIAL,Peoples Services,Nursing Care - 3rd party top up payment,A56023
London Borough of Sutton,14/04/2023,50342394,"3,848.24",Claremont Care Svs Ltd,SOCIAL SERVICES RESIDENTIAL,Peoples Services,Nursing Care - Ext Provider,A56025
London Borough of Sutton,14/04/2023,50342394,-750.4,Claremont Care Svs Ltd,SOCIAL SERVICES RESIDENTIAL,Peoples Services,Nursing Care - 3rd party top up payment,A56023
London Borough of Sutton,14/04/2023,50342428,"6,487.64",Claremont Care Svs Ltd,SOCIAL SERVICES RESIDENTIAL,Peoples Services,Nursing Care - Ext Provider,A56025
London Borough of Sutton,14/04/2023,50342428,-750.4,Claremont Care Svs Ltd,SOCIAL SERVICES RESIDENTIAL,Peoples Services,Nursing Care - 3rd party top up payment,A56023
London Borough of Sutton,14/04/2023,50342429,"14,613.88",Claremont Care Svs Ltd,SOCIAL SERVICES RESIDENTIAL,Peoples Services,Nursing Care - Ext Provider,A56025
London Borough of Sutton,14/04/2023,50342429,"-11,424.00",Claremont Care Svs Ltd,SOCIAL SERVICES RESIDENTIAL,Peoples Services,Nursing Care - 3rd party top up payment,A56023
London Borough of Sutton,14/04/2023,50342468,"6,513.96",Claremont Care Svs Ltd,SOCIAL SERVICES RESIDENTIAL,Peoples Services,Nursing Care - Ext Provider,A56025
London Borough of Sutton,14/04/2023,50342468,-836.76,Claremont Care Svs Ltd,SOCIAL SERVICES RESIDENTIAL,Peoples Services,Nursing Care - 3rd party top up payment,A56023
London Borough of Sutton,14/04/2023,50342497,-735.68,Claremont Care Svs Ltd,SOCIAL SERVICES RESIDENTIAL,Peoples Services,Nursing Care - 3rd party top up payment,A56023
London Borough of Sutton,14/04/2023,50342497,"5,367.84",Claremont Care Svs Ltd,SOCIAL SERVICES RESIDENTIAL,Peoples Services,Nursing Care - Ext Provider,A56025
London Borough of Sutton,14/04/2023,50342046,-735.68,Bondcare (London) Ltd,SOCIAL SERVICES RESIDENTIAL,Peoples Services,Nursing Care - 3rd party top up payment,A56023
London Borough of Sutton,14/04/2023,50342046,"3,720.16",Bondcare (London) Ltd,SOCIAL SERVICES RESIDENTIAL,Peoples Services,Nursing Care - Ext Provider,A56025
London Borough of Sutton,15/04/2023,50343838,"1,344.00",Clark Interventions Limited,CHILDREN'S SERVICES - SEN SERVICES,Peoples Services,Special Educational Needs,A51015
London Borough of Sutton,29/03/2023,50339474,759.45,Classroom Teachers Ltd,ACADEMIC INSTNS - OTHER,Peoples Services,Independent School Fees,A56002
London Borough of Sutton,04/04/2023,50339500,"1,518.90",Classroom Teachers Ltd,ACADEMIC INSTNS - OTHER,Peoples Services,Independent School Fees,A56002
London Borough of Sutton,30/03/2023,50338380,"2,439.02",Clear Thinking Care Limited,SOCIAL SERVICES RESIDENTIAL,Peoples Services,Supported Living,A56088
London Borough of Sutton,11/04/2023,50343558,"2,439.02",Clear Thinking Care Limited,SOCIAL SERVICES RESIDENTIAL,Peoples Services,Supported Living,A56088
London Borough of Sutton,20/04/2023,50346395,"2,439.02",Clear Thinking Care Limited,SOCIAL SERVICES RESIDENTIAL,Peoples Services,Supported Living,A56088
London Borough of Sutton,20/04/2023,50346396,"2,439.02",Clear Thinking Care Limited,SOCIAL SERVICES RESIDENTIAL,Peoples Services,Supported Living,A56088
London Borough of Sutton,18/04/2023,50343956,"-4,149.13",CLIA CARE LTD,SOCIAL SERVICES RESIDENTIAL,Peoples Services,Nursing Care - 3rd party top up payment,A56023
London Borough of Sutton,18/04/2023,50343956,"3,761.10",CLIA CARE LTD,SOCIAL SERVICES RESIDENTIAL,Peoples Services,Supported Living,A56088
London Borough of Sutton,18/04/2023,50343956,708,CLIA CARE LTD,SOCIAL SERVICES RESIDENTIAL,Peoples Services,Supported Living,A56088
London Borough of Sutton,18/04/2023,50343956,"1,061.61",CLIA CARE LTD,SOCIAL SERVICES RESIDENTIAL,Peoples Services,Supported Living,A56088
London Borough of Sutton,18/04/2023,50343956,"2,767.50",CLIA CARE LTD,SOCIAL SERVICES RESIDENTIAL,Peoples Services,One to One Care,A56108
London Borough of Sutton,26/03/2023,50338002,597,Clovecare Ltd,SOCIAL SERVICES RESIDENTIAL,Peoples Services,Home Care Services,A56019
London Borough of Sutton,26/03/2023,50338031,852.23,Clovecare Ltd,SOCIAL SERVICES RESIDENTIAL,Peoples Services,Home Care Services,A56019
London Borough of Sutton,26/03/2023,50338031,47.88,Clovecare Ltd,SOCIAL SERVICES RESIDENTIAL,Peoples Services,Home Care Services,A56019
London Borough of Sutton,26/03/2023,50338067,597,Clovecare Ltd,SOCIAL SERVICES RESIDENTIAL,Peoples Services,Home Care Services,A56019
London Borough of Sutton,02/04/2023,50341026,597,Clovecare Ltd,SOCIAL SERVICES RESIDENTIAL,Peoples Services,Home Care Services,A56019
London Borough of Sutton,02/04/2023,50341041,852.23,Clovecare Ltd,SOCIAL SERVICES RESIDENTIAL,Peoples Services,Home Care Services,A56019
London Borough of Sutton,02/04/2023,50341041,47.88,Clovecare Ltd,SOCIAL SERVICES RESIDENTIAL,Peoples Services,Home Care Services,A56019
London Borough of Sutton,02/04/2023,50341054,597,Clovecare Ltd,SOCIAL SERVICES RESIDENTIAL,Peoples Services,Home Care Services,A56019
London Borough of Sutton,09/04/2023,50343119,613.29,Clovecare Ltd,SOCIAL SERVICES RESIDENTIAL,Peoples Services,Home Care Services,A56019
London Borough of Sutton,09/04/2023,50343149,884.8,Clovecare Ltd,SOCIAL SERVICES RESIDENTIAL,Peoples Services,Home Care Services,A56019
London Borough of Sutton,09/04/2023,50343149,47.84,Clovecare Ltd,SOCIAL SERVICES RESIDENTIAL,Peoples Services,Home Care Services,A56019
London Borough of Sutton,09/04/2023,50343336,613.29,Clovecare Ltd,SOCIAL SERVICES RESIDENTIAL,Peoples Services,Home Care Services,A56019
London Borough of Sutton,16/04/2023,50346075,613.29,Clovecare Ltd,SOCIAL SERVICES RESIDENTIAL,Peoples Services,Home Care Services,A56019
London Borough of Sutton,16/04/2023,50346216,613.29,Clovecare Ltd,SOCIAL SERVICES RESIDENTIAL,Peoples Services,Home Care Services,A56019
London Borough of Sutton,14/04/2023,50342137,"4,234.16",Coast Care Homes Ltd,SOCIAL SERVICES RESIDENTIAL,Peoples Services,Residential Care - Ext Provider,A56114
London Borough of Sutton,14/04/2023,50342145,"12,960.16",Cognithan Ltd,SOCIAL SERVICES RESIDENTIAL,Peoples Services,Residential Care - Ext Provider,A56114
London Borough of Sutton,30/11/2021,20017261,"45,000.00",Cognus Ltd,LEGAL & PROFESSIONAL SERVICES,Peoples Services,Special Educational Needs,A51015
London Borough of Sutton,14/06/2022,20029676,"73,171.00",Cognus Ltd,LEGAL & PROFESSIONAL SERVICES,Peoples Services,Consultancy Services - Other,A44065
London Borough of Sutton,31/03/2023,20046886,"218,108.33",Cognus Ltd,LEGAL & PROFESSIONAL SERVICES,Peoples Services,Consultancy Services,A56007
London Borough of Sutton,25/04/2023,50347152,"1,120.00",Cognus Ltd,LEGAL & PROFESSIONAL SERVICES,Peoples Services,Special Educational Needs,A51015
London Borough of Sutton,14/04/2023,50342057,"11,981.04",Coleg Elidyr Camphill Communities,CHILDREN'S SERVICES - RESIDENTIAL,Peoples Services,Interim Placements - Ext Provider,A56102
London Borough of Sutton,24/03/2023,50339607,"4,304.33",Collingwood School Ltd,GRANTS & EX GRATIA PAYMENTS,Peoples Services,Independent School Fees,A56002
London Borough of Sutton,11/04/2023,50341109,"9,120.60",Collingwood School Ltd,GRANTS & EX GRATIA PAYMENTS,Peoples Services,Payment - Nursery Funding,A51056
London Borough of Sutton,11/04/2023,20047215,"287,500.00",Community Action Sutton,GRANTS & EX GRATIA PAYMENTS,Resources,Provider Contract Payments,A44290
London Borough of Sutton,11/04/2023,20047216,"270,000.00",Community Action Sutton,GRANTS & EX GRATIA PAYMENTS,Resources,Provider Contract Payments,A44290
London Borough of Sutton,11/04/2023,20047217,"80,000.00",Community Action Sutton,GRANTS & EX GRATIA PAYMENTS,Resources,"Grants, Contributions & Donations",A47005
London Borough of Sutton,13/03/2023,20046986,"1,020.00",Complete Building Control Ltd,SUNDRY SUPPLIER - FINANCE,Environment Housing and Neighbourhoods,Grants Given For Capital Purposes,C20004
London Borough of Sutton,11/04/2023,50341156,"8,886.24",Little PioneersSsutton,GRANTS & EX GRATIA PAYMENTS,Peoples Services,Payment - Nursery Funding,A51056
London Borough of Sutton,11/04/2023,50341248,"1,115.40",Little PioneersSsutton,GRANTS & EX GRATIA PAYMENTS,Peoples Services,Payment - Nursery Funding,A51056
London Borough of Sutton,20/04/2023,20047824,530,COSI (EMEA),SUNDRY SUPPLIER - FINANCE,Health and Wellbeing,Staff Development And Training,A15022
London Borough of Sutton,11/04/2023,50341278,912.6,Hidden Gems,GRANTS & EX GRATIA PAYMENTS,Peoples Services,Payment - Nursery Funding,A51056
London Borough of Sutton,11/04/2023,50341282,"1,447.20",Hidden Gems,GRANTS & EX GRATIA PAYMENTS,Peoples Services,Payment - Nursery Funding,A51056
London Borough of Sutton,14/04/2023,50342045,"4,400.00",Country Court Care Homes 2 Ltd,SOCIAL SERVICES RESIDENTIAL,Peoples Services,Nursing Care - Ext Provider,A56025
London Borough of Sutton,14/04/2023,50342045,"-1,226.92",Country Court Care Homes 2 Ltd,SOCIAL SERVICES RESIDENTIAL,Peoples Services,Nursing Care - 3rd party top up payment,A56023
London Borough of Sutton,14/04/2023,50342170,"7,584.16",Cream 1 Ltd ,SOCIAL SERVICES RESIDENTIAL,Peoples Services,Residential Care - Ext Provider,A56114
London Borough of Sutton,14/04/2023,50342170,"5,560.52",Cream 1 Ltd ,SOCIAL SERVICES RESIDENTIAL,Peoples Services,One to One Care,A56108
London Borough of Sutton,20/02/2023,50339590,"17,678.44",Cressey Oasis Education Ltd,CHILDREN'S SERVICES - RESIDENTIAL,Peoples Services,Independent School Fees,A56002
London Borough of Sutton,20/02/2023,50339591,"21,445.84",Cressey Oasis Education Ltd,CHILDREN'S SERVICES - RESIDENTIAL,Peoples Services,Independent School Fees,A56002
London Borough of Sutton,20/02/2023,50339592,"21,445.84",Cressey Oasis Education Ltd,CHILDREN'S SERVICES - RESIDENTIAL,Peoples Services,Independent School Fees,A56002
London Borough of Sutton,20/02/2023,50339593,"17,896.19",Cressey Oasis Education Ltd,CHILDREN'S SERVICES - RESIDENTIAL,Peoples Services,Independent School Fees,A56002
London Borough of Sutton,20/02/2023,50339594,"21,445.84",Cressey Oasis Education Ltd,CHILDREN'S SERVICES - RESIDENTIAL,Peoples Services,Independent School Fees,A56002
London Borough of Sutton,20/02/2023,50339595,"21,196.11",Cressey Oasis Education Ltd,CHILDREN'S SERVICES - RESIDENTIAL,Peoples Services,Independent School Fees,A56002
London Borough of Sutton,20/02/2023,50339596,"19,200.48",Cressey Oasis Education Ltd,CHILDREN'S SERVICES - RESIDENTIAL,Peoples Services,Independent School Fees,A56002
London Borough of Sutton,20/02/2023,50339597,"29,155.36",Cressey Oasis Education Ltd,CHILDREN'S SERVICES - RESIDENTIAL,Peoples Services,Independent School Fees,A56002
London Borough of Sutton,20/02/2023,50339598,"17,307.16",Cressey Oasis Education Ltd,CHILDREN'S SERVICES - RESIDENTIAL,Peoples Services,Independent School Fees,A56002
London Borough of Sutton,20/02/2023,50339599,"19,036.16",Cressey Oasis Education Ltd,CHILDREN'S SERVICES - RESIDENTIAL,Peoples Services,Independent School Fees,A56002
London Borough of Sutton,20/02/2023,50339600,"19,917.43",Cressey Oasis Education Ltd,CHILDREN'S SERVICES - RESIDENTIAL,Peoples Services,Independent School Fees,A56002
London Borough of Sutton,20/02/2023,50339601,"21,211.97",Cressey Oasis Education Ltd,CHILDREN'S SERVICES - RESIDENTIAL,Peoples Services,Independent School Fees,A56002
London Borough of Sutton,20/11/2022,50341580,"19,897.93",Cressey Oasis Education Ltd,CHILDREN'S SERVICES - RESIDENTIAL,Peoples Services,Independent School Fees,A56002
London Borough of Sutton,06/04/2023,50339803,"1,870.00",CRM Students Ltd,CARE LEAVERS,Peoples Services,Education Allowance,A60008
London Borough of Sutton,14/04/2023,50342236,"5,400.00",CRNH Ltd,SOCIAL SERVICES RESIDENTIAL,Peoples Services,Nursing Care Short Term,A56026
London Borough of Sutton,14/04/2023,50342236,-836.76,CRNH Ltd,SOCIAL SERVICES RESIDENTIAL,Peoples Services,Nursing Care - 3rd party top up payment,A56023
London Borough of Sutton,14/04/2023,50342262,"3,848.24",CRNH Ltd,SOCIAL SERVICES RESIDENTIAL,Peoples Services,Nursing Care - Ext Provider,A56025
London Borough of Sutton,14/04/2023,50342262,-750.4,CRNH Ltd,SOCIAL SERVICES RESIDENTIAL,Peoples Services,Nursing Care - 3rd party top up payment,A56023
London Borough of Sutton,14/04/2023,50342270,"16,147.82",CRNH Ltd,SOCIAL SERVICES RESIDENTIAL,Peoples Services,Nursing Care - Ext Provider,A56025
London Borough of Sutton,14/04/2023,50342270,"-2,241.32",CRNH Ltd,SOCIAL SERVICES RESIDENTIAL,Peoples Services,Nursing Care - 3rd party top up payment,A56023
London Borough of Sutton,14/04/2023,50342306,"5,400.00",CRNH Ltd,SOCIAL SERVICES RESIDENTIAL,Peoples Services,Nursing Care - Ext Provider,A56025
London Borough of Sutton,14/04/2023,50342306,-836.76,CRNH Ltd,SOCIAL SERVICES RESIDENTIAL,Peoples Services,Nursing Care - 3rd party top up payment,A56023
London Borough of Sutton,14/04/2023,50342388,"3,609.96",CRNH Ltd,SOCIAL SERVICES RESIDENTIAL,Peoples Services,Nursing Care - Ext Provider,A56025
London Borough of Sutton,14/04/2023,50342388,-632.64,CRNH Ltd,SOCIAL SERVICES RESIDENTIAL,Peoples Services,Nursing Care - 3rd party top up payment,A56023
London Borough of Sutton,14/04/2023,50342403,"4,021.24",CRNH Ltd,SOCIAL SERVICES RESIDENTIAL,Peoples Services,Nursing Care - Ext Provider,A56025
London Borough of Sutton,14/04/2023,50342403,-750.4,CRNH Ltd,SOCIAL SERVICES RESIDENTIAL,Peoples Services,Nursing Care - 3rd party top up payment,A56023
London Borough of Sutton,14/04/2023,50342412,"3,664.08",CRNH Ltd,SOCIAL SERVICES RESIDENTIAL,Peoples Services,Nursing Care - Ext Provider,A56025
London Borough of Sutton,14/04/2023,50342412,-662.24,CRNH Ltd,SOCIAL SERVICES RESIDENTIAL,Peoples Services,Nursing Care - 3rd party top up payment,A56023
London Borough of Sutton,14/04/2023,50342454,"3,720.16",CRNH Ltd,SOCIAL SERVICES RESIDENTIAL,Peoples Services,Nursing Care - Ext Provider,A56025
London Borough of Sutton,14/04/2023,50342454,-735.68,CRNH Ltd,SOCIAL SERVICES RESIDENTIAL,Peoples Services,Nursing Care - 3rd party top up payment,A56023
London Borough of Sutton,14/04/2023,50342551,-866.64,CRNH Ltd,SOCIAL SERVICES RESIDENTIAL,Peoples Services,Nursing Care - 3rd party top up payment,A56023
London Borough of Sutton,14/04/2023,50342551,"29,480.00",CRNH Ltd,SOCIAL SERVICES RESIDENTIAL,Peoples Services,Nursing Care Short Term,A56026
London Borough of Sutton,14/04/2023,50342563,-735.68,CRNH Ltd,SOCIAL SERVICES RESIDENTIAL,Peoples Services,Nursing Care - 3rd party top up payment,A56023
London Borough of Sutton,14/04/2023,50342563,"3,720.16",CRNH Ltd,SOCIAL SERVICES RESIDENTIAL,Peoples Services,Nursing Care - Ext Provider,A56025
London Borough of Sutton,14/04/2023,50342180,"3,633.76",Cross Care Services Ltd,SOCIAL SERVICES RESIDENTIAL,Peoples Services,Nursing Care - Ext Provider,A56025
London Borough of Sutton,14/04/2023,50342207,"3,821.24",Cross Care Services Ltd,SOCIAL SERVICES RESIDENTIAL,Peoples Services,Nursing Care - Ext Provider,A56025
London Borough of Sutton,14/04/2023,50342207,-836.76,Cross Care Services Ltd,SOCIAL SERVICES RESIDENTIAL,Peoples Services,Nursing Care - 3rd party top up payment,A56023
London Borough of Sutton,14/04/2023,50342235,"3,720.16",Cross Care Services Ltd,SOCIAL SERVICES RESIDENTIAL,Peoples Services,Nursing Care - Ext Provider,A56025
London Borough of Sutton,14/04/2023,50342235,-735.68,Cross Care Services Ltd,SOCIAL SERVICES RESIDENTIAL,Peoples Services,Nursing Care - 3rd party top up payment,A56023
London Borough of Sutton,14/04/2023,50342243,-836.76,Cross Care Services Ltd,SOCIAL SERVICES RESIDENTIAL,Peoples Services,Nursing Care - 3rd party top up payment,A56023
London Borough of Sutton,14/04/2023,50342243,"3,821.24",Cross Care Services Ltd,SOCIAL SERVICES RESIDENTIAL,Peoples Services,Nursing Care Short Term,A56026
London Borough of Sutton,14/04/2023,50342397,"3,821.24",Cross Care Services Ltd,SOCIAL SERVICES RESIDENTIAL,Peoples Services,Nursing Care - Ext Provider,A56025
London Borough of Sutton,14/04/2023,50342397,-836.76,Cross Care Services Ltd,SOCIAL SERVICES RESIDENTIAL,Peoples Services,Nursing Care - 3rd party top up payment,A56023
London Borough of Sutton,14/04/2023,50342442,"3,734.88",Cross Care Services Ltd,SOCIAL SERVICES RESIDENTIAL,Peoples Services,Nursing Care - Ext Provider,A56025
London Borough of Sutton,14/04/2023,50342442,-750.4,Cross Care Services Ltd,SOCIAL SERVICES RESIDENTIAL,Peoples Services,Nursing Care - 3rd party top up payment,A56023
London Borough of Sutton,14/04/2023,50342495,"3,720.16",Cross Care Services Ltd,SOCIAL SERVICES RESIDENTIAL,Peoples Services,Nursing Care - Ext Provider,A56025
London Borough of Sutton,14/04/2023,50342495,-735.68,Cross Care Services Ltd,SOCIAL SERVICES RESIDENTIAL,Peoples Services,Nursing Care - 3rd party top up payment,A56023
London Borough of Sutton,31/03/2023,20046729,"8,062.50",Croydon Court Ltd,ACCOMMODATION BED & BREAKFAST,Environment Housing and Neighbourhoods,Bed & Breakfast,A56000
London Borough of Sutton,31/03/2023,20046730,"1,193.50",Croydon Court Ltd,ACCOMMODATION BED & BREAKFAST,Peoples Services,Client Care/Assistance,A61011
London Borough of Sutton,30/09/2022,20033707,"12,982.73",Croydon Health Service NHST,SOCIAL SERVICES - OTHER,Health and Wellbeing,Provider Contract Payments,A44290
London Borough of Sutton,12/03/2023,20046504,"10,285.56",Croydon Health Service NHST,SOCIAL SERVICES - OTHER,Health and Wellbeing,Provider Contract Payments,A44290
London Borough of Sutton,14/04/2023,50342151,"8,118.44",CSS Ltd,SOCIAL SERVICES RESIDENTIAL,Peoples Services,Residential Care - Ext Provider,A56114
London Borough of Sutton,31/03/2023,20046847,"10,096.82",Cubiquity Limited,OFFICE SERVICES,Resources,Printing,A43010
London Borough of Sutton,11/04/2023,50340113,"179,114.27",Culvers House Primary School,GRANTS & EX GRATIA PAYMENTS,Peoples Services,Payments to Schools,A51013
London Borough of Sutton,07/04/2023,50340252,"10,325.95",Culvers House Primary School,GRANTS & EX GRATIA PAYMENTS,Peoples Services,Top-up Funding,A51016
London Borough of Sutton,11/04/2023,50340303,"10,134.00",Culvers House Primary School,GRANTS & EX GRATIA PAYMENTS,Peoples Services,Place Funding,A56110
London Borough of Sutton,14/04/2023,50342101,"6,400.00",Curado Limited,GRANTS & EX GRATIA PAYMENTS,Peoples Services,Residential Care - Ext Provider,A56114
London Borough of Sutton,14/04/2023,50342331,"6,514.29",Curado Limited,GRANTS & EX GRATIA PAYMENTS,Peoples Services,Interim Placements - Ext Provider,A56102
London Borough of Sutton,14/04/2023,50342527,"11,200.00",Curado Limited,GRANTS & EX GRATIA PAYMENTS,Peoples Services,Residential Care - Ext Provider,A56114
London Borough of Sutton,18/04/2023,50343930,"1,928.57",Curado Limited,GRANTS & EX GRATIA PAYMENTS,Peoples Services,Supported Living,A56088
London Borough of Sutton,31/03/2023,20046821,"10,125.00",Cushman & Wakefield Debenham Tie Leung Limited,LEGAL & PROFESSIONAL SERVICES,Development Growth and Regeneration,External Fees and Consultants,C20000
London Borough of Sutton,31/03/2023,20046822,"4,500.00",Cushman & Wakefield Debenham Tie Leung Limited,LEGAL & PROFESSIONAL SERVICES,Development Growth and Regeneration,External Fees and Consultants,C20000
London Borough of Sutton,31/03/2023,20046823,"6,250.00",Cushman & Wakefield Debenham Tie Leung Limited,LEGAL & PROFESSIONAL SERVICES,Development Growth and Regeneration,External Fees and Consultants,C20000
London Borough of Sutton,31/03/2023,20046824,"2,900.00",Cushman & Wakefield Debenham Tie Leung Limited,LEGAL & PROFESSIONAL SERVICES,Development Growth and Regeneration,External Fees and Consultants,C20000
London Borough of Sutton,31/03/2023,20046825,"5,508.00",Cushman & Wakefield Debenham Tie Leung Limited,LEGAL & PROFESSIONAL SERVICES,Development Growth and Regeneration,External Fees and Consultants,C20000
London Borough of Sutton,31/03/2023,20046826,"11,636.25",Cushman & Wakefield Debenham Tie Leung Limited,LEGAL & PROFESSIONAL SERVICES,Development Growth and Regeneration,External Fees and Consultants,C20000
London Borough of Sutton,31/03/2023,20046827,"3,000.00",Cushman & Wakefield Debenham Tie Leung Limited,LEGAL & PROFESSIONAL SERVICES,Development Growth and Regeneration,External Fees and Consultants,C20000
London Borough of Sutton,20/04/2023,20048050,"91,000.00",Cushman & Wakefield Debenham Tie Leung Limited,LEGAL & PROFESSIONAL SERVICES,Development Growth and Regeneration,External Fees and Consultants,C20000
London Borough of Sutton,20/04/2023,20048051,"54,500.00",Cushman & Wakefield Debenham Tie Leung Limited,LEGAL & PROFESSIONAL SERVICES,Development Growth and Regeneration,External Fees and Consultants,C20000
London Borough of Sutton,30/03/2023,20046638,"8,250.00",Cyclehoop Ltd,LEGAL & PROFESSIONAL SERVICES,Environment Housing and Neighbourhoods,External Fees and Consultants,C20000
London Borough of Sutton,14/04/2023,50342084,-758,Cygnet Learning Disabilities Midlands Ltd,SOCIAL SERVICES RESIDENTIAL,Peoples Services,Residential Care - Client Cont ( Net Paymt ),A56113
London Borough of Sutton,14/04/2023,50342084,"6,827.40",Cygnet Learning Disabilities Midlands Ltd,SOCIAL SERVICES RESIDENTIAL,Peoples Services,Residential Care - Ext Provider,A56114
London Borough of Sutton,03/04/2023,20046970,"1,584.76",Dariba Design Limited,CONSULTING ARCHITECTS ENGINEER,Environment Housing and Neighbourhoods,Grants Given For Capital Purposes,C20004
London Borough of Sutton,06/04/2023,20047144,"6,252.24",Darwin Group Ltd,CONSTRUCTION INDUSTRY,Peoples Services,Payments to Contractors,C14000
London Borough of Sutton,01/04/2023,20047167,785.73,Angel Lettings,ACCOMMODATION BED & BREAKFAST,Environment Housing and Neighbourhoods,Temporary Protection - Homeless Persons,A62028
London Borough of Sutton,04/04/2023,20046922,"1,209.00",REDACTED - PERSONAL DATA,GRANTS & EX GRATIA PAYMENTS,Environment Housing and Neighbourhoods,Temporary Protection - Homeless Persons,A62028
London Borough of Sutton,31/03/2023,20046797,675,Dellhome Limited,ACCOMMODATION BED & BREAKFAST,Environment Housing and Neighbourhoods,Bed & Breakfast,A56000
London Borough of Sutton,31/03/2023,20046800,450,Dellhome Limited,ACCOMMODATION BED & BREAKFAST,Environment Housing and Neighbourhoods,Bed & Breakfast,A56000
London Borough of Sutton,31/03/2023,20046801,"1,658.50",Dellhome Limited,ACCOMMODATION BED & BREAKFAST,Environment Housing and Neighbourhoods,Bed & Breakfast,A56000
London Borough of Sutton,31/03/2023,20046806,"2,077.00",Dellhome Limited,ACCOMMODATION BED & BREAKFAST,Environment Housing and Neighbourhoods,Bed & Breakfast,A56000
London Borough of Sutton,31/03/2023,20046808,"1,125.00",Dellhome Limited,ACCOMMODATION BED & BREAKFAST,Environment Housing and Neighbourhoods,Bed & Breakfast,A56000
London Borough of Sutton,31/03/2023,20046809,"1,020.00",Dellhome Limited,ACCOMMODATION BED & BREAKFAST,Environment Housing and Neighbourhoods,Bed & Breakfast,A56000
London Borough of Sutton,03/04/2023,20046820,"30,354.00",Delta Wise Limited,ACCOMMODATION BED & BREAKFAST,Environment Housing and Neighbourhoods,Bed & Breakfast,A56000
London Borough of Sutton,11/04/2023,20047150,-417.37,Delta Wise Limited,ACCOMMODATION BED & BREAKFAST,Resources,Fees And Charges (VATable),A92310
London Borough of Sutton,12/04/2023,20047326,650,Denhan Property Services,ACCOMMODATION BED & BREAKFAST,Environment Housing and Neighbourhoods,Bed & Breakfast,A56000
London Borough of Sutton,12/04/2023,20047327,"1,620.00",Denhan Property Services,ACCOMMODATION BED & BREAKFAST,Environment Housing and Neighbourhoods,Bed & Breakfast,A56000
London Borough of Sutton,12/04/2023,20047328,"1,929.75",Denhan Property Services,ACCOMMODATION BED & BREAKFAST,Environment Housing and Neighbourhoods,Bed & Breakfast,A56000
London Borough of Sutton,12/04/2023,20047329,612,Denhan Property Services,ACCOMMODATION BED & BREAKFAST,Environment Housing and Neighbourhoods,Bed & Breakfast,A56000
London Borough of Sutton,12/04/2023,20047330,"1,612.00",Denhan Property Services,ACCOMMODATION BED & BREAKFAST,Environment Housing and Neighbourhoods,Bed & Breakfast,A56000
London Borough of Sutton,12/04/2023,20047331,"1,147.00",Denhan Property Services,ACCOMMODATION BED & BREAKFAST,Environment Housing and Neighbourhoods,Bed & Breakfast,A56000
London Borough of Sutton,12/04/2023,20047333,703,Denhan Property Services,ACCOMMODATION BED & BREAKFAST,Environment Housing and Neighbourhoods,Bed & Breakfast,A56000
London Borough of Sutton,12/04/2023,20047334,"2,077.00",Denhan Property Services,ACCOMMODATION BED & BREAKFAST,Environment Housing and Neighbourhoods,Bed & Breakfast,A56000
London Borough of Sutton,12/04/2023,20047335,"1,116.00",Denhan Property Services,ACCOMMODATION BED & BREAKFAST,Environment Housing and Neighbourhoods,Bed & Breakfast,A56000
London Borough of Sutton,14/04/2023,50342095,"3,505.00",Denville Hall 2012,SOCIAL SERVICES RESIDENTIAL,Peoples Services,Residential Care - Ext Provider,A56114
London Borough of Sutton,14/04/2023,50342087,"3,175.04",Devaglade Trading Limited,SOCIAL SERVICES RESIDENTIAL,Peoples Services,Residential Care - Ext Provider,A56114
London Borough of Sutton,11/04/2023,50340106,"262,600.44",Devonshire Primary School,GRANTS & EX GRATIA PAYMENTS,Peoples Services,Payments to Schools,A51013
London Borough of Sutton,07/04/2023,50340253,"21,002.65",Devonshire Primary School,GRANTS & EX GRATIA PAYMENTS,Peoples Services,Top-up Funding,A51016
London Borough of Sutton,11/04/2023,50340304,"10,848.60",Devonshire Primary School,GRANTS & EX GRATIA PAYMENTS,Peoples Services,Place Funding,A56110
London Borough of Sutton,23/03/2023,50341516,"5,670.28",Direct Care And Support Services,ACCOMMODATION - OTHER,Peoples Services,Supported Living,A56088
London Borough of Sutton,23/03/2023,50341516,"1,307.32",Direct Care And Support Services,ACCOMMODATION - OTHER,Peoples Services,Supported Living,A56088
London Borough of Sutton,23/03/2023,50341517,"5,670.28",Direct Care And Support Services,ACCOMMODATION - OTHER,Peoples Services,Supported Living,A56088
London Borough of Sutton,23/03/2023,50341517,"1,307.32",Direct Care And Support Services,ACCOMMODATION - OTHER,Peoples Services,Supported Living,A56088
London Borough of Sutton,23/03/2023,50341518,"1,680.00",Direct Care And Support Services,ACCOMMODATION - OTHER,Peoples Services,Supported Living,A56088
London Borough of Sutton,23/03/2023,50341518,"3,021.20",Direct Care And Support Services,ACCOMMODATION - OTHER,Peoples Services,Supported Living,A56088
London Borough of Sutton,23/03/2023,50341519,"1,680.00",Direct Care And Support Services,ACCOMMODATION - OTHER,Peoples Services,Supported Living,A56088
London Borough of Sutton,23/03/2023,50341519,"3,021.20",Direct Care And Support Services,ACCOMMODATION - OTHER,Peoples Services,Supported Living,A56088
London Borough of Sutton,23/03/2023,50341520,"1,680.00",Direct Care And Support Services,ACCOMMODATION - OTHER,Peoples Services,Supported Living,A56088
London Borough of Sutton,23/03/2023,50341520,"3,021.20",Direct Care And Support Services,ACCOMMODATION - OTHER,Peoples Services,Supported Living,A56088
London Borough of Sutton,23/03/2023,50341568,"1,082.32",Direct Care And Support Services,ACCOMMODATION - OTHER,Peoples Services,Supported Living,A56088
London Borough of Sutton,23/03/2023,50341568,"1,307.32",Direct Care And Support Services,ACCOMMODATION - OTHER,Peoples Services,Supported Living,A56088
London Borough of Sutton,23/03/2023,50341568,"3,175.92",Direct Care And Support Services,ACCOMMODATION - OTHER,Peoples Services,Supported Living,A56088
London Borough of Sutton,23/03/2023,50341569,"1,082.32",Direct Care And Support Services,ACCOMMODATION - OTHER,Peoples Services,Supported Living,A56088
London Borough of Sutton,23/03/2023,50341569,"1,307.32",Direct Care And Support Services,ACCOMMODATION - OTHER,Peoples Services,Supported Living,A56088
London Borough of Sutton,23/03/2023,50341569,"3,175.92",Direct Care And Support Services,ACCOMMODATION - OTHER,Peoples Services,Supported Living,A56088
London Borough of Sutton,23/03/2023,50341570,"1,082.32",Direct Care And Support Services,ACCOMMODATION - OTHER,Peoples Services,Supported Living,A56088
London Borough of Sutton,23/03/2023,50341570,"1,307.32",Direct Care And Support Services,ACCOMMODATION - OTHER,Peoples Services,Supported Living,A56088
London Borough of Sutton,23/03/2023,50341570,"3,175.92",Direct Care And Support Services,ACCOMMODATION - OTHER,Peoples Services,Supported Living,A56088
London Borough of Sutton,24/03/2023,50341571,757.67,Direct Care And Support Services,ACCOMMODATION - OTHER,Peoples Services,Supported Living,A56088
London Borough of Sutton,24/03/2023,50341571,280.14,Direct Care And Support Services,ACCOMMODATION - OTHER,Peoples Services,Supported Living,A56088
London Borough of Sutton,24/03/2023,50341571,212.26,Direct Care And Support Services,ACCOMMODATION - OTHER,Peoples Services,Supported Living,A56088
London Borough of Sutton,22/03/2023,50341572,347.89,Direct Care And Support Services,ACCOMMODATION - OTHER,Peoples Services,Supported Living,A56088
London Borough of Sutton,22/03/2023,50341572,420.21,Direct Care And Support Services,ACCOMMODATION - OTHER,Peoples Services,Supported Living,A56088
London Borough of Sutton,22/03/2023,50341572,"1,021.28",Direct Care And Support Services,ACCOMMODATION - OTHER,Peoples Services,Supported Living,A56088
London Borough of Sutton,23/03/2023,50345566,"2,168.64",Direct Care And Support Services,ACCOMMODATION - OTHER,Peoples Services,Supported Living,A56088
London Borough of Sutton,23/03/2023,50345566,"3,187.09",Direct Care And Support Services,ACCOMMODATION - OTHER,Peoples Services,Supported Living,A56088
London Borough of Sutton,19/01/2023,50345575,447.8,Direct Care And Support Services,ACCOMMODATION - OTHER,Peoples Services,Supported Living,A56088
London Borough of Sutton,19/01/2023,50345575,"1,307.32",Direct Care And Support Services,ACCOMMODATION - OTHER,Peoples Services,Supported Living,A56088
London Borough of Sutton,19/01/2023,50345575,561.08,Direct Care And Support Services,ACCOMMODATION - OTHER,Peoples Services,Supported Living,A56088
London Borough of Sutton,23/03/2023,50345580,"1,626.80",Direct Care And Support Services,ACCOMMODATION - OTHER,Peoples Services,Supported Living,A56088
London Borough of Sutton,23/03/2023,50345580,"2,037.72",Direct Care And Support Services,ACCOMMODATION - OTHER,Peoples Services,Supported Living,A56088
London Borough of Sutton,23/03/2023,50345581,"4,667.96",Direct Care And Support Services,ACCOMMODATION - OTHER,Peoples Services,Supported Living,A56088
London Borough of Sutton,23/03/2023,50345582,"4,667.96",Direct Care And Support Services,ACCOMMODATION - OTHER,Peoples Services,Supported Living,A56088
London Borough of Sutton,19/01/2023,50346394,"2,752.18",Direct Care And Support Services,ACCOMMODATION - OTHER,Peoples Services,Supported Living,A56088
London Borough of Sutton,23/03/2023,50346397,"2,006.42",Direct Care And Support Services,ACCOMMODATION - OTHER,Peoples Services,Supported Living,A56088
London Borough of Sutton,23/03/2023,50346397,"1,689.64",Direct Care And Support Services,ACCOMMODATION - OTHER,Peoples Services,Supported Living,A56088
London Borough of Sutton,23/03/2023,50346398,"1,084.32",Direct Care And Support Services,ACCOMMODATION - OTHER,Peoples Services,Supported Living,A56088
London Borough of Sutton,23/03/2023,50346398,"2,611.74",Direct Care And Support Services,ACCOMMODATION - OTHER,Peoples Services,Supported Living,A56088
London Borough of Sutton,24/04/2023,50346963,"1,626.80",Direct Care And Support Services,ACCOMMODATION - OTHER,Peoples Services,Supported Living,A56088
London Borough of Sutton,24/04/2023,50346963,"2,037.72",Direct Care And Support Services,ACCOMMODATION - OTHER,Peoples Services,Supported Living,A56088
London Borough of Sutton,21/02/2023,50346990,"4,667.96",Direct Care And Support Services,ACCOMMODATION - OTHER,Peoples Services,Supported Living,A56088
London Borough of Sutton,24/04/2023,50346991,"4,667.96",Direct Care And Support Services,ACCOMMODATION - OTHER,Peoples Services,Supported Living,A56088
London Borough of Sutton,24/04/2023,50347032,"2,168.64",Direct Care And Support Services,ACCOMMODATION - OTHER,Peoples Services,Supported Living,A56088
London Borough of Sutton,24/04/2023,50347032,"3,187.09",Direct Care And Support Services,ACCOMMODATION - OTHER,Peoples Services,Supported Living,A56088
London Borough of Sutton,14/11/2022,50347756,"2,091.60",Direct Care And Support Services,ACCOMMODATION - OTHER,Peoples Services,Supported Living,A56088
London Borough of Sutton,14/11/2022,50347756,"1,307.32",Direct Care And Support Services,ACCOMMODATION - OTHER,Peoples Services,Supported Living,A56088
London Borough of Sutton,14/11/2022,50347756,"1,349.92",Direct Care And Support Services,ACCOMMODATION - OTHER,Peoples Services,Supported Living,A56088
London Borough of Sutton,14/11/2022,50347757,"3,692.48",Direct Care And Support Services,ACCOMMODATION - OTHER,Peoples Services,Supported Living,A56088
London Borough of Sutton,14/11/2022,50347758,"2,349.31",Direct Care And Support Services,ACCOMMODATION - OTHER,Peoples Services,Supported Living,A56088
London Borough of Sutton,14/11/2022,50347758,"1,120.56",Direct Care And Support Services,ACCOMMODATION - OTHER,Peoples Services,Supported Living,A56088
London Borough of Sutton,14/11/2022,50347758,"1,157.07",Direct Care And Support Services,ACCOMMODATION - OTHER,Peoples Services,Supported Living,A56088
London Borough of Sutton,14/11/2022,50347759,"2,091.60",Direct Care And Support Services,ACCOMMODATION - OTHER,Peoples Services,Supported Living,A56088
London Borough of Sutton,14/11/2022,50347759,"1,307.32",Direct Care And Support Services,ACCOMMODATION - OTHER,Peoples Services,Supported Living,A56088
London Borough of Sutton,14/11/2022,50347759,"1,349.92",Direct Care And Support Services,ACCOMMODATION - OTHER,Peoples Services,Supported Living,A56088
London Borough of Sutton,14/11/2022,50347760,"1,795.07",Direct Care And Support Services,ACCOMMODATION - OTHER,Peoples Services,Supported Living,A56088
London Borough of Sutton,14/11/2022,50347760,"1,120.56",Direct Care And Support Services,ACCOMMODATION - OTHER,Peoples Services,Supported Living,A56088
London Borough of Sutton,14/11/2022,50347760,"1,157.07",Direct Care And Support Services,ACCOMMODATION - OTHER,Peoples Services,Supported Living,A56088
London Borough of Sutton,21/02/2023,50348204,"1,803.66",Direct Care And Support Services,ACCOMMODATION - OTHER,Peoples Services,Supported Living,A56088
London Borough of Sutton,21/02/2023,50348204,"1,892.40",Direct Care And Support Services,ACCOMMODATION - OTHER,Peoples Services,Supported Living,A56088
London Borough of Sutton,27/03/2023,20047171,938.34,REDACTED - PERSONAL DATA,PLS LANDLORDS,Environment Housing and Neighbourhoods,Temporary Protection - Homeless Persons,A62028
London Borough of Sutton,11/04/2023,50341230,912.6,REDACTED - PERSONAL DATA,GRANTS & EX GRATIA PAYMENTS,Peoples Services,Payment - Nursery Funding,A51056
London Borough of Sutton,11/04/2023,50340108,"203,667.51",Dorchester Primary School,GRANTS & EX GRATIA PAYMENTS,Peoples Services,Payments to Schools,A51013
London Borough of Sutton,07/04/2023,50340254,"48,791.30",Dorchester Primary School,GRANTS & EX GRATIA PAYMENTS,Peoples Services,Top-up Funding,A51016
London Borough of Sutton,11/04/2023,50340305,"16,140.60",Dorchester Primary School,GRANTS & EX GRATIA PAYMENTS,Peoples Services,Place Funding,A56110
London Borough of Sutton,03/04/2023,50340605,"3,321.39",Dreamfo Housing Ltd,CHILDREN'S SERVICE - OTHER,Peoples Services,Approved Lodgings,A61000
London Borough of Sutton,03/04/2023,50340605,276.78,Dreamfo Housing Ltd,CHILDREN'S SERVICE - OTHER,Peoples Services,Approved Lodgings,A61000
London Borough of Sutton,03/04/2023,50340612,"3,488.57",Dreamfo Housing Ltd,CHILDREN'S SERVICE - OTHER,Peoples Services,Approved Lodgings,A61000
London Borough of Sutton,03/04/2023,50340612,196.43,Dreamfo Housing Ltd,CHILDREN'S SERVICE - OTHER,Peoples Services,Approved Lodgings,A61000
London Borough of Sutton,01/03/2023,50340649,"4,317.86",Dunfield & Mead Ltd,CHILDREN'S SERVICES - RESIDENTIAL,Peoples Services,Accommodation - Supported Living,A62001
London Borough of Sutton,01/03/2023,50340649,276.78,Dunfield & Mead Ltd,CHILDREN'S SERVICES - RESIDENTIAL,Peoples Services,Accommodation - Supported Living,A62001
London Borough of Sutton,01/03/2023,50340650,"3,653.57",Dunfield & Mead Ltd,CHILDREN'S SERVICES - RESIDENTIAL,Peoples Services,Approved Lodgings,A61000
London Borough of Sutton,01/03/2023,50340650,276.78,Dunfield & Mead Ltd,CHILDREN'S SERVICES - RESIDENTIAL,Peoples Services,Approved Lodgings,A61000
London Borough of Sutton,01/03/2023,50340651,"4,401.77",Dunfield & Mead Ltd,CHILDREN'S SERVICES - RESIDENTIAL,Peoples Services,Accommodation - Supported Living,A62001
London Borough of Sutton,31/03/2023,20046727,"6,141.00",Dunheved Hotel Ltd,ACCOMMODATION BED & BREAKFAST,Environment Housing and Neighbourhoods,Bed & Breakfast,A56000
London Borough of Sutton,14/04/2023,50342060,"3,187.44",Dunheved Lodge,SOCIAL SERVICES RESIDENTIAL,Peoples Services,Residential Care - Ext Provider,A56114
London Borough of Sutton,14/04/2023,50342060,"3,016.00",Dunheved Lodge,SOCIAL SERVICES RESIDENTIAL,Peoples Services,One to One Care,A56108
London Borough of Sutton,29/03/2023,50338786,780,DWT Windows & Doors,CONSTRUCTION INDUSTRY,HRA,Payments to Contractors,C14000
London Borough of Sutton,26/03/2023,50338792,"1,050.00",DWT Windows & Doors,CONSTRUCTION INDUSTRY,HRA,Payments to Contractors,C14000
London Borough of Sutton,26/03/2023,50338793,"1,050.00",DWT Windows & Doors,CONSTRUCTION INDUSTRY,HRA,Payments to Contractors,C14000
London Borough of Sutton,26/03/2023,50338794,"1,050.00",DWT Windows & Doors,CONSTRUCTION INDUSTRY,HRA,Payments to Contractors,C14000
London Borough of Sutton,29/03/2023,50338795,"1,050.00",DWT Windows & Doors,CONSTRUCTION INDUSTRY,HRA,Payments to Contractors,C14000
London Borough of Sutton,29/03/2023,50338796,"1,050.00",DWT Windows & Doors,CONSTRUCTION INDUSTRY,HRA,Payments to Contractors,C14000
London Borough of Sutton,29/03/2023,50338797,"1,050.00",DWT Windows & Doors,CONSTRUCTION INDUSTRY,HRA,Payments to Contractors,C14000
London Borough of Sutton,05/04/2023,50341324,"3,205.00",DWT Windows & Doors,CONSTRUCTION INDUSTRY,HRA,Payments to Contractors,C14000
London Borough of Sutton,31/03/2023,50342028,"4,766.06",Dynamic Care Ltd,SOCIAL SERVICES RESIDENTIAL,Peoples Services,Approved Lodgings,A61000
London Borough of Sutton,31/03/2023,50342033,276.78,Dynamic Care Ltd,SOCIAL SERVICES RESIDENTIAL,Peoples Services,Approved Lodgings,A61000
London Borough of Sutton,31/03/2023,50342033,"5,203.57",Dynamic Care Ltd,SOCIAL SERVICES RESIDENTIAL,Peoples Services,Accommodation - Supported Living,A62001
London Borough of Sutton,31/03/2023,20046848,"25,034.00",E Homes And Shelters,ACCOMMODATION BED & BREAKFAST,Environment Housing and Neighbourhoods,Bed & Breakfast,A56000
London Borough of Sutton,13/04/2023,50347124,"29,137.63",Eagle House Junior School,GRANTS & EX GRATIA PAYMENTS,Peoples Services,Independent School Fees,A56002
London Borough of Sutton,28/02/2023,50347125,"19,999.00",Eagle House Junior School,GRANTS & EX GRATIA PAYMENTS,Peoples Services,Independent School Fees,A56002
London Borough of Sutton,28/02/2023,50347126,"9,400.00",Eagle House Junior School,GRANTS & EX GRATIA PAYMENTS,Peoples Services,Independent School Fees,A56002
London Borough of Sutton,28/02/2023,50347127,"9,400.00",Eagle House Junior School,GRANTS & EX GRATIA PAYMENTS,Peoples Services,Independent School Fees,A56002
London Borough of Sutton,28/02/2023,50347128,"20,638.00",Eagle House Junior School,GRANTS & EX GRATIA PAYMENTS,Peoples Services,Independent School Fees,A56002
London Borough of Sutton,13/04/2023,50347130,"23,475.82",Eagle House Junior School,GRANTS & EX GRATIA PAYMENTS,Peoples Services,Independent School Fees,A56002
London Borough of Sutton,13/04/2023,50347131,"20,821.23",Eagle House Junior School,GRANTS & EX GRATIA PAYMENTS,Peoples Services,Independent School Fees,A56002
London Borough of Sutton,13/04/2023,50347132,"20,821.23",Eagle House Junior School,GRANTS & EX GRATIA PAYMENTS,Peoples Services,Independent School Fees,A56002
London Borough of Sutton,13/04/2023,50347133,"19,296.95",Eagle House Junior School,GRANTS & EX GRATIA PAYMENTS,Peoples Services,Independent School Fees,A56002
London Borough of Sutton,14/04/2023,50347110,"24,840.39",Eagle House Senior School,GRANTS & EX GRATIA PAYMENTS,Peoples Services,Independent School Fees,A56002
London Borough of Sutton,14/04/2023,50347111,"21,198.94",Eagle House Senior School,GRANTS & EX GRATIA PAYMENTS,Peoples Services,Independent School Fees,A56002
London Borough of Sutton,14/04/2023,50347112,"20,832.18",Eagle House Senior School,GRANTS & EX GRATIA PAYMENTS,Peoples Services,Independent School Fees,A56002
London Borough of Sutton,14/04/2023,50347113,"21,876.28",Eagle House Senior School,GRANTS & EX GRATIA PAYMENTS,Peoples Services,Independent School Fees,A56002
London Borough of Sutton,14/04/2023,50347114,"20,183.46",Eagle House Senior School,GRANTS & EX GRATIA PAYMENTS,Peoples Services,Independent School Fees,A56002
London Borough of Sutton,14/04/2023,50347115,"22,169.90",Eagle House Senior School,GRANTS & EX GRATIA PAYMENTS,Peoples Services,Independent School Fees,A56002
London Borough of Sutton,14/04/2023,50347116,"23,436.95",Eagle House Senior School,GRANTS & EX GRATIA PAYMENTS,Peoples Services,Independent School Fees,A56002
London Borough of Sutton,14/04/2023,50347117,"19,737.20",Eagle House Senior School,GRANTS & EX GRATIA PAYMENTS,Peoples Services,Independent School Fees,A56002
London Borough of Sutton,14/04/2023,50347118,"21,491.50",Eagle House Senior School,GRANTS & EX GRATIA PAYMENTS,Peoples Services,Independent School Fees,A56002
London Borough of Sutton,14/04/2023,50347119,"20,443.87",Eagle House Senior School,GRANTS & EX GRATIA PAYMENTS,Peoples Services,Independent School Fees,A56002
London Borough of Sutton,31/03/2023,50347120,"16,095.76",Eagle House Senior School,GRANTS & EX GRATIA PAYMENTS,Peoples Services,Independent School Fees,A56002
London Borough of Sutton,28/02/2023,50347121,"19,286.67",Eagle House Senior School,GRANTS & EX GRATIA PAYMENTS,Peoples Services,Independent School Fees,A56002
London Borough of Sutton,28/02/2023,50347129,"20,209.33",Eagle House Senior School,GRANTS & EX GRATIA PAYMENTS,Peoples Services,Independent School Fees,A56002
London Borough of Sutton,31/03/2023,50347145,"15,961.45",Eagle House Senior School,GRANTS & EX GRATIA PAYMENTS,Peoples Services,Independent School Fees,A56002
London Borough of Sutton,28/02/2023,50347151,"19,642.67",Eagle House Senior School,GRANTS & EX GRATIA PAYMENTS,Peoples Services,Independent School Fees,A56002
London Borough of Sutton,24/03/2023,50347088,"11,739.06",East Surrey College,GRANTS & EX GRATIA PAYMENTS,Peoples Services,Top-up Funding,A51016
London Borough of Sutton,14/04/2023,50342213,"3,734.88",Eastcroft Nursing Home,SOCIAL SERVICES RESIDENTIAL,Peoples Services,Nursing Care - Ext Provider,A56025
London Borough of Sutton,14/04/2023,50342213,-750.4,Eastcroft Nursing Home,SOCIAL SERVICES RESIDENTIAL,Peoples Services,Nursing Care - 3rd party top up payment,A56023
London Borough of Sutton,14/04/2023,50342214,"3,821.24",Eastcroft Nursing Home,SOCIAL SERVICES RESIDENTIAL,Peoples Services,Nursing Care Short Term,A56026
London Borough of Sutton,14/04/2023,50342214,-836.76,Eastcroft Nursing Home,SOCIAL SERVICES RESIDENTIAL,Peoples Services,Nursing Care - 3rd party top up payment,A56023
London Borough of Sutton,14/04/2023,50342308,"3,734.88",Eastcroft Nursing Home,SOCIAL SERVICES RESIDENTIAL,Peoples Services,Nursing Care - Ext Provider,A56025
London Borough of Sutton,14/04/2023,50342308,-750.4,Eastcroft Nursing Home,SOCIAL SERVICES RESIDENTIAL,Peoples Services,Nursing Care - 3rd party top up payment,A56023
London Borough of Sutton,14/04/2023,50342336,"3,821.24",Eastcroft Nursing Home,SOCIAL SERVICES RESIDENTIAL,Peoples Services,Respite Care,A56116
London Borough of Sutton,14/04/2023,50342336,-836.76,Eastcroft Nursing Home,SOCIAL SERVICES RESIDENTIAL,Peoples Services,Nursing Care - 3rd party top up payment,A56023
London Borough of Sutton,14/04/2023,50342340,"3,821.24",Eastcroft Nursing Home,SOCIAL SERVICES RESIDENTIAL,Peoples Services,Nursing Care Short Term,A56026
London Borough of Sutton,14/04/2023,50342345,"3,821.24",Eastcroft Nursing Home,SOCIAL SERVICES RESIDENTIAL,Peoples Services,Nursing Care Short Term,A56026
London Borough of Sutton,14/04/2023,50342345,-836.76,Eastcroft Nursing Home,SOCIAL SERVICES RESIDENTIAL,Peoples Services,Nursing Care - 3rd party top up payment,A56023
London Borough of Sutton,14/04/2023,50342363,"3,821.24",Eastcroft Nursing Home,SOCIAL SERVICES RESIDENTIAL,Peoples Services,Nursing Care Short Term,A56026
London Borough of Sutton,14/04/2023,50342363,-836.76,Eastcroft Nursing Home,SOCIAL SERVICES RESIDENTIAL,Peoples Services,Nursing Care - 3rd party top up payment,A56023
London Borough of Sutton,14/04/2023,50342484,"4,052.76",Eastcroft Nursing Home,SOCIAL SERVICES RESIDENTIAL,Peoples Services,Nursing Care Short Term,A56026
London Borough of Sutton,14/04/2023,50342484,-836.76,Eastcroft Nursing Home,SOCIAL SERVICES RESIDENTIAL,Peoples Services,Nursing Care - 3rd party top up payment,A56023
London Borough of Sutton,14/04/2023,50342485,"3,848.24",Eastcroft Nursing Home,SOCIAL SERVICES RESIDENTIAL,Peoples Services,Nursing Care - Ext Provider,A56025
London Borough of Sutton,14/04/2023,50342485,-750.4,Eastcroft Nursing Home,SOCIAL SERVICES RESIDENTIAL,Peoples Services,Nursing Care - 3rd party top up payment,A56023
London Borough of Sutton,14/04/2023,50342550,"3,821.24",Eastcroft Nursing Home,SOCIAL SERVICES RESIDENTIAL,Peoples Services,Nursing Care Short Term,A56026
London Borough of Sutton,14/04/2023,50342550,-836.76,Eastcroft Nursing Home,SOCIAL SERVICES RESIDENTIAL,Peoples Services,Nursing Care - 3rd party top up payment,A56023
London Borough of Sutton,25/11/2022,20046874,963.34,EDF Energy,UTILITIES,Peoples Services,Electricity,A21000
London Borough of Sutton,14/01/2023,20046875,"2,202.72",EDF Energy,UTILITIES,Peoples Services,Gas,A21003
London Borough of Sutton,28/03/2023,20046893,549.94,EDF Energy,UTILITIES,HRA,Electricity,A21000
London Borough of Sutton,03/04/2023,20047103,492.16,EDF Energy,UTILITIES,Resources,Electricity,A21000
London Borough of Sutton,03/04/2023,20047107,895.92,EDF Energy,UTILITIES,Environment Housing and Neighbourhoods,Electricity,A21000
London Borough of Sutton,05/04/2023,50339707,552.9,REDACTED - PERSONAL DATA,SUNDRY SUPPLIER - EDUCATION,Peoples Services,Miscellaneous Expenses,A49000
London Borough of Sutton,24/03/2023,20046711,450.89,EE Airtime,TELECOMS,Resources,Mobile Phones,A45030
London Borough of Sutton,11/04/2023,50341103,"1,514.70",REDACTED - PERSONAL DATA,GRANTS & EX GRATIA PAYMENTS,Peoples Services,Payment - Nursery Funding,A51056
London Borough of Sutton,05/04/2023,50339671,982.8,REDACTED - PERSONAL DATA,SUNDRY SUPPLIER - EDUCATION,Peoples Services,Miscellaneous Expenses,A49000
London Borough of Sutton,19/03/2023,50338159,"1,160.25",Elite CarePlus Ltd,SOCIAL SERVICES DAY CARE,Peoples Services,Home Care Services,A56019
London Borough of Sutton,05/03/2023,50338160,"1,160.25",Elite CarePlus Ltd,SOCIAL SERVICES DAY CARE,Peoples Services,Home Care Services,A56019
London Borough of Sutton,12/03/2023,50338161,"1,160.25",Elite CarePlus Ltd,SOCIAL SERVICES DAY CARE,Peoples Services,Home Care Services,A56019
London Borough of Sutton,19/03/2023,50338207,975,Elite CarePlus Ltd,SOCIAL SERVICES DAY CARE,Peoples Services,Home Care Services,A56019
London Borough of Sutton,05/03/2023,50338208,975,Elite CarePlus Ltd,SOCIAL SERVICES DAY CARE,Peoples Services,Home Care Services,A56019
London Borough of Sutton,12/03/2023,50338209,975,Elite CarePlus Ltd,SOCIAL SERVICES DAY CARE,Peoples Services,Home Care Services,A56019
London Borough of Sutton,19/03/2023,50338260,819,Elite CarePlus Ltd,SOCIAL SERVICES DAY CARE,Peoples Services,Home Care Services,A56019
London Borough of Sutton,12/03/2023,50338270,819,Elite CarePlus Ltd,SOCIAL SERVICES DAY CARE,Peoples Services,Home Care Services,A56019
London Borough of Sutton,19/03/2023,50338277,799.5,Elite CarePlus Ltd,SOCIAL SERVICES DAY CARE,Peoples Services,Home Care Services,A56019
London Borough of Sutton,05/03/2023,50338278,799.5,Elite CarePlus Ltd,SOCIAL SERVICES DAY CARE,Peoples Services,Home Care Services,A56019
London Borough of Sutton,12/03/2023,50338279,799.5,Elite CarePlus Ltd,SOCIAL SERVICES DAY CARE,Peoples Services,Home Care Services,A56019
London Borough of Sutton,19/03/2023,50338283,750.75,Elite CarePlus Ltd,SOCIAL SERVICES DAY CARE,Peoples Services,Home Care Services,A56019
London Borough of Sutton,05/03/2023,50338284,750.75,Elite CarePlus Ltd,SOCIAL SERVICES DAY CARE,Peoples Services,Home Care Services,A56019
London Borough of Sutton,12/03/2023,50338285,750.75,Elite CarePlus Ltd,SOCIAL SERVICES DAY CARE,Peoples Services,Home Care Services,A56019
London Borough of Sutton,19/03/2023,50338295,614.25,Elite CarePlus Ltd,SOCIAL SERVICES DAY CARE,Peoples Services,Home Care Services,A56019
London Borough of Sutton,05/03/2023,50338296,614.25,Elite CarePlus Ltd,SOCIAL SERVICES DAY CARE,Peoples Services,Home Care Services,A56019
London Borough of Sutton,12/03/2023,50338297,614.25,Elite CarePlus Ltd,SOCIAL SERVICES DAY CARE,Peoples Services,Home Care Services,A56019
London Borough of Sutton,19/03/2023,50338298,614.25,Elite CarePlus Ltd,SOCIAL SERVICES DAY CARE,Peoples Services,Home Care Services,A56019
London Borough of Sutton,05/03/2023,50338299,614.25,Elite CarePlus Ltd,SOCIAL SERVICES DAY CARE,Peoples Services,Home Care Services,A56019
London Borough of Sutton,12/03/2023,50338300,614.25,Elite CarePlus Ltd,SOCIAL SERVICES DAY CARE,Peoples Services,Home Care Services,A56019
London Borough of Sutton,03/04/2023,20046828,"2,632.00",Elite Guarding (UK) Ltd,GRANTS & EX GRATIA PAYMENTS,HRA,Payments to Contractors,C14000
London Borough of Sutton,21/02/2023,50339589,"13,942.00",Elysian Animal Assisted Therapy,CHILDREN'S SERVICES - SEN SERVICES,Peoples Services,Independent School Fees,A56002
London Borough of Sutton,14/04/2023,50342162,"9,101.84",Elysium Healthcare Ltd,CHILDREN'S SERVICES - FOSTERING & ADOPTION SERVICES,Peoples Services,Residential Care - Ext Provider,A56114
London Borough of Sutton,14/04/2023,50342150,"7,668.40",Elysium Supported Living Limited,SOCIAL SERVICES RESIDENTIAL,Peoples Services,Residential Care - Ext Provider,A56114
London Borough of Sutton,11/04/2023,50341170,757.35,REDACTED - PERSONAL DATA,SOCIAL SERVICES - DIRECT PAYMENTS,Peoples Services,Payment - Nursery Funding,A51056
London Borough of Sutton,31/03/2023,50347159,"30,220.00",EMPOWER KNOWLEDGE LIMITED,CHILDREN'S SERVICES - SEN SERVICES,Peoples Services,Independent School Fees,A56002
London Borough of Sutton,18/04/2023,50343861,"3,642.86",Enriched Care Ltd,CHILDREN'S SERVICES - RESIDENTIAL,Peoples Services,Supported Living,A56088
London Borough of Sutton,06/04/2023,20047377,"1,547.38",E-on Energy,UTILITIES,Resources,Electricity,A21000
London Borough of Sutton,14/04/2023,20047689,"2,388.94",E-on Energy,UTILITIES,Resources,Gas,A21003
London Borough of Sutton,12/02/2023,20046940,"44,242.11",Epsom & St Helier Nhs Trust,OFFICE SERVICES,Peoples Services,Agency Staff - Other,A10505
London Borough of Sutton,28/03/2023,20047641,"107,530.00",Epsom & St Helier Nhs Trust,OFFICE SERVICES,Health and Wellbeing,Payments to Health Authorities,A52000
London Borough of Sutton,28/03/2023,20047643,"66,010.00",Epsom & St Helier Nhs Trust,OFFICE SERVICES,Health and Wellbeing,Payments to Health Authorities,A52000
London Borough of Sutton,11/04/2023,50341215,"21,794.85",Epsom & St Helier Nhs Trust,OFFICE SERVICES,Peoples Services,Payment - Nursery Funding,A51056
London Borough of Sutton,14/04/2023,50342153,"2,596.14",Equinox Care,SOCIAL SERVICES RESIDENTIAL,Peoples Services,Interim Placements - Ext Provider,A56102
London Borough of Sutton,26/03/2023,50337742,"1,008.00",Escoben Care Services Ltd,SOCIAL SERVICES RESIDENTIAL,Peoples Services,Home Care Services,A56019
London Borough of Sutton,26/03/2023,50337743,797.9,Escoben Care Services Ltd,SOCIAL SERVICES RESIDENTIAL,Peoples Services,Home Care Services,A56019
London Borough of Sutton,02/04/2023,50340695,797.9,Escoben Care Services Ltd,SOCIAL SERVICES RESIDENTIAL,Peoples Services,Home Care Services,A56019
London Borough of Sutton,02/04/2023,50340780,"1,008.00",Escoben Care Services Ltd,SOCIAL SERVICES RESIDENTIAL,Peoples Services,Home Care Services,A56019
London Borough of Sutton,09/04/2023,50342712,"1,080.00",Escoben Care Services Ltd,SOCIAL SERVICES RESIDENTIAL,Peoples Services,Home Care Services,A56019
London Borough of Sutton,09/04/2023,50342713,859.41,Escoben Care Services Ltd,SOCIAL SERVICES RESIDENTIAL,Peoples Services,Home Care Services,A56019
London Borough of Sutton,16/04/2023,50345613,"1,080.00",Escoben Care Services Ltd,SOCIAL SERVICES RESIDENTIAL,Peoples Services,Home Care Services,A56019
London Borough of Sutton,16/04/2023,50345631,859.41,Escoben Care Services Ltd,SOCIAL SERVICES RESIDENTIAL,Peoples Services,Home Care Services,A56019
London Borough of Sutton,16/04/2023,50345811,539.96,Escoben Care Services Ltd,SOCIAL SERVICES RESIDENTIAL,Peoples Services,Home Care Services,A56019
London Borough of Sutton,06/04/2023,50341579,"3,521.70",Ewell Castle School,SCHOOL FUNDS,Peoples Services,Independent School Fees,A56002
London Borough of Sutton,06/04/2023,50343849,"10,205.83",Ewell Castle School,SCHOOL FUNDS,Peoples Services,Independent School Fees,A56002
London Borough of Sutton,19/03/2023,50337440,612.5,Exodus Health Care Services Ltd,SOCIAL SERVICES RESIDENTIAL,Peoples Services,Home Care Services,A56019
London Borough of Sutton,19/03/2023,50337502,656.25,Exodus Health Care Services Ltd,SOCIAL SERVICES RESIDENTIAL,Peoples Services,Home Care Services,A56019
London Borough of Sutton,19/03/2023,50337502,105,Exodus Health Care Services Ltd,SOCIAL SERVICES RESIDENTIAL,Peoples Services,Home Care Services,A56019
London Borough of Sutton,19/03/2023,50337513,551.25,Exodus Health Care Services Ltd,SOCIAL SERVICES RESIDENTIAL,Peoples Services,Home Care Services,A56019
London Borough of Sutton,19/03/2023,50337516,551.15,Exodus Health Care Services Ltd,SOCIAL SERVICES RESIDENTIAL,Peoples Services,Home Care Services,A56019
London Borough of Sutton,19/03/2023,50337516,91.98,Exodus Health Care Services Ltd,SOCIAL SERVICES RESIDENTIAL,Peoples Services,Home Care Services,A56019
London Borough of Sutton,19/03/2023,50337525,551.25,Exodus Health Care Services Ltd,SOCIAL SERVICES RESIDENTIAL,Peoples Services,Home Care Services,A56019
London Borough of Sutton,19/03/2023,50337551,551.25,Exodus Health Care Services Ltd,SOCIAL SERVICES RESIDENTIAL,Peoples Services,Home Care Services,A56019
London Borough of Sutton,19/03/2023,50337555,717.5,Exodus Health Care Services Ltd,SOCIAL SERVICES RESIDENTIAL,Peoples Services,Home Care Services,A56019
London Borough of Sutton,19/03/2023,50337557,612.5,Exodus Health Care Services Ltd,SOCIAL SERVICES RESIDENTIAL,Peoples Services,Home Care Services,A56019
London Borough of Sutton,19/03/2023,50337557,52.5,Exodus Health Care Services Ltd,SOCIAL SERVICES RESIDENTIAL,Peoples Services,Home Care Services,A56019
London Borough of Sutton,19/03/2023,50337558,551.25,Exodus Health Care Services Ltd,SOCIAL SERVICES RESIDENTIAL,Peoples Services,Home Care Services,A56019
London Borough of Sutton,19/03/2023,50337558,52.5,Exodus Health Care Services Ltd,SOCIAL SERVICES RESIDENTIAL,Peoples Services,Home Care Services,A56019
London Borough of Sutton,19/03/2023,50337566,612.5,Exodus Health Care Services Ltd,SOCIAL SERVICES RESIDENTIAL,Peoples Services,Home Care Services,A56019
London Borough of Sutton,19/03/2023,50337607,551.25,Exodus Health Care Services Ltd,SOCIAL SERVICES RESIDENTIAL,Peoples Services,Home Care Services,A56019
London Borough of Sutton,19/03/2023,50337637,708.75,Exodus Health Care Services Ltd,SOCIAL SERVICES RESIDENTIAL,Peoples Services,Home Care Services,A56019
London Borough of Sutton,19/03/2023,50337674,621.25,Exodus Health Care Services Ltd,SOCIAL SERVICES RESIDENTIAL,Peoples Services,Home Care Services,A56019
London Borough of Sutton,19/03/2023,50337679,551.25,Exodus Health Care Services Ltd,SOCIAL SERVICES RESIDENTIAL,Peoples Services,Home Care Services,A56019
London Borough of Sutton,26/03/2023,50338975,551.25,Exodus Health Care Services Ltd,SOCIAL SERVICES RESIDENTIAL,Peoples Services,Home Care Services,A56019
London Borough of Sutton,26/03/2023,50338985,656.25,Exodus Health Care Services Ltd,SOCIAL SERVICES RESIDENTIAL,Peoples Services,Home Care Services,A56019
London Borough of Sutton,26/03/2023,50338985,105,Exodus Health Care Services Ltd,SOCIAL SERVICES RESIDENTIAL,Peoples Services,Home Care Services,A56019
London Borough of Sutton,26/03/2023,50339020,708.75,Exodus Health Care Services Ltd,SOCIAL SERVICES RESIDENTIAL,Peoples Services,Home Care Services,A56019
London Borough of Sutton,26/03/2023,50339045,717.5,Exodus Health Care Services Ltd,SOCIAL SERVICES RESIDENTIAL,Peoples Services,Home Care Services,A56019
London Borough of Sutton,26/03/2023,50339091,621.25,Exodus Health Care Services Ltd,SOCIAL SERVICES RESIDENTIAL,Peoples Services,Home Care Services,A56019
London Borough of Sutton,26/03/2023,50339095,489.98,Exodus Health Care Services Ltd,SOCIAL SERVICES RESIDENTIAL,Peoples Services,Home Care Services,A56019
London Borough of Sutton,26/03/2023,50339095,17.52,Exodus Health Care Services Ltd,SOCIAL SERVICES RESIDENTIAL,Peoples Services,Home Care Services,A56019
London Borough of Sutton,26/03/2023,50339101,551.25,Exodus Health Care Services Ltd,SOCIAL SERVICES RESIDENTIAL,Peoples Services,Home Care Services,A56019
London Borough of Sutton,26/03/2023,50339130,612.5,Exodus Health Care Services Ltd,SOCIAL SERVICES RESIDENTIAL,Peoples Services,Home Care Services,A56019
London Borough of Sutton,26/03/2023,50339143,551.25,Exodus Health Care Services Ltd,SOCIAL SERVICES RESIDENTIAL,Peoples Services,Home Care Services,A56019
London Borough of Sutton,26/03/2023,50339151,551.25,Exodus Health Care Services Ltd,SOCIAL SERVICES RESIDENTIAL,Peoples Services,Home Care Services,A56019
London Borough of Sutton,26/03/2023,50339157,551.25,Exodus Health Care Services Ltd,SOCIAL SERVICES RESIDENTIAL,Peoples Services,Home Care Services,A56019
London Borough of Sutton,26/03/2023,50339159,612.5,Exodus Health Care Services Ltd,SOCIAL SERVICES RESIDENTIAL,Peoples Services,Home Care Services,A56019
London Borough of Sutton,26/03/2023,50339159,52.5,Exodus Health Care Services Ltd,SOCIAL SERVICES RESIDENTIAL,Peoples Services,Home Care Services,A56019
London Borough of Sutton,31/03/2023,50339173,367.43,Exodus Health Care Services Ltd,SOCIAL SERVICES RESIDENTIAL,Peoples Services,Home Care Services,A56019
London Borough of Sutton,31/03/2023,50339173,183.82,Exodus Health Care Services Ltd,SOCIAL SERVICES RESIDENTIAL,Peoples Services,Home Care Services,A56019
London Borough of Sutton,04/04/2023,50339174,"4,042.50",Exodus Health Care Services Ltd,SOCIAL SERVICES RESIDENTIAL,Peoples Services,Home Care Services,A56019
London Borough of Sutton,04/04/2023,50339174,"1,172.52",Exodus Health Care Services Ltd,SOCIAL SERVICES RESIDENTIAL,Peoples Services,Home Care Services,A56019
London Borough of Sutton,04/04/2023,50339175,"5,145.00",Exodus Health Care Services Ltd,SOCIAL SERVICES RESIDENTIAL,Peoples Services,Home Care Services,A56019
London Borough of Sutton,04/04/2023,50339175,"2,205.84",Exodus Health Care Services Ltd,SOCIAL SERVICES RESIDENTIAL,Peoples Services,Home Care Services,A56019
London Borough of Sutton,26/03/2023,50339182,551.15,Exodus Health Care Services Ltd,SOCIAL SERVICES RESIDENTIAL,Peoples Services,Home Care Services,A56019
London Borough of Sutton,26/03/2023,50339182,91.98,Exodus Health Care Services Ltd,SOCIAL SERVICES RESIDENTIAL,Peoples Services,Home Care Services,A56019
London Borough of Sutton,26/03/2023,50339183,612.5,Exodus Health Care Services Ltd,SOCIAL SERVICES RESIDENTIAL,Peoples Services,Home Care Services,A56019
London Borough of Sutton,26/03/2023,50339188,551.25,Exodus Health Care Services Ltd,SOCIAL SERVICES RESIDENTIAL,Peoples Services,Home Care Services,A56019
London Borough of Sutton,26/03/2023,50339188,52.5,Exodus Health Care Services Ltd,SOCIAL SERVICES RESIDENTIAL,Peoples Services,Home Care Services,A56019
London Borough of Sutton,02/04/2023,50342754,551.25,Exodus Health Care Services Ltd,SOCIAL SERVICES RESIDENTIAL,Peoples Services,Home Care Services,A56019
London Borough of Sutton,09/04/2023,50342757,796.25,Exodus Health Care Services Ltd,SOCIAL SERVICES RESIDENTIAL,Peoples Services,Home Care Services,A56019
London Borough of Sutton,02/04/2023,50342764,551.15,Exodus Health Care Services Ltd,SOCIAL SERVICES RESIDENTIAL,Peoples Services,Home Care Services,A56019
London Borough of Sutton,02/04/2023,50342764,91.98,Exodus Health Care Services Ltd,SOCIAL SERVICES RESIDENTIAL,Peoples Services,Home Care Services,A56019
London Borough of Sutton,02/04/2023,50342770,428.68,Exodus Health Care Services Ltd,SOCIAL SERVICES RESIDENTIAL,Peoples Services,Home Care Services,A56019
London Borough of Sutton,02/04/2023,50342770,183.82,Exodus Health Care Services Ltd,SOCIAL SERVICES RESIDENTIAL,Peoples Services,Home Care Services,A56019
London Borough of Sutton,02/04/2023,50342780,612.5,Exodus Health Care Services Ltd,SOCIAL SERVICES RESIDENTIAL,Peoples Services,Home Care Services,A56019
London Borough of Sutton,02/04/2023,50342780,52.5,Exodus Health Care Services Ltd,SOCIAL SERVICES RESIDENTIAL,Peoples Services,Home Care Services,A56019
London Borough of Sutton,02/04/2023,50342805,551.25,Exodus Health Care Services Ltd,SOCIAL SERVICES RESIDENTIAL,Peoples Services,Home Care Services,A56019
London Borough of Sutton,02/04/2023,50342807,551.25,Exodus Health Care Services Ltd,SOCIAL SERVICES RESIDENTIAL,Peoples Services,Home Care Services,A56019
London Borough of Sutton,02/04/2023,50342807,52.5,Exodus Health Care Services Ltd,SOCIAL SERVICES RESIDENTIAL,Peoples Services,Home Care Services,A56019
London Borough of Sutton,09/04/2023,50342813,612.5,Exodus Health Care Services Ltd,SOCIAL SERVICES RESIDENTIAL,Peoples Services,Home Care Services,A56019
London Borough of Sutton,02/04/2023,50342814,612.5,Exodus Health Care Services Ltd,SOCIAL SERVICES RESIDENTIAL,Peoples Services,Home Care Services,A56019
London Borough of Sutton,09/04/2023,50342827,708.75,Exodus Health Care Services Ltd,SOCIAL SERVICES RESIDENTIAL,Peoples Services,Home Care Services,A56019
London Borough of Sutton,02/04/2023,50342837,551.25,Exodus Health Care Services Ltd,SOCIAL SERVICES RESIDENTIAL,Peoples Services,Home Care Services,A56019
London Borough of Sutton,02/04/2023,50342868,708.75,Exodus Health Care Services Ltd,SOCIAL SERVICES RESIDENTIAL,Peoples Services,Home Care Services,A56019
London Borough of Sutton,09/04/2023,50342874,551.25,Exodus Health Care Services Ltd,SOCIAL SERVICES RESIDENTIAL,Peoples Services,Home Care Services,A56019
London Borough of Sutton,09/04/2023,50342878,551.15,Exodus Health Care Services Ltd,SOCIAL SERVICES RESIDENTIAL,Peoples Services,Home Care Services,A56019
London Borough of Sutton,09/04/2023,50342878,91.98,Exodus Health Care Services Ltd,SOCIAL SERVICES RESIDENTIAL,Peoples Services,Home Care Services,A56019
London Borough of Sutton,09/04/2023,50342880,612.5,Exodus Health Care Services Ltd,SOCIAL SERVICES RESIDENTIAL,Peoples Services,Home Care Services,A56019
London Borough of Sutton,09/04/2023,50342880,52.5,Exodus Health Care Services Ltd,SOCIAL SERVICES RESIDENTIAL,Peoples Services,Home Care Services,A56019
London Borough of Sutton,09/04/2023,50342881,551.25,Exodus Health Care Services Ltd,SOCIAL SERVICES RESIDENTIAL,Peoples Services,Home Care Services,A56019
London Borough of Sutton,09/04/2023,50342881,52.5,Exodus Health Care Services Ltd,SOCIAL SERVICES RESIDENTIAL,Peoples Services,Home Care Services,A56019
London Borough of Sutton,09/04/2023,50342883,551.25,Exodus Health Care Services Ltd,SOCIAL SERVICES RESIDENTIAL,Peoples Services,Home Care Services,A56019
London Borough of Sutton,02/04/2023,50342884,717.5,Exodus Health Care Services Ltd,SOCIAL SERVICES RESIDENTIAL,Peoples Services,Home Care Services,A56019
London Borough of Sutton,09/04/2023,50342887,551.25,Exodus Health Care Services Ltd,SOCIAL SERVICES RESIDENTIAL,Peoples Services,Home Care Services,A56019
London Borough of Sutton,09/04/2023,50342891,551.25,Exodus Health Care Services Ltd,SOCIAL SERVICES RESIDENTIAL,Peoples Services,Home Care Services,A56019
London Borough of Sutton,09/04/2023,50342891,288.75,Exodus Health Care Services Ltd,SOCIAL SERVICES RESIDENTIAL,Peoples Services,Home Care Services,A56019
London Borough of Sutton,02/04/2023,50342906,656.25,Exodus Health Care Services Ltd,SOCIAL SERVICES RESIDENTIAL,Peoples Services,Home Care Services,A56019
London Borough of Sutton,02/04/2023,50342906,105,Exodus Health Care Services Ltd,SOCIAL SERVICES RESIDENTIAL,Peoples Services,Home Care Services,A56019
London Borough of Sutton,02/04/2023,50342922,612.5,Exodus Health Care Services Ltd,SOCIAL SERVICES RESIDENTIAL,Peoples Services,Home Care Services,A56019
London Borough of Sutton,09/04/2023,50342931,612.5,Exodus Health Care Services Ltd,SOCIAL SERVICES RESIDENTIAL,Peoples Services,Home Care Services,A56019
London Borough of Sutton,02/04/2023,50342939,551.25,Exodus Health Care Services Ltd,SOCIAL SERVICES RESIDENTIAL,Peoples Services,Home Care Services,A56019
London Borough of Sutton,02/04/2023,50342957,489.98,Exodus Health Care Services Ltd,SOCIAL SERVICES RESIDENTIAL,Peoples Services,Home Care Services,A56019
London Borough of Sutton,02/04/2023,50342957,17.52,Exodus Health Care Services Ltd,SOCIAL SERVICES RESIDENTIAL,Peoples Services,Home Care Services,A56019
London Borough of Sutton,09/04/2023,50343002,428.68,Exodus Health Care Services Ltd,SOCIAL SERVICES RESIDENTIAL,Peoples Services,Home Care Services,A56019
London Borough of Sutton,09/04/2023,50343002,183.82,Exodus Health Care Services Ltd,SOCIAL SERVICES RESIDENTIAL,Peoples Services,Home Care Services,A56019
London Borough of Sutton,09/04/2023,50343024,717.5,Exodus Health Care Services Ltd,SOCIAL SERVICES RESIDENTIAL,Peoples Services,Home Care Services,A56019
London Borough of Sutton,09/04/2023,50343050,656.25,Exodus Health Care Services Ltd,SOCIAL SERVICES RESIDENTIAL,Peoples Services,Home Care Services,A56019
London Borough of Sutton,09/04/2023,50343050,105,Exodus Health Care Services Ltd,SOCIAL SERVICES RESIDENTIAL,Peoples Services,Home Care Services,A56019
London Borough of Sutton,09/04/2023,50343061,551.25,Exodus Health Care Services Ltd,SOCIAL SERVICES RESIDENTIAL,Peoples Services,Home Care Services,A56019
London Borough of Sutton,02/04/2023,50343965,551.25,Exodus Health Care Services Ltd,SOCIAL SERVICES RESIDENTIAL,Peoples Services,Home Care Services,A56019
London Borough of Sutton,09/04/2023,50344033,533.73,Exodus Health Care Services Ltd,SOCIAL SERVICES RESIDENTIAL,Peoples Services,Home Care Services,A56019
London Borough of Sutton,09/04/2023,50344033,17.52,Exodus Health Care Services Ltd,SOCIAL SERVICES RESIDENTIAL,Peoples Services,Home Care Services,A56019
London Borough of Sutton,29/03/2023,20046561,"6,355.92",F M Conway Limited,CONSTRUCTION INDUSTRY,Environment Housing and Neighbourhoods,Payments to Contractors,C14000
London Borough of Sutton,11/04/2023,20047185,"4,208.81",F M Conway Limited,CONSTRUCTION INDUSTRY,Environment Housing and Neighbourhoods,Payments to Contractors,C14000
London Borough of Sutton,11/04/2023,50341118,"8,330.85",Fairlands Pre-School,GRANTS & EX GRATIA PAYMENTS,Peoples Services,Payment - Nursery Funding,A51056
London Borough of Sutton,11/04/2023,50341232,912.6,Fairlands Pre-School,GRANTS & EX GRATIA PAYMENTS,Peoples Services,Payment - Nursery Funding,A51056
London Borough of Sutton,14/04/2023,50342238,-836.76,Family Star Ltd,SOCIAL SERVICES RESIDENTIAL,Peoples Services,Nursing Care - 3rd party top up payment,A56023
London Borough of Sutton,14/04/2023,50342238,"3,821.24",Family Star Ltd,SOCIAL SERVICES RESIDENTIAL,Peoples Services,Nursing Care - Ext Provider,A56025
London Borough of Sutton,14/04/2023,50342295,"3,646.72",Family Star Ltd,SOCIAL SERVICES RESIDENTIAL,Peoples Services,Nursing Care - Ext Provider,A56025
London Borough of Sutton,14/04/2023,50342295,-662.24,Family Star Ltd,SOCIAL SERVICES RESIDENTIAL,Peoples Services,Nursing Care - 3rd party top up payment,A56023
London Borough of Sutton,14/04/2023,50342384,"3,848.24",Family Star Ltd,SOCIAL SERVICES RESIDENTIAL,Peoples Services,Nursing Care - Ext Provider,A56025
London Borough of Sutton,14/04/2023,50342384,-750.4,Family Star Ltd,SOCIAL SERVICES RESIDENTIAL,Peoples Services,Nursing Care - 3rd party top up payment,A56023
London Borough of Sutton,14/04/2023,50342392,"3,821.24",Family Star Ltd,SOCIAL SERVICES RESIDENTIAL,Peoples Services,Nursing Care Short Term,A56026
London Borough of Sutton,14/04/2023,50342392,-836.76,Family Star Ltd,SOCIAL SERVICES RESIDENTIAL,Peoples Services,Nursing Care - 3rd party top up payment,A56023
London Borough of Sutton,14/04/2023,50342426,"3,821.24",Family Star Ltd,SOCIAL SERVICES RESIDENTIAL,Peoples Services,Nursing Care - Ext Provider,A56025
London Borough of Sutton,14/04/2023,50342426,-836.76,Family Star Ltd,SOCIAL SERVICES RESIDENTIAL,Peoples Services,Nursing Care - 3rd party top up payment,A56023
London Borough of Sutton,14/04/2023,50342431,-750.4,Family Star Ltd,SOCIAL SERVICES RESIDENTIAL,Peoples Services,Nursing Care - 3rd party top up payment,A56023
London Borough of Sutton,14/04/2023,50342431,"3,734.88",Family Star Ltd,SOCIAL SERVICES RESIDENTIAL,Peoples Services,Nursing Care Short Term,A56026
